Workbook

Sheet Calculator
A2: Colorado Community College System's Employee Plan Costs Calculator
A3: Note: Healthcare costs are unpredictable; this comparison sheet provides only a general estimate of healthcare costs, based on average procedure cost. Your actual cost will be different. The calculator assumes all claims are in-network.
A4: Instructions
A5: - Select 'coverage type' and 'affiliated college / institution' from the drop down menus.
A6: - Input HSA rollover amount if applicable.
A7: - Enter the applicable information for you and your covered dependents in the light blue cells. Delete any inputs in cells that are not light blue.
A8: - If you do not want to enter data, either leave it blank or 0. Do not enter a space. Clear the calculator by clicking the button.
A9: - Click the "Low", "Med", or "High" buttons to input default utilization assumptions.
A10: - In order to reset the default costs per service, close the calculator but do not save it and reopen the original worksheet.
A11: - Use the outputs to determine which plans are most cost effective.
A12: Type of Coverage
A14: Coverage Type | B14: Employee | E14: =IF(B16="","Warning: Select a"&" "& A16,"") ->  | H14: =B14="Employee" -> TRUE
H15: =B14="Employee + Spouse" -> FALSE | L15: Rates structure
A16: Affiliated College / Institution | B16: Arapahoe Community College | C16: =IF(OR(AND(D22="",SUM(D23:D39)<>0),AND(E22="",SUM(E23:E39)<>0),AND(F22="",SUM(F23:F39)<>0),AND(G22="",SUM(G23:G39)<>0),AND(H22="",SUM(H23:H39)<>0),AND(I22="",SUM(I23:I39)<>0))," Warning: Clear the gray utilization inputs below","") ->  | H16: =B14="Employee + 1" -> FALSE | L16: =VLOOKUP(Band,$L$22:$O$35,4,FALSE) -> Colleges
H17: =B14="Employee + Child" -> FALSE
A18: Health Savings Account (HSA) or Health Reimbursement Account (HRA) Rollover from Prior Years | H18: =B14="Employee + Child(ren)" -> FALSE
H19: =B14="Employee + Family" -> FALSE
A20: Utilization Of Covered Services
M21: Eligible for Kaiser? | N21: Eligible for Blue Priority? | O21: Rates
C22: Employee | D22: =IF(B14="Employee","",IF(B14="Employee + Child","Child",IF(B14="Employee + Child(ren)","Child",IF(B14="Employee + 1","Dependent",IF(B14="Employee + Spouse","Spouse",IF(B14="Employee + Family","Spouse",IF(B14="Employee + Children","Child",""""))))))) ->  | E22: =IF(B14="Employee + Family","Child",IF(B14="Employee + Child(ren)","Child",IF(B14="Employee + Children","Child",""))) ->  | F22: =IF(B14="Employee + Family","Child",IF(B14="Employee + Child(ren)","Child",IF(B14="Employee + Children","Child",""))) ->  | G22: =IF(B14="Employee + Family","Child",IF(B14="Employee + Child(ren)","Child",IF(B14="Employee + Children","Child",""))) ->  | H22: =IF(B14="Employee + Family","Child",IF(B14="Employee + Child(ren)","Child",IF(B14="Employee + Children","Child",""))) ->  | L22: Arapahoe Community College | N22: 1 | O22: Colleges
A23: Preventive Services | B23: Annual number of Covered Preventive Visits | L23: Colorado Community College System | N23: 1 | O23: Colleges
A24: Hospitalizations | B24: Annual number of Hospital Admissions | L24: Colorado Northwestern Community College | N24: 0 | O24: Colleges
A25: Outpatient Surgery | B25: Annual number of Outpatient Surgeries | L25: Community College of Aurora | N25: 1 | O25: Colleges
A26: Lab/X-ray/other Radiology Performed in Outpatient Facility | B26: Annual number of Lab/Radiology Procedures (performed in an outpatient facility) | L26: Community College of Denver | N26: 1 | O26: Colleges
A27: Emergency Room Visits | B27: Annual number of Emergency Room Visits | L27: Front Range Community College | N27: 1 | O27: Colleges
A28: Urgent Care Visits | B28: Annual number of Urgent Care Visits | L28: Lamar Community College | N28: 0 | O28: Colleges
A29: Office Visits | B29: Annual number of Primary Care Office Visits | L29: Morgan Community College | N29: 0 | O29: Colleges
B30: Annual number of Specialists Office Visits | L30: Northeastern Community College | N30: 0 | O30: Colleges
B31: Annual number of Chiropractor Visits | L31: Otero Community College | N31: 0 | O31: Colleges
A32: Prescription Drugs | B32: Total number of Generic Prescriptions (Retail)—Annual | L32: Pikes Peak Community College | N32: 1 | O32: Colleges
B33: Total number of Formulary Brand-name Prescriptions (Retail)—Annual | L33: Pueblo Community College | N33: 1 | O33: Colleges
B34: Total number of Non-Formulary Brand-name Prescriptions (Retail)—Annual | L34: Red Rocks Community College | N34: 1 | O34: Colleges
B35: Total number of Specialty Prescriptions (Retail)—Annual | L35: Trinidad Community College | N35: 0 | O35: Colleges
B36: Total number of Generic Prescriptions (Mail)—Annual | N36: =VLOOKUP(Band,L22:N35,3,FALSE) -> 1
B37: Total number of Formulary Brand-name Prescriptions (Mail)—Annual
B38: Total number of Non-Formulary Brand-name Prescriptions (Mail)—Annual
B39: Total number of Specialty Prescriptions (Mail)—Annual
A40: All Other | B40: Enter the annual allowed charges for all other claims (i.e., outpatient hospital services other than surgery, durable medical equipment, home healthcare, etc.)
B41: Utilization Default | C41: =IF(SUM(Input1)=0,"None",IF(AND(EXACT(Input1,LowAdult)),"Low",IF(AND(EXACT(Input1,MedAdult)),"Med",IF(AND(EXACT(Input1,HighAdult)),"High","Custom")))) -> None | D41: =IF(Description2="","",IF(SUM(Input2)=0,"None",IF(Description2="Child",IF(AND(EXACT(Input2,LowChild)),"Low",IF(AND(EXACT(Input2,MedChild)),"Med",IF(AND(EXACT(Input2,HighChild)),"High","Custom"))),IF(AND(EXACT(Input2,LowAdult)),"Low",IF(AND(EXACT(Input2,MedAdult)),"Med",IF(AND(EXACT(Input2,HighAdult)),"High","Custom")))))) ->  | E41: =IF(Description3="","",IF(SUM(Input3)=0,"None",IF(Description3="Child",IF(AND(EXACT(Input3,LowChild)),"Low",IF(AND(EXACT(Input3,MedChild)),"Med",IF(AND(EXACT(Input3,HighChild)),"High","Custom"))),IF(AND(EXACT(Input3,LowAdult)),"Low",IF(AND(EXACT(Input3,MedAdult)),"Med",IF(AND(EXACT(Input3,HighAdult)),"High","Custom")))))) ->  | F41: =IF(Description4="","",IF(SUM(Input4)=0,"None",IF(Description4="Child",IF(AND(EXACT(Input4,LowChild)),"Low",IF(AND(EXACT(Input4,MedChild)),"Med",IF(AND(EXACT(Input4,HighChild)),"High","Custom"))),IF(AND(EXACT(Input4,LowAdult)),"Low",IF(AND(EXACT(Input4,MedAdult)),"Med",IF(AND(EXACT(Input4,HighAdult)),"High","Custom")))))) ->  | G41: =IF(Description5="","",IF(SUM(Input5)=0,"None",IF(Description5="Child",IF(AND(EXACT(Input5,LowChild)),"Low",IF(AND(EXACT(Input5,MedChild)),"Med",IF(AND(EXACT(Input5,HighChild)),"High","Custom"))),IF(AND(EXACT(Input5,LowAdult)),"Low",IF(AND(EXACT(Input5,MedAdult)),"Med",IF(AND(EXACT(Input5,HighAdult)),"High","Custom")))))) ->  | H41: =IF(Description6="","",IF(SUM(Input6)=0,"None",IF(Description6="Child",IF(AND(EXACT(Input6,LowChild)),"Low",IF(AND(EXACT(Input6,MedChild)),"Med",IF(AND(EXACT(Input6,HighChild)),"High","Custom"))),IF(AND(EXACT(Input6,LowAdult)),"Low",IF(AND(EXACT(Input6,MedAdult)),"Med",IF(AND(EXACT(Input6,HighAdult)),"High","Custom")))))) -> 
A43: Cost Per Service: Model assumes the following cost per service. Override if your cost per service are expected to be different.
A44: Preventive Services | B44: Cost of Covered Preventive Services | C44: 129.84
A45: Hospitalizations | B45: Cost for Hospitalizations per Admit | C45: =3*3332.5407 -> 9997.6221
A46: Outpatient Surgery | B46: Cost for Outpatient Surgeries | C46: 1550
A47: Lab/X-ray/other Radiology Performed in Hospital/Outpatient Facility | B47: Cost of Lab/Radiology Procedures | C47: 60.87
A48: Emergency Room Visits | B48: Cost of Emergency Room | C48: 1128.01
A49: Urgent Care Visits | B49: Cost of Urgent Care | C49: 145
A50: Office Visits | B50: Cost of Primary Care Office Visits, including lab and x-ray | C50: 161.06
B51: Cost of Specialists Office Visits, including lab and x-ray | C51: 157.5
B52: Cost of Chiropractor Visit | C52: 38.41
A53: Prescription Drugs | B53: Cost per Generic Prescription | C53: 10.31
B54: Cost per Formulary Brand-Name Prescription | C54: 261.35
B55: Cost per Non-Formulary Brand-Name Prescription | C55: 261.35
B56: Cost per Specialty Prescription | C56: 1646
C60: Employee Out of Pocket Medical Cost | E60: Employee Annualized Contribution | G60: Total Employee Contribution and Out of Pocket cost
B61: =IF('1. Plan Inputs'!R17="","",'1. Plan Inputs'!R17) -> Kaiser HMO | C61: =IF(B61="","",IF(Calculator!B14="Employee",Worksheet!AL136,IF('1. Plan Inputs'!S26="Embedded",Worksheet!AL136,Worksheet!AL147))) -> 0 | E61: =IF(B61="","",(VLOOKUP(B14,'2. Contribution Inputs'!B72:N77,MATCH(L16,'2. Contribution Inputs'!C71:N71,0)+1,0))*12) -> 1128 | G61: =IF(B61="","",E61+C61) -> 1128 | I61: =IF(G61<=MIN(G$61:G$66),B61,"") -> 
B62: =IF(N36=0,"",'1. Plan Inputs'!O17) -> Anthem Blue Priority | C62: =IF(N36=0,"",IF(Calculator!B14="Employee",Worksheet!AD136,IF('1. Plan Inputs'!P26="Embedded",Worksheet!AD136,Worksheet!AD147))) -> 0 | E62: =IF(N36=0,"",(VLOOKUP(B14,'2. Contribution Inputs'!B63:N68,MATCH(L16,'2. Contribution Inputs'!C62:N62,0)+1,0))*12) -> 1392 | G62: =IF(N36=0,"",E62+C62) -> 1392 | I62: =IF(G62<=MIN(G$61:G$66),B62,"") -> 
B63: =IF('1. Plan Inputs'!F17="","",'1. Plan Inputs'!F17) -> Anthem HMO | C63: =IF(B63="","",IF(Calculator!B14="Employee",Worksheet!F136,IF('1. Plan Inputs'!G26="Embedded",Worksheet!F136,Worksheet!F147))) -> 0 | E63: =IF(B63="","",(VLOOKUP(B14,'2. Contribution Inputs'!B36:N41,MATCH(L16,'2. Contribution Inputs'!C35:N35,0)+1,0))*12) -> 2712 | G63: =IF(B63="","",E63+C63) -> 2712
B64: =IF('1. Plan Inputs'!I17="","",'1. Plan Inputs'!I17) -> Anthem HDHP | C64: =IF(B64="","",IF(Calculator!B14="Employee",Worksheet!N136,IF('1. Plan Inputs'!J26="Embedded",Worksheet!N136,Worksheet!N147))) -> 0 | E64: =IF(B64="","",(VLOOKUP(B14,'2. Contribution Inputs'!B45:N50,MATCH(L16,'2. Contribution Inputs'!C44:N44,0)+1,0))*12) -> 696 | G64: =IF(B64="","",E64+C64) -> 696 | I64: Anthem HDHP
B65: =IF('1. Plan Inputs'!L17="","",'1. Plan Inputs'!L17) -> BluePreferred PPO | C65: =IF(B65="","",IF(Calculator!B14="Employee",Worksheet!V136,IF('1. Plan Inputs'!M26="Embedded",Worksheet!V136,Worksheet!V147))) -> 0 | E65: =IF(B65="","",(VLOOKUP(B14,'2. Contribution Inputs'!B54:N59,MATCH(L16,'2. Contribution Inputs'!C53:N53,0)+1,0))*12) -> 1956 | G65: =IF(B65="","",E65+C65) -> 1956
B66: =IF('1. Plan Inputs'!U17="","",'1. Plan Inputs'!U17) ->  | C66: =IF(B66="","",IF(Calculator!B14="Employee",Worksheet!AT136,IF('1. Plan Inputs'!V26="Embedded",Worksheet!AT136,Worksheet!AT147))) ->  | E66: =IF(B66="","",(VLOOKUP(B14,'2. Contribution Inputs'!B81:N86,MATCH(L16,'2. Contribution Inputs'!C80:N80,0)+1,0))*12) ->  | I66: =IF(G66<=MIN(G$62:G$66),B66,"") -> 
A69: The following plan(s) is (are) the lowest cost options: | B69: =I63&" "&I64&" "&I65&" "&I62&" "&I61&" "&I66 -> Anthem HDHP
A71: This model assumes that all inpatient and maternity stays last at least three days. This model assumes that Outpatient Surgeries are received at a free-standing facility. Copays may be higher at a hospital-based facility. This model assumes that Diagnostic Lab and Imaging (MRI/X-rays) are covered 100% by the plan. However, copays are required for High-Tech Services such as MRI, CT, and PET scans, as well as some x-rays. The Blue Priority HMO has an additional $150 deductible per person (limited to $300 per family) for Tier 2 and Tier 3 Prescription Drugs, which is not included in this model. Anthem and Kaiser networks are not comparable. Network preferences should be taken into account when selecting a carrier. Kaiser HMO is available only if you live or work within specific zip codes in the Denver/Boulder, Southern Colorado and Northern Colorado service areas.
A72: The Anthem Blue Priority HMO plan is available to employees at the following college campuses:
A73: - Arapahoe Community College | B73: - Community College of Denver | C73: - Pikes Peak Community College
A74: - CCCS System Office | B74: - Community College of Aurora | C74: - Pueblo Community College
B75: - Front Range Community College | C75: - Red Rocks Community College
A77: © 2013 Lockton, Inc. All rights reserved.

Sheet 1. Plan Inputs (hidden)
A1: Instructions
A2: Only light blue boxes should be used to input information.
A4: 1. Select the number of plans and input unique names for each plan.
A6: 2. Input the benefit design for each plan. If the inputs do not accommodate your plan please contact
A7: LBG actuarial.
A9: 3. To reset a plan to the default settings click the "Reset Defaults" buttons. Click the "Reset Defaults"
A10: button for unused plan slots.
A12: 4. Move to the "2. Contribution Inputs" tab when finished.
A14: Number of unique plans: | E14: 5
B15: Reselecting might clear plan designs
A17: Plan Name: | F17: Anthem HMO | I17: Anthem HDHP | L17: BluePreferred PPO | O17: Anthem Blue Priority | R17: Kaiser HMO
B19: Does the plan have an HSA or HRA? | G19: No | I19: HSA/HRA? | J19: No | L19: HSA/HRA? | M19: No | O19: HSA/HRA? | P19: No | R19: HSA/HRA? | S19: No | U19: HSA/HRA? | V19: No
A21: Input Benefits:
B23: Individual Deductible: | G23: 0 | I23: Ind. Ded.: | J23: 6350 | L23: Ind. Ded.: | M23: 2000 | O23: Ind. Ded.: | P23: 1000 | R23: Ind. Ded.: | S23: 0 | U23: Ind. Ded.: | V23: 0
B24: Family Deductible: | G24: 0 | I24: Fam. Ded.: | J24: 12700 | L24: Fam. Ded.: | M24: 6000 | O24: Fam. Ded.: | P24: 3000 | R24: Fam. Ded.: | S24: 0 | U24: Fam. Ded.: | V24: 0
C26: Embedded/Non-Embedded: | G26: Embedded | I26: Emb/Non-Emb: | J26: Embedded | L26: Emb/Non-Emb: | M26: Embedded | P26: Embedded | R26: Emb/Non-Emb: | S26: Embedded | U26: Emb/Non-Emb: | V26: Embedded
D27: Applies to Deductible and Out-of-Pocket Max
B28: Member Coinsurance: | G28: 0 | I28: Coinsurance: | J28: 0 | L28: Coinsurance: | M28: 0.25 | O28: Coinsurance: | P28: 0.2 | R28: Coinsurance: | S28: 0 | U28: Coinsurance: | V28: 0
B30: Individual Out-of-Pocket Max: | G30: 4500 | I30: Ind. OOP Max: | J30: 6350 | L30: Ind. OOP Max: | M30: 6000 | O30: Ind. OOP Max: | P30: 3000 | R30: Ind. OOP Max: | S30: 3500 | U30: Ind. OOP Max: | V30: 0
B31: Family Out-of-Pocket Max: | G31: 9000 | I31: Fam. OOP max: | J31: 12700 | L31: Fam. OOP max: | M31: 12700 | O31: Fam. OOP max: | P31: 7000 | R31: Fam. OOP max: | S31: 7000 | U31: Fam. OOP max: | V31: 0
C32: The Out-of-Pocket Max includes the deductible
F33: Subject to Ded/Coins? | G33: Copayment Amount | I33: Subject to Ded/Coins? | J33: Copayment Amount | L33: Subject to Ded/Coins? | M33: Copayment Amount | O33: Subject to Ded/Coins? | P33: Copayment Amount | R33: Subject to Ded/Coins? | S33: Copayment Amount | U33: Subject to Ded/Coins? | V33: Copayment Amount
B34: Inpatient: | F34: No | G34: 700 | I34: Yes | L34: Yes | M34: 0 | O34: Yes | P34: 200 | R34: No | S34: 600 | U34: Yes | V34: 0
B35: Outpatient: | F35: No | G35: 300 | I35: Yes | L35: No | M35: 250 | O35: No | P35: 200 | R35: No | S35: 350 | U35: Yes | V35: 0
B36: Lab/X-Ray/Radiology: | F36: No | G36: 0 | I36: Yes | L36: No | M36: 0 | O36: No | P36: 0 | R36: No | S36: 0 | U36: Yes | V36: 0
B38: Emergency Room | F38: No | G38: 250 | I38: Yes | L38: Yes | M38: 0 | O38: No | P38: 250 | R38: No | S38: 250 | U38: Yes | V38: 0
B39: Urgent Care | F39: No | G39: 50 | I39: Yes | L39: No | M39: 70 | O39: No | P39: 45 | R39: No | S39: 50 | U39: Yes | V39: 0
B41: Preventive Visit: | F41: No | G41: 0 | I41: No | J41: 0 | L41: No | M41: 0 | O41: No | P41: 0 | R41: No | S41: 0 | U41: No | V41: 0
B42: PCP Office Visit: | F42: No | G42: 30 | I42: Yes | L42: No | M42: 40 | O42: No | P42: 15 | R42: No | S42: 30 | U42: Yes | V42: 0
B43: Specialist Office Visit: | F43: No | G43: 50 | I43: Yes | L43: No | M43: 70 | O43: No | P43: 45 | R43: No | S43: 50 | U43: Yes | V43: 0
B44: Chiropractor: | F44: No | G44: 30 | I44: Yes | L44: No | M44: 40 | O44: No | P44: 20 | R44: No | S44: 30 | U44: Yes | V44: 0
B46: Medical Copays apply to OOP Max? | G46: Yes | I46: Med copays to OOP? | J46: Yes | L46: Med copays to OOP? | M46: Yes | O46: Med copays to OOP? | P46: Yes | R46: Med copays to OOP? | S46: Yes | U46: Med copays to OOP? | V46: Yes
B48: Rx copayments/coinsurance apply to OOP Max? | G48: Yes | I48: Rx to OOP? | J48: Yes | L48: Rx to OOP? | M48: Yes | O48: Rx to OOP? | P48: Yes | R48: Rx to OOP? | S48: Yes | U48: Rx to OOP? | V48: Yes
B50: Rx Subject to Deductible? | G50: No | I50: Rx to Ded? | J50: Yes | L50: Rx to Ded? | M50: No | O50: Rx to Ded? | P50: No | R50: Rx to Ded? | S50: No | U50: Rx to Ded? | V50: No
B52: Input Copayments OR Coinsurance | F52: Copayment Amount | G52: Rx Coinsurance | I52: Copayment Amount | J52: Rx Coinsurance | L52: Copayment Amount | M52: Rx Coinsurance | O52: Copayment Amount | P52: Rx Coinsurance | R52: Copayment Amount | S52: Rx Coinsurance | U52: Copayment Amount | V52: Rx Coinsurance
B53: Rx Generic (Retail): | F53: 15 | G53: 0 | J53: 0 | L53: 15 | M53: 0 | O53: 15 | P53: 0 | R53: 15 | S53: 0 | U53: 0 | V53: 0
B54: Rx Brand Formulary (Retail): | F54: 50 | G54: 0 | J54: 0 | L54: 50 | M54: 0 | O54: 40 | P54: 0 | R54: 30 | S54: 0 | U54: 0 | V54: 0
B55: Rx Brand Non-Formulary (Retail): | F55: 80 | G55: 0 | J55: 0 | L55: 80 | M55: 0 | O55: 60 | P55: 0 | R55: 30 | S55: 0 | U55: 0 | V55: 0
B56: Rx Specialty (Retail): | F56: 100 | G56: 0 | J56: 0 | L56: 100 | M56: 0 | O56: 250 | P56: 0 | R56: 100 | S56: 0 | U56: 0 | V56: 0
B57: Rx Generic (Mail/90-Day): | F57: 15 | G57: 0 | J57: 0 | L57: 15 | M57: 0 | O57: 15 | P57: 0 | R57: 30 | S57: 0 | U57: 0 | V57: 0
B58: Rx Brand Formulary (Mail/90-Day): | F58: 100 | G58: 0 | J58: 0 | L58: 100 | M58: 0 | O58: 80 | P58: 0 | R58: 60 | S58: 0 | U58: 0 | V58: 0
B59: Rx Brand Non-Formulary (Mail/90-Day): | F59: 160 | G59: 0 | J59: 0 | L59: 160 | M59: 0 | O59: 120 | P59: 0 | R59: 60 | S59: 0 | U59: 0 | V59: 0
B60: Rx Specialty (Mail/90-Day): | F60: 200 | G60: 0 | J60: 0 | L60: 200 | M60: 0 | O60: 500 | P60: 0 | R60: 100 | S60: 0 | U60: 0 | V60: 0
C61: Model Assumes copays if both copays and coinsurance are entered.

Sheet 2. Contribution Inputs (hidden)
F1: Instructions
F2: Only light blue boxes should be used to input information.
F4: 1. Go to the "Tier Description" box and select the appropriate tier structure.
F6: 2. Go to the "Contribution Band" box and list all contribution bands. Enter all possible bands
F7: even if certain bands do not apply to every plan. YOU MUST ENTER AT LEAST ONE CONTRIBUTION
B8: 1. Tier Description: | F8: BAND NAME. In the top right, input the label that will appear on the calculator tab.
D9: Sample
B10: Tier 1: | C10: Employee | D10: Employee | F10: 3. Go to the "Monthly Employee Contributions" box and enter the contribution amounts for the
B11: Tier 2: | C11: Employee + Spouse | D11: Employee + Spouse | F11: appropriate plan, tier, and band.
B12: Tier 3: | C12: Employee + Child(ren) | D12: Employee + Child(ren)
B13: Tier 4: | C13: Employee + Family | D13: Employee + Family | F13: 4. If one or more of the plans has an HSA then continue to the "Monthly Employer HSA.
B14: Tier 5: | F14: Contributions" box. Enter the monthly HSA amounts for the appropriate plan, tier, and band.
B15: Tier 6:
F16: 5. Use the buttons below to select which features will be visible on the "Calculator" tab.
B17: 2. Contribution Bands: | D17: Contribution Band
D18: Sample | F18: 6. Click the "Lock" button to lock the calculator for client use. The password to unlock is "calculator".
B19: Band 1: | C19: Aims | D19: <=$75k
B20: Band 2: | C20: Colleges | D20: $75k - $125k | F20: Low/Med/High Inputs: | I20: The Low/Med/High Inputs and Utilization Inputs should not be hidden simultaneously.
B21: Band 3: | C21: DHE, Invest | D21: $125k+
B22: Band 4: | D22: <=$75k, Tobacco
B23: Band 5: | D23: $75k - $125k Tobacco | F23: Utilization Inputs:
B24: Band 6: | D24: $125k+ Tobacco
B25: Band 7:
B26: Band 8: | F26: Costs per Service
B27: Band 9:
B28: Band 10:
B29: Band 11:
B30: Band 12:
B32: 3. Monthly Employee Contributions:
B34: ='1. Plan Inputs'!F17 -> Anthem HMO
C35: =$C$19 -> Aims | D35: =$C$20 -> Colleges | E35: =$C$21 -> DHE, Invest | F35: =$C$22 -> 0 | G35: =$C$23 -> 0 | H35: =$C$24 -> 0 | I35: =$C$25 -> 0 | J35: =$C$26 -> 0 | K35: =$C$27 -> 0 | L35: =$C$28 -> 0 | M35: =$C$29 -> 0 | N35: =$C$30 -> 0
B36: =$C$10 -> Employee | C36: 0 | D36: 226 | E36: 172
B37: =$C$11 -> Employee + Spouse | C37: 257.1 | D37: 727 | E37: 496.1
B38: =$C$12 -> Employee + Child(ren) | C38: 210.45 | D38: 668
B39: =$C$13 -> Employee + Family | C39: 337.96 | D39: 857
B40: =$C$14 -> 0
B41: =$C$15 -> 0
B43: ='1. Plan Inputs'!I17 -> Anthem HDHP
C44: =$C$19 -> Aims | D44: =$C$20 -> Colleges | E44: =$C$21 -> DHE, Invest | F44: =$C$22 -> 0 | G44: =$C$23 -> 0 | H44: =$C$24 -> 0 | I44: =$C$25 -> 0 | J44: =$C$26 -> 0 | K44: =$C$27 -> 0 | L44: =$C$28 -> 0 | M44: =$C$29 -> 0 | N44: =$C$30 -> 0
B45: =$C$10 -> Employee | C45: 0 | D45: 58 | E45: 159
B46: =$C$11 -> Employee + Spouse | C46: 171.3 | D46: 200 | E46: 464.1
B47: =$C$12 -> Employee + Child(ren) | C47: 140.55 | D47: 183
B48: =$C$13 -> Employee + Family | C48: 224.56 | D48: 267
B49: =$C$14 -> 0
B50: =$C$15 -> 0
B52: ='1. Plan Inputs'!L17 -> BluePreferred PPO
C53: =$C$19 -> Aims | D53: =$C$20 -> Colleges | E53: =$C$21 -> DHE, Invest | F53: =$C$22 -> 0 | G53: =$C$23 -> 0 | H53: =$C$24 -> 0 | I53: =$C$25 -> 0 | J53: =$C$26 -> 0 | K53: =$C$27 -> 0 | L53: =$C$28 -> 0 | M53: =$C$29 -> 0 | N53: =$C$30 -> 0
B54: =$C$10 -> Employee | C54: 0 | D54: 163 | E54: 131
B55: =$C$11 -> Employee + Spouse | C55: 244.5 | D55: 557 | E55: 389.1
B56: =$C$12 -> Employee + Child(ren) | C56: 195.9 | D56: 519
B57: =$C$13 -> Employee + Family | C57: 321.02 | D57: 623
B58: =$C$14 -> 0
B59: =$C$15 -> 0
B61: ='1. Plan Inputs'!O17 -> Anthem Blue Priority
C62: =$C$19 -> Aims | D62: =$C$20 -> Colleges | E62: =$C$21 -> DHE, Invest | F62: =$C$22 -> 0 | G62: =$C$23 -> 0 | H62: =$C$24 -> 0 | I62: =$C$25 -> 0 | J62: =$C$26 -> 0 | K62: =$C$27 -> 0 | L62: =$C$28 -> 0 | M62: =$C$29 -> 0 | N62: =$C$30 -> 0
B63: =$C$10 -> Employee | C63: 0 | D63: 116 | E63: 131
B64: =$C$11 -> Employee + Spouse | C64: 224.85 | D64: 455 | E64: 389.1
B65: =$C$12 -> Employee + Child(ren) | C65: 184.05 | D65: 434
B66: =$C$13 -> Employee + Family | C66: 295.54 | D66: 523
B67: =$C$14 -> 0
B68: =$C$15 -> 0
B70: ='1. Plan Inputs'!R17 -> Kaiser HMO
C71: =$C$19 -> Aims | D71: =$C$20 -> Colleges | E71: =$C$21 -> DHE, Invest | F71: =$C$22 -> 0 | G71: =$C$23 -> 0 | H71: =$C$24 -> 0 | I71: =$C$25 -> 0 | J71: =$C$26 -> 0 | K71: =$C$27 -> 0 | L71: =$C$28 -> 0 | M71: =$C$29 -> 0 | N71: =$C$30 -> 0
B72: =$C$10 -> Employee | C72: 0 | D72: 94 | E72: 131
B73: =$C$11 -> Employee + Spouse | C73: 176.33 | D73: 394 | E73: 389.1
B74: =$C$12 -> Employee + Child(ren) | C74: 144.27 | D74: 388
B75: =$C$13 -> Employee + Family | C75: 231.9 | D75: 436
B76: =$C$14 -> 0
B77: =$C$15 -> 0
B79: ='1. Plan Inputs'!U17 -> 0
C80: =$C$19 -> Aims | D80: =$C$20 -> Colleges | E80: =$C$21 -> DHE, Invest | F80: =$C$22 -> 0 | G80: =$C$23 -> 0 | H80: =$C$24 -> 0 | I80: =$C$25 -> 0 | J80: =$C$26 -> 0 | K80: =$C$27 -> 0 | L80: =$C$28 -> 0 | M80: =$C$29 -> 0 | N80: =$C$30 -> 0
B81: =$C$10 -> Employee
B82: =$C$11 -> Employee + Spouse
B83: =$C$12 -> Employee + Child(ren)
B84: =$C$13 -> Employee + Family
B85: =$C$14 -> 0
B86: =$C$15 -> 0
B89: 4. Monthly Employer HSA/HRA Contributions:
B91: ='1. Plan Inputs'!F17 -> Anthem HMO
C92: =$C$19 -> Aims | D92: =$C$20 -> Colleges | E92: =$C$21 -> DHE, Invest | F92: =$C$22 -> 0 | G92: =$C$23 -> 0 | H92: =$C$24 -> 0 | I92: =$C$25 -> 0 | J92: =$C$26 -> 0 | K92: =$C$27 -> 0 | L92: =$C$28 -> 0 | M92: =$C$29 -> 0 | N92: =$C$30 -> 0
B93: =$C$10 -> Employee | C93: 0 | D93: 0 | E93: 0
B94: =$C$11 -> Employee + Spouse | C94: 0 | D94: 0 | E94: 0
B95: =$C$12 -> Employee + Child(ren) | C95: 0 | D95: 0 | E95: 0
B96: =$C$13 -> Employee + Family | C96: 0 | D96: 0 | E96: 0
B97: =$C$14 -> 0
B98: =$C$15 -> 0
B100: ='1. Plan Inputs'!I17 -> Anthem HDHP
C101: =$C$19 -> Aims | D101: =$C$20 -> Colleges | E101: =$C$21 -> DHE, Invest | F101: =$C$22 -> 0 | G101: =$C$23 -> 0 | H101: =$C$24 -> 0 | I101: =$C$25 -> 0 | J101: =$C$26 -> 0 | K101: =$C$27 -> 0 | L101: =$C$28 -> 0 | M101: =$C$29 -> 0 | N101: =$C$30 -> 0
B102: =$C$10 -> Employee | C102: 0 | D102: 0 | E102: 0
B103: =$C$11 -> Employee + Spouse | C103: 0 | D103: 0 | E103: 0
B104: =$C$12 -> Employee + Child(ren) | C104: 0 | D104: 0 | E104: 0
B105: =$C$13 -> Employee + Family | C105: 0 | D105: 0 | E105: 0
B106: =$C$14 -> 0
B107: =$C$15 -> 0
B109: ='1. Plan Inputs'!L17 -> BluePreferred PPO
C110: =$C$19 -> Aims | D110: =$C$20 -> Colleges | E110: =$C$21 -> DHE, Invest | F110: =$C$22 -> 0 | G110: =$C$23 -> 0 | H110: =$C$24 -> 0 | I110: =$C$25 -> 0 | J110: =$C$26 -> 0 | K110: =$C$27 -> 0 | L110: =$C$28 -> 0 | M110: =$C$29 -> 0 | N110: =$C$30 -> 0
B111: =$C$10 -> Employee | C111: 0 | D111: 0 | E111: 0
B112: =$C$11 -> Employee + Spouse | C112: 0 | D112: 0 | E112: 0
B113: =$C$12 -> Employee + Child(ren) | C113: 0 | D113: 0 | E113: 0
B114: =$C$13 -> Employee + Family | C114: 0 | D114: 0 | E114: 0
B115: =$C$14 -> 0
B116: =$C$15 -> 0
B118: ='1. Plan Inputs'!O17 -> Anthem Blue Priority
C119: =$C$19 -> Aims | D119: =$C$20 -> Colleges | E119: =$C$21 -> DHE, Invest | F119: =$C$22 -> 0 | G119: =$C$23 -> 0 | H119: =$C$24 -> 0 | I119: =$C$25 -> 0 | J119: =$C$26 -> 0 | K119: =$C$27 -> 0 | L119: =$C$28 -> 0 | M119: =$C$29 -> 0 | N119: =$C$30 -> 0
B120: =$C$10 -> Employee | C120: 0 | D120: 0 | E120: 0
B121: =$C$11 -> Employee + Spouse | C121: 0 | D121: 0 | E121: 0
B122: =$C$12 -> Employee + Child(ren) | C122: 0 | D122: 0 | E122: 0
B123: =$C$13 -> Employee + Family | C123: 0 | D123: 0 | E123: 0
B124: =$C$14 -> 0
B125: =$C$15 -> 0
B127: ='1. Plan Inputs'!R17 -> Kaiser HMO
C128: =$C$19 -> Aims | D128: =$C$20 -> Colleges | E128: =$C$21 -> DHE, Invest | F128: =$C$22 -> 0 | G128: =$C$23 -> 0 | H128: =$C$24 -> 0 | I128: =$C$25 -> 0 | J128: =$C$26 -> 0 | K128: =$C$27 -> 0 | L128: =$C$28 -> 0 | M128: =$C$29 -> 0 | N128: =$C$30 -> 0
B129: =$C$10 -> Employee | C129: 0 | D129: 0 | E129: 0
B130: =$C$11 -> Employee + Spouse | C130: 0 | D130: 0 | E130: 0
B131: =$C$12 -> Employee + Child(ren) | C131: 0 | D131: 0 | E131: 0
B132: =$C$13 -> Employee + Family | C132: 0 | D132: 0 | E132: 0
B133: =$C$14 -> 0
B134: =$C$15 -> 0
B136: ='1. Plan Inputs'!U17 -> 0
C137: =$C$19 -> Aims | D137: =$C$20 -> Colleges | E137: =$C$21 -> DHE, Invest | F137: =$C$22 -> 0 | G137: =$C$23 -> 0 | H137: =$C$24 -> 0 | I137: =$C$25 -> 0 | J137: =$C$26 -> 0 | K137: =$C$27 -> 0 | L137: =$C$28 -> 0 | M137: =$C$29 -> 0 | N137: =$C$30 -> 0
B138: =$C$10 -> Employee
B139: =$C$11 -> Employee + Spouse
B140: =$C$12 -> Employee + Child(ren)
B141: =$C$13 -> Employee + Family
B142: =$C$14 -> 0
B143: =$C$15 -> 0

Sheet Worksheet (hidden)
B1: 1 | C1: Yes | D1: Embedded | E1: Employee | F1: Copayments
B2: 2 | C2: No | D2: Non-Embedded | E2: Employee + Spouse | F2: Coinsurance
B3: 3 | E3: Employee + 1
B4: 4 | E4: Employee + Child
B5: 5 | E5: Employee + Child(ren)
B6: 6 | E6: Employee + Family
E7: Employee + Children
B10: =Calculator!$C$22 -> Employee | C10: =Calculator!D22 ->  | D10: =Calculator!E22 ->  | E10: =Calculator!F22 ->  | F10: =Calculator!G22 ->  | G10: =Calculator!H22 ->  | J10: =Calculator!C22 -> Employee | K10: =Calculator!D22 ->  | L10: =Calculator!E22 ->  | M10: =Calculator!F22 ->  | N10: =Calculator!G22 ->  | O10: =Calculator!H22 ->  | R10: =Calculator!C22 -> Employee | S10: =Calculator!D22 ->  | T10: =Calculator!E22 ->  | U10: =Calculator!F22 ->  | V10: =Calculator!G22 ->  | W10: =Calculator!H22 ->  | Z10: =Calculator!C22 -> Employee | AA10: =Calculator!D22 ->  | AB10: =Calculator!E22 ->  | AC10: =Calculator!F22 ->  | AD10: =Calculator!G22 ->  | AE10: =Calculator!H22 ->  | AH10: =Calculator!C22 -> Employee | AI10: =Calculator!D22 ->  | AJ10: =Calculator!E22 ->  | AK10: =Calculator!F22 ->  | AL10: =Calculator!G22 ->  | AM10: =Calculator!H22 ->  | AP10: =Calculator!C22 -> Employee | AQ10: =Calculator!D22 ->  | AR10: =Calculator!E22 ->  | AS10: =Calculator!F22 ->  | AT10: =Calculator!G22 ->  | AU10: =Calculator!H22 -> 
B11: ='1. Plan Inputs'!F17 -> Anthem HMO | J11: ='1. Plan Inputs'!I17 -> Anthem HDHP | R11: ='1. Plan Inputs'!L17 -> BluePreferred PPO | Z11: ='1. Plan Inputs'!O17 -> Anthem Blue Priority | AH11: ='1. Plan Inputs'!R17 -> Kaiser HMO | AP11: ='1. Plan Inputs'!U17 -> 0
A12: Deductible | B12: ='1. Plan Inputs'!G23 -> 0 | C12: =B12 -> 0 | D12: 0 | E12: 0 | F12: 0 | G12: 0 | I12: Deductible | J12: ='1. Plan Inputs'!J23 -> 6350 | K12: =J12 -> 6350 | L12: =K12 -> 6350 | M12: =L12 -> 6350 | N12: =M12 -> 6350 | O12: =N12 -> 6350 | Q12: Deductible | R12: ='1. Plan Inputs'!M23 -> 2000 | S12: =R12 -> 2000 | T12: =S12 -> 2000 | U12: =T12 -> 2000 | V12: =U12 -> 2000 | W12: =V12 -> 2000 | Y12: Deductible | Z12: ='1. Plan Inputs'!P23 -> 1000 | AA12: =Z12 -> 1000 | AB12: =AA12 -> 1000 | AC12: =AB12 -> 1000 | AD12: =AC12 -> 1000 | AE12: =AD12 -> 1000 | AG12: Deductible | AH12: ='1. Plan Inputs'!S23 -> 0 | AI12: =AH12 -> 0 | AJ12: =AI12 -> 0 | AK12: =AJ12 -> 0 | AL12: =AK12 -> 0 | AM12: =AL12 -> 0 | AO12: Deductible | AP12: ='1. Plan Inputs'!V23 -> 0 | AQ12: =AP12 -> 0 | AR12: =AQ12 -> 0 | AS12: =AR12 -> 0 | AT12: =AS12 -> 0 | AU12: =AT12 -> 0
A13: Family Deductible | B13: ='1. Plan Inputs'!G24 -> 0 | C13: 0 | D13: 0 | E13: 0 | F13: 0 | G13: 0 | I13: Family Deductible | J13: ='1. Plan Inputs'!J24 -> 12700 | K13: 12700 | L13: 12700 | M13: 12700 | N13: 12700 | O13: 12700 | Q13: Family Deductible | R13: ='1. Plan Inputs'!M24 -> 6000 | S13: 6000 | T13: 6000 | U13: 6000 | V13: 6000 | W13: 6000 | Y13: Family Deductible | Z13: ='1. Plan Inputs'!P24 -> 3000 | AA13: 3000 | AB13: 3000 | AC13: 3000 | AD13: 3000 | AE13: 3000 | AG13: Family Deductible | AH13: ='1. Plan Inputs'!S24 -> 0 | AI13: 0 | AJ13: 0 | AK13: 0 | AL13: 0 | AM13: 0 | AO13: Family Deductible | AP13: ='1. Plan Inputs'!V24 -> 0 | AQ13: 0 | AR13: 0 | AS13: 0 | AT13: 0 | AU13: 0
A14: Coinsurance | B14: ='1. Plan Inputs'!G28 -> 0 | C14: 0 | D14: 0 | E14: 0 | F14: 0 | G14: 0 | I14: Coinsurance | J14: ='1. Plan Inputs'!J28 -> 0 | K14: 0 | L14: 0 | M14: 0 | N14: 0 | O14: 0 | Q14: Coinsurance | R14: ='1. Plan Inputs'!M28 -> 0.25 | S14: 0.25 | T14: 0.25 | U14: 0.25 | V14: 0.25 | W14: 0.25 | Y14: Coinsurance | Z14: ='1. Plan Inputs'!P28 -> 0.2 | AA14: 0.2 | AB14: 0.2 | AC14: 0.2 | AD14: 0.2 | AE14: 0.2 | AG14: Coinsurance | AH14: ='1. Plan Inputs'!S28 -> 0 | AI14: 0 | AJ14: 0 | AK14: 0 | AL14: 0 | AM14: 0 | AO14: Coinsurance | AP14: ='1. Plan Inputs'!V28 -> 0 | AQ14: 0 | AR14: 0 | AS14: 0 | AT14: 0 | AU14: 0
A15: OOPM | B15: ='1. Plan Inputs'!G30 -> 4500 | C15: =B15 -> 4500 | D15: =C15 -> 4500 | E15: 4500 | F15: 4500 | G15: 4500 | I15: OOPM | J15: ='1. Plan Inputs'!J30 -> 6350 | K15: =J15 -> 6350 | L15: 6350 | M15: 6350 | N15: 6350 | O15: 6350 | Q15: OOPM | R15: ='1. Plan Inputs'!M30 -> 6000 | S15: =R15 -> 6000 | T15: 6000 | U15: 6000 | V15: 6000 | W15: 6000 | Y15: OOPM | Z15: ='1. Plan Inputs'!P30 -> 3000 | AA15: =Z15 -> 3000 | AB15: 3000 | AC15: 3000 | AD15: 3000 | AE15: 3000 | AG15: OOPM | AH15: ='1. Plan Inputs'!S30 -> 3500 | AI15: =AH15 -> 3500 | AJ15: 3500 | AK15: 3500 | AL15: 3500 | AM15: 3500 | AO15: OOPM | AP15: ='1. Plan Inputs'!V30 -> 0 | AQ15: =AP15 -> 0 | AR15: 0 | AS15: 0 | AT15: 0 | AU15: 0
A16: Family OOPM | B16: ='1. Plan Inputs'!G31 -> 9000 | C16: =B16 -> 9000 | D16: 9000 | E16: 9000 | F16: 9000 | G16: 9000 | I16: Family OOPM | J16: ='1. Plan Inputs'!J31 -> 12700 | K16: =J16 -> 12700 | L16: 12700 | M16: 12700 | N16: 12700 | O16: 12700 | Q16: Family OOPM | R16: ='1. Plan Inputs'!M31 -> 12700 | S16: =R16 -> 12700 | T16: 12700 | U16: 12700 | V16: 12700 | W16: 12700 | Y16: Family OOPM | Z16: ='1. Plan Inputs'!P31 -> 7000 | AA16: =Z16 -> 7000 | AB16: 7000 | AC16: 7000 | AD16: 7000 | AE16: 7000 | AG16: Family OOPM | AH16: ='1. Plan Inputs'!S31 -> 7000 | AI16: =AH16 -> 7000 | AJ16: 7000 | AK16: 7000 | AL16: 7000 | AM16: 7000 | AO16: Family OOPM | AP16: ='1. Plan Inputs'!V31 -> 0 | AQ16: =AP16 -> 0 | AR16: 0 | AS16: 0 | AT16: 0 | AU16: 0
A18: Copayment Amounts: | I18: Copayment Amounts: | Q18: Copayment Amounts: | Y18: Copayment Amounts: | AG18: Copayment Amounts: | AO18: Copayment Amounts:
A19: Preventive Copay: | B19: ='1. Plan Inputs'!G41 -> 0 | C19: =B19 -> 0 | D19: =C19 -> 0 | E19: 0 | F19: 0 | G19: 0 | I19: Preventive Copay: | J19: ='1. Plan Inputs'!J41 -> 0 | K19: =J19 -> 0 | L19: =K19 -> 0 | M19: =L19 -> 0 | N19: =M19 -> 0 | O19: =N19 -> 0 | Q19: Preventive Copay: | R19: ='1. Plan Inputs'!M41 -> 0 | S19: =R19 -> 0 | T19: =S19 -> 0 | U19: =T19 -> 0 | V19: =U19 -> 0 | W19: =V19 -> 0 | Y19: Preventive Copay: | Z19: ='1. Plan Inputs'!P41 -> 0 | AA19: =Z19 -> 0 | AB19: =AA19 -> 0 | AC19: =AB19 -> 0 | AD19: =AC19 -> 0 | AE19: =AD19 -> 0 | AG19: Preventive Copay: | AH19: ='1. Plan Inputs'!S41 -> 0 | AI19: =AH19 -> 0 | AJ19: =AI19 -> 0 | AK19: =AJ19 -> 0 | AL19: =AK19 -> 0 | AM19: =AL19 -> 0 | AO19: Preventive Copay: | AP19: ='1. Plan Inputs'!V41 -> 0 | AQ19: =AP19 -> 0 | AR19: =AQ19 -> 0 | AS19: =AR19 -> 0 | AT19: =AS19 -> 0 | AU19: =AT19 -> 0
A20: Inpatient Copay: | B20: ='1. Plan Inputs'!G34 -> 700 | C20: 700 | D20: =C20 -> 700 | E20: 700 | F20: 700 | G20: 700 | I20: Inpatient Copay: | J20: ='1. Plan Inputs'!J34 -> 0 | K20: 0 | L20: 0 | M20: 0 | N20: 0 | O20: 0 | Q20: Inpatient Copay: | R20: ='1. Plan Inputs'!M34 -> 0 | S20: 0 | T20: 0 | U20: 0 | V20: 0 | W20: 0 | Y20: Inpatient Copay: | Z20: ='1. Plan Inputs'!P34 -> 200 | AA20: 200 | AB20: 200 | AC20: 200 | AD20: 200 | AE20: 200 | AG20: Inpatient Copay: | AH20: ='1. Plan Inputs'!S34 -> 600 | AI20: 600 | AJ20: 600 | AK20: 600 | AL20: 600 | AM20: 600 | AO20: Inpatient Copay: | AP20: ='1. Plan Inputs'!V34 -> 0 | AQ20: 0 | AR20: 0 | AS20: 0 | AT20: 0 | AU20: 0
A21: Outpatient Copay: | B21: ='1. Plan Inputs'!G35 -> 300 | C21: 300 | D21: 300 | E21: 300 | F21: 300 | G21: 300 | I21: Outpatient Copay: | J21: ='1. Plan Inputs'!J35 -> 0 | K21: 0 | L21: 0 | M21: 0 | N21: 0 | O21: 0 | Q21: Outpatient Copay: | R21: ='1. Plan Inputs'!M35 -> 250 | S21: 250 | T21: 250 | U21: 250 | V21: 250 | W21: 250 | Y21: Outpatient Copay: | Z21: ='1. Plan Inputs'!P35 -> 200 | AA21: 200 | AB21: 200 | AC21: 200 | AD21: 200 | AE21: 200 | AG21: Outpatient Copay: | AH21: ='1. Plan Inputs'!S35 -> 350 | AI21: 350 | AJ21: 350 | AK21: 350 | AL21: 350 | AM21: 350 | AO21: Outpatient Copay: | AP21: ='1. Plan Inputs'!V35 -> 0 | AQ21: 0 | AR21: 0 | AS21: 0 | AT21: 0 | AU21: 0
A22: Lab/X-Ray/Radiology Copay: | B22: ='1. Plan Inputs'!G36 -> 0 | C22: 0 | D22: 0 | E22: 0 | F22: 0 | G22: 0 | I22: Lab/X-Ray/Radiology Copay: | J22: ='1. Plan Inputs'!J36 -> 0 | K22: 0 | L22: 0 | M22: 0 | N22: 0 | O22: 0 | Q22: Lab/X-Ray/Radiology Copay: | R22: ='1. Plan Inputs'!M36 -> 0 | S22: 0 | T22: 0 | U22: 0 | V22: 0 | W22: 0 | Y22: Lab/X-Ray/Radiology Copay: | Z22: ='1. Plan Inputs'!P36 -> 0 | AA22: 0 | AB22: 0 | AC22: 0 | AD22: 0 | AE22: 0 | AG22: Lab/X-Ray/Radiology Copay: | AH22: ='1. Plan Inputs'!S36 -> 0 | AI22: 0 | AJ22: 0 | AK22: 0 | AL22: 0 | AM22: 0 | AO22: Lab/X-Ray/Radiology Copay: | AP22: ='1. Plan Inputs'!V36 -> 0 | AQ22: 0 | AR22: 0 | AS22: 0 | AT22: 0 | AU22: 0
A23: Emergency Room Copay: | B23: ='1. Plan Inputs'!G38 -> 250 | C23: 250 | D23: 250 | E23: 250 | F23: 250 | G23: 250 | I23: Emergency Room Copay: | J23: ='1. Plan Inputs'!J38 -> 0 | K23: 0 | L23: 0 | M23: 0 | N23: 0 | O23: 0 | Q23: Emergency Room Copay: | R23: ='1. Plan Inputs'!M38 -> 0 | S23: 0 | T23: 0 | U23: 0 | V23: 0 | W23: 0 | Y23: Emergency Room Copay: | Z23: ='1. Plan Inputs'!P38 -> 250 | AA23: 250 | AB23: 250 | AC23: 250 | AD23: 250 | AE23: 250 | AG23: Emergency Room Copay: | AH23: ='1. Plan Inputs'!S38 -> 250 | AI23: 250 | AJ23: 250 | AK23: 250 | AL23: 250 | AM23: 250 | AO23: Emergency Room Copay: | AP23: ='1. Plan Inputs'!V38 -> 0 | AQ23: 0 | AR23: 0 | AS23: 0 | AT23: 0 | AU23: 0
A24: Urgent Care: | B24: ='1. Plan Inputs'!G39 -> 50 | C24: =B24 -> 50 | D24: =C24 -> 50 | E24: =D24 -> 50 | F24: =E24 -> 50 | G24: =F24 -> 50 | I24: Urgent Care: | J24: ='1. Plan Inputs'!J39 -> 0 | K24: 0 | L24: 0 | M24: 0 | N24: 0 | O24: 0 | Q24: Urgent Care: | R24: ='1. Plan Inputs'!M39 -> 70 | S24: 70 | T24: 70 | U24: 70 | V24: 70 | W24: 70 | Y24: Urgent Care: | Z24: ='1. Plan Inputs'!P39 -> 45 | AA24: 45 | AB24: 45 | AC24: 45 | AD24: 45 | AE24: 45 | AG24: Urgent Care: | AH24: ='1. Plan Inputs'!S39 -> 50 | AI24: 50 | AJ24: 50 | AK24: 50 | AL24: 50 | AM24: 50 | AO24: Urgent Care: | AP24: ='1. Plan Inputs'!V39 -> 0 | AQ24: 0 | AR24: 0 | AS24: 0 | AT24: 0 | AU24: 0
A25: PCP Office Visit Copay: | B25: ='1. Plan Inputs'!G42 -> 30 | C25: 30 | D25: 30 | E25: 30 | F25: 30 | G25: 30 | I25: PCP Office Visit Copay: | J25: ='1. Plan Inputs'!J42 -> 0 | K25: 0 | L25: 0 | M25: 0 | N25: 0 | O25: 0 | Q25: PCP Office Visit Copay: | R25: ='1. Plan Inputs'!M42 -> 40 | S25: 40 | T25: 40 | U25: 40 | V25: 40 | W25: 40 | Y25: PCP Office Visit Copay: | Z25: ='1. Plan Inputs'!P42 -> 15 | AA25: 15 | AB25: 15 | AC25: 15 | AD25: 15 | AE25: 15 | AG25: PCP Office Visit Copay: | AH25: ='1. Plan Inputs'!S42 -> 30 | AI25: 30 | AJ25: 30 | AK25: 30 | AL25: 30 | AM25: 30 | AO25: PCP Office Visit Copay: | AP25: ='1. Plan Inputs'!V42 -> 0 | AQ25: 0 | AR25: 0 | AS25: 0 | AT25: 0 | AU25: 0
A26: Specialist Office Visit Copay: | B26: ='1. Plan Inputs'!G43 -> 50 | C26: 50 | D26: 50 | E26: 50 | F26: 50 | G26: 50 | I26: Specialist Office Visit Copay: | J26: ='1. Plan Inputs'!J43 -> 0 | K26: 0 | L26: 0 | M26: 0 | N26: 0 | O26: 0 | Q26: Specialist Office Visit Copay: | R26: ='1. Plan Inputs'!M43 -> 70 | S26: 70 | T26: 70 | U26: 70 | V26: 70 | W26: 70 | Y26: Specialist Office Visit Copay: | Z26: ='1. Plan Inputs'!P43 -> 45 | AA26: 45 | AB26: 45 | AC26: 45 | AD26: 45 | AE26: 45 | AG26: Specialist Office Visit Copay: | AH26: ='1. Plan Inputs'!S43 -> 50 | AI26: 50 | AJ26: 50 | AK26: 50 | AL26: 50 | AM26: 50 | AO26: Specialist Office Visit Copay: | AP26: ='1. Plan Inputs'!V43 -> 0 | AQ26: 0 | AR26: 0 | AS26: 0 | AT26: 0 | AU26: 0
A27: Chiropractor Copay: | B27: ='1. Plan Inputs'!G44 -> 30 | C27: 30 | D27: 30 | E27: 30 | F27: 30 | G27: 30 | I27: Chiropractor Copay: | J27: ='1. Plan Inputs'!J44 -> 0 | K27: 0 | L27: 0 | M27: 0 | N27: 0 | O27: 0 | Q27: Chiropractor Copay: | R27: ='1. Plan Inputs'!M44 -> 40 | S27: 40 | T27: 40 | U27: 40 | V27: 40 | W27: 40 | Y27: Chiropractor Copay: | Z27: ='1. Plan Inputs'!P44 -> 20 | AA27: 20 | AB27: 20 | AC27: 20 | AD27: 20 | AE27: 20 | AG27: Chiropractor Copay: | AH27: ='1. Plan Inputs'!S44 -> 30 | AI27: 30 | AJ27: 30 | AK27: 30 | AL27: 30 | AM27: 30 | AO27: Chiropractor Copay: | AP27: ='1. Plan Inputs'!V44 -> 0 | AQ27: 0 | AR27: 0 | AS27: 0 | AT27: 0 | AU27: 0
A28: Rx Generic (Retail): | B28: ='1. Plan Inputs'!F53 -> 15 | C28: 15 | D28: 15 | E28: 15 | F28: 15 | G28: 15 | I28: Rx Generic (Retail): | J28: ='1. Plan Inputs'!I53 -> 0 | K28: 0 | L28: 0 | M28: 0 | N28: 0 | O28: 0 | Q28: Rx Generic (Retail): | R28: ='1. Plan Inputs'!L53 -> 15 | S28: 15 | T28: 15 | U28: 15 | V28: 15 | W28: 15 | Y28: Rx Generic (Retail): | Z28: ='1. Plan Inputs'!O53 -> 15 | AA28: 15 | AB28: 15 | AC28: 15 | AD28: 15 | AE28: 15 | AG28: Rx Generic (Retail): | AH28: ='1. Plan Inputs'!R53 -> 15 | AI28: 15 | AJ28: 15 | AK28: 15 | AL28: 15 | AM28: 15 | AO28: Rx Generic (Retail): | AP28: ='1. Plan Inputs'!U53 -> 0 | AQ28: 0 | AR28: 0 | AS28: 0 | AT28: 0 | AU28: 0
A29: Rx Brand Formulary (Retail): | B29: ='1. Plan Inputs'!F54 -> 50 | C29: 50 | D29: 50 | E29: 50 | F29: 50 | G29: 50 | I29: Rx Brand Formulary (Retail): | J29: ='1. Plan Inputs'!I54 -> 0 | K29: 0 | L29: 0 | M29: 0 | N29: 0 | O29: 0 | Q29: Rx Brand Formulary (Retail): | R29: ='1. Plan Inputs'!L54 -> 50 | S29: 50 | T29: 50 | U29: 50 | V29: 50 | W29: 50 | Y29: Rx Brand Formulary (Retail): | Z29: ='1. Plan Inputs'!O54 -> 40 | AA29: 40 | AB29: 40 | AC29: 40 | AD29: 40 | AE29: 40 | AG29: Rx Brand Formulary (Retail): | AH29: ='1. Plan Inputs'!R54 -> 30 | AI29: 30 | AJ29: 30 | AK29: 30 | AL29: 30 | AM29: 30 | AO29: Rx Brand Formulary (Retail): | AP29: ='1. Plan Inputs'!U54 -> 0 | AQ29: 0 | AR29: 0 | AS29: 0 | AT29: 0 | AU29: 0
A30: Rx Brand Non-Formulary (Retail): | B30: ='1. Plan Inputs'!F55 -> 80 | C30: 80 | D30: 80 | E30: 80 | F30: 80 | G30: 80 | I30: Rx Brand Non-Formulary (Retail): | J30: ='1. Plan Inputs'!I55 -> 0 | K30: 0 | L30: 0 | M30: 0 | N30: 0 | O30: 0 | Q30: Rx Brand Non-Formulary (Retail): | R30: ='1. Plan Inputs'!L55 -> 80 | S30: 80 | T30: 80 | U30: 80 | V30: 80 | W30: 80 | Y30: Rx Brand Non-Formulary (Retail): | Z30: ='1. Plan Inputs'!O55 -> 60 | AA30: 60 | AB30: 60 | AC30: 60 | AD30: 60 | AE30: 60 | AG30: Rx Brand Non-Formulary (Retail): | AH30: ='1. Plan Inputs'!R55 -> 30 | AI30: 30 | AJ30: 30 | AK30: 30 | AL30: 30 | AM30: 30 | AO30: Rx Brand Non-Formulary (Retail): | AP30: ='1. Plan Inputs'!U55 -> 0 | AQ30: 0 | AR30: 0 | AS30: 0 | AT30: 0 | AU30: 0
A31: Rx Specialty (Retail): | B31: ='1. Plan Inputs'!F56 -> 100 | C31: =B31 -> 100 | D31: =C31 -> 100 | E31: =D31 -> 100 | F31: =E31 -> 100 | G31: =F31 -> 100 | I31: Rx Specialty (Retail): | J31: ='1. Plan Inputs'!I56 -> 0 | K31: 0 | L31: 0 | M31: 0 | N31: 0 | O31: 0 | Q31: Rx Specialty (Retail): | R31: ='1. Plan Inputs'!L56 -> 100 | S31: 100 | T31: 100 | U31: 100 | V31: 100 | W31: 100 | Y31: Rx Specialty (Retail): | Z31: ='1. Plan Inputs'!O56 -> 250 | AA31: 250 | AB31: 250 | AC31: 250 | AD31: 250 | AE31: 250 | AG31: Rx Specialty (Retail): | AH31: ='1. Plan Inputs'!R56 -> 100 | AI31: 100 | AJ31: 100 | AK31: 100 | AL31: 100 | AM31: 100 | AO31: Rx Specialty (Retail): | AP31: ='1. Plan Inputs'!U56 -> 0 | AQ31: 0 | AR31: 0 | AS31: 0 | AT31: 0 | AU31: 0
A32: Rx Generic (Mail): | B32: ='1. Plan Inputs'!F57 -> 15 | C32: 15 | D32: 15 | E32: 15 | F32: 15 | G32: 15 | I32: Rx Generic (Mail): | J32: ='1. Plan Inputs'!I57 -> 0 | K32: 0 | L32: 0 | M32: 0 | N32: 0 | O32: 0 | Q32: Rx Generic (Mail): | R32: ='1. Plan Inputs'!L57 -> 15 | S32: 15 | T32: 15 | U32: 15 | V32: 15 | W32: 15 | Y32: Rx Generic (Mail): | Z32: ='1. Plan Inputs'!O57 -> 15 | AA32: 15 | AB32: 15 | AC32: 15 | AD32: 15 | AE32: 15 | AG32: Rx Generic (Mail): | AH32: ='1. Plan Inputs'!R57 -> 30 | AI32: 30 | AJ32: 30 | AK32: 30 | AL32: 30 | AM32: 30 | AO32: Rx Generic (Mail): | AP32: ='1. Plan Inputs'!U57 -> 0 | AQ32: 0 | AR32: 0 | AS32: 0 | AT32: 0 | AU32: 0
A33: Rx Brand Formulary (Mail): | B33: ='1. Plan Inputs'!F58 -> 100 | C33: 100 | D33: 100 | E33: 100 | F33: 100 | G33: 100 | I33: Rx Brand Formulary (Mail): | J33: ='1. Plan Inputs'!I58 -> 0 | K33: 0 | L33: 0 | M33: 0 | N33: 0 | O33: 0 | Q33: Rx Brand Formulary (Mail): | R33: ='1. Plan Inputs'!L58 -> 100 | S33: 100 | T33: 100 | U33: 100 | V33: 100 | W33: 100 | Y33: Rx Brand Formulary (Mail): | Z33: ='1. Plan Inputs'!O58 -> 80 | AA33: 80 | AB33: 80 | AC33: 80 | AD33: 80 | AE33: 80 | AG33: Rx Brand Formulary (Mail): | AH33: ='1. Plan Inputs'!R58 -> 60 | AI33: 60 | AJ33: 60 | AK33: 60 | AL33: 60 | AM33: 60 | AO33: Rx Brand Formulary (Mail): | AP33: ='1. Plan Inputs'!U58 -> 0 | AQ33: 0 | AR33: 0 | AS33: 0 | AT33: 0 | AU33: 0
A34: Rx Brand Non-Formulary (Mail): | B34: ='1. Plan Inputs'!F59 -> 160 | C34: 160 | D34: 160 | E34: 160 | F34: 160 | G34: 160 | I34: Rx Brand Non-Formulary (Mail): | J34: ='1. Plan Inputs'!I59 -> 0 | K34: 0 | L34: 0 | M34: 0 | N34: 0 | O34: 0 | Q34: Rx Brand Non-Formulary (Mail): | R34: ='1. Plan Inputs'!L59 -> 160 | S34: 160 | T34: 160 | U34: 160 | V34: 160 | W34: 160 | Y34: Rx Brand Non-Formulary (Mail): | Z34: ='1. Plan Inputs'!O59 -> 120 | AA34: 120 | AB34: 120 | AC34: 120 | AD34: 120 | AE34: 120 | AG34: Rx Brand Non-Formulary (Mail): | AH34: ='1. Plan Inputs'!R59 -> 60 | AI34: 60 | AJ34: 60 | AK34: 60 | AL34: 60 | AM34: 60 | AO34: Rx Brand Non-Formulary (Mail): | AP34: ='1. Plan Inputs'!U59 -> 0 | AQ34: 0 | AR34: 0 | AS34: 0 | AT34: 0 | AU34: 0
A35: Rx Specialty (Mail): | B35: ='1. Plan Inputs'!F60 -> 200 | C35: 200 | D35: 200 | E35: 200 | F35: 200 | G35: 200 | I35: Rx Specialty (Mail): | J35: ='1. Plan Inputs'!I60 -> 0 | K35: 0 | L35: 0 | M35: 0 | N35: 0 | O35: 0 | Q35: Rx Specialty (Mail): | R35: ='1. Plan Inputs'!L60 -> 200 | S35: 200 | T35: 200 | U35: 200 | V35: 200 | W35: 200 | Y35: Rx Specialty (Mail): | Z35: ='1. Plan Inputs'!O60 -> 500 | AA35: 500 | AB35: 500 | AC35: 500 | AD35: 500 | AE35: 500 | AG35: Rx Specialty (Mail): | AH35: ='1. Plan Inputs'!R60 -> 100 | AI35: 100 | AJ35: 100 | AK35: 100 | AL35: 100 | AM35: 100 | AO35: Rx Specialty (Mail): | AP35: ='1. Plan Inputs'!U60 -> 0 | AQ35: 0 | AR35: 0 | AS35: 0 | AT35: 0 | AU35: 0
A37: Number of Services: | I37: Number of Services: | Q37: Number of Services: | Y37: Number of Services: | AG37: Number of Services: | AO37: Number of Services:
A38: Preventive Visits: | B38: =Calculator!C23 -> 0 | C38: =Calculator!D23 -> 0 | D38: =Calculator!E23 -> 0 | E38: =Calculator!F23 -> 0 | F38: =Calculator!G23 -> 0 | G38: =Calculator!H23 -> 0 | I38: Preventive Visits: | J38: =Calculator!C23 -> 0 | K38: =Calculator!D23 -> 0 | L38: =Calculator!E23 -> 0 | M38: =Calculator!F23 -> 0 | N38: =Calculator!G23 -> 0 | O38: =Calculator!H23 -> 0 | Q38: Preventive Visits: | R38: =Calculator!C23 -> 0 | S38: =Calculator!D23 -> 0 | T38: =Calculator!E23 -> 0 | U38: =Calculator!F23 -> 0 | V38: =Calculator!G23 -> 0 | W38: =Calculator!H23 -> 0 | Y38: Preventive Visits: | Z38: =Calculator!C23 -> 0 | AA38: =Calculator!D23 -> 0 | AB38: =Calculator!E23 -> 0 | AC38: =Calculator!F23 -> 0 | AD38: =Calculator!G23 -> 0 | AE38: =Calculator!H23 -> 0 | AG38: Preventive Visits: | AH38: =Calculator!C23 -> 0 | AI38: =Calculator!D23 -> 0 | AJ38: =Calculator!E23 -> 0 | AK38: =Calculator!F23 -> 0 | AL38: =Calculator!G23 -> 0 | AM38: =Calculator!H23 -> 0 | AO38: Preventive Visits: | AP38: =Calculator!C23 -> 0 | AQ38: =Calculator!D23 -> 0 | AR38: =Calculator!E23 -> 0 | AS38: =Calculator!F23 -> 0 | AT38: =Calculator!G23 -> 0 | AU38: =Calculator!H23 -> 0
A39: Hospitalizations: | B39: =Calculator!C24 -> 0 | C39: =Calculator!D24 -> 0 | D39: =Calculator!E24 -> 0 | E39: =Calculator!F24 -> 0 | F39: =Calculator!G24 -> 0 | G39: =Calculator!H24 -> 0 | I39: Hospitalizations: | J39: =Calculator!C24 -> 0 | K39: =Calculator!D24 -> 0 | L39: =Calculator!E24 -> 0 | M39: =Calculator!F24 -> 0 | N39: =Calculator!G24 -> 0 | O39: =Calculator!H24 -> 0 | Q39: Hospitalizations: | R39: =Calculator!C24 -> 0 | S39: =Calculator!D24 -> 0 | T39: =Calculator!E24 -> 0 | U39: =Calculator!F24 -> 0 | V39: =Calculator!G24 -> 0 | W39: =Calculator!H24 -> 0 | Y39: Hospitalizations: | Z39: =Calculator!C24 -> 0 | AA39: =Calculator!D24 -> 0 | AB39: =Calculator!E24 -> 0 | AC39: =Calculator!F24 -> 0 | AD39: =Calculator!G24 -> 0 | AE39: =Calculator!H24 -> 0 | AG39: Hospitalizations: | AH39: =Calculator!C24 -> 0 | AI39: =Calculator!D24 -> 0 | AJ39: =Calculator!E24 -> 0 | AK39: =Calculator!F24 -> 0 | AL39: =Calculator!G24 -> 0 | AM39: =Calculator!H24 -> 0 | AO39: Hospitalizations: | AP39: =Calculator!C24 -> 0 | AQ39: =Calculator!D24 -> 0 | AR39: =Calculator!E24 -> 0 | AS39: =Calculator!F24 -> 0 | AT39: =Calculator!G24 -> 0 | AU39: =Calculator!H24 -> 0
A40: Outpatient Services: | B40: =Calculator!C25 -> 0 | C40: =Calculator!D25 -> 0 | D40: =Calculator!E25 -> 0 | E40: =Calculator!F25 -> 0 | F40: =Calculator!G25 -> 0 | G40: =Calculator!H25 -> 0 | I40: Outpatient Services: | J40: =Calculator!C25 -> 0 | K40: =Calculator!D25 -> 0 | L40: =Calculator!E25 -> 0 | M40: =Calculator!F25 -> 0 | N40: =Calculator!G25 -> 0 | O40: =Calculator!H25 -> 0 | Q40: Outpatient Services: | R40: =Calculator!C25 -> 0 | S40: =Calculator!D25 -> 0 | T40: =Calculator!E25 -> 0 | U40: =Calculator!F25 -> 0 | V40: =Calculator!G25 -> 0 | W40: =Calculator!H25 -> 0 | Y40: Outpatient Services: | Z40: =Calculator!C25 -> 0 | AA40: =Calculator!D25 -> 0 | AB40: =Calculator!E25 -> 0 | AC40: =Calculator!F25 -> 0 | AD40: =Calculator!G25 -> 0 | AE40: =Calculator!H25 -> 0 | AG40: Outpatient Services: | AH40: =Calculator!C25 -> 0 | AI40: =Calculator!D25 -> 0 | AJ40: =Calculator!E25 -> 0 | AK40: =Calculator!F25 -> 0 | AL40: =Calculator!G25 -> 0 | AM40: =Calculator!H25 -> 0 | AO40: Outpatient Services: | AP40: =Calculator!C25 -> 0 | AQ40: =Calculator!D25 -> 0 | AR40: =Calculator!E25 -> 0 | AS40: =Calculator!F25 -> 0 | AT40: =Calculator!G25 -> 0 | AU40: =Calculator!H25 -> 0
A41: Lab/X-Ray/Radiology Services: | B41: =Calculator!C26 -> 0 | C41: =Calculator!D26 -> 0 | D41: =Calculator!E26 -> 0 | E41: =Calculator!F26 -> 0 | F41: =Calculator!G26 -> 0 | G41: =Calculator!H26 -> 0 | I41: Lab/X-Ray/Radiology Services: | J41: =Calculator!C26 -> 0 | K41: =Calculator!D26 -> 0 | L41: =Calculator!E26 -> 0 | M41: =Calculator!F26 -> 0 | N41: =Calculator!G26 -> 0 | O41: =Calculator!H26 -> 0 | Q41: Lab/X-Ray/Radiology Services: | R41: =Calculator!C26 -> 0 | S41: =Calculator!D26 -> 0 | T41: =Calculator!E26 -> 0 | U41: =Calculator!F26 -> 0 | V41: =Calculator!G26 -> 0 | W41: =Calculator!H26 -> 0 | Y41: Lab/X-Ray/Radiology Services: | Z41: =Calculator!C26 -> 0 | AA41: =Calculator!D26 -> 0 | AB41: =Calculator!E26 -> 0 | AC41: =Calculator!F26 -> 0 | AD41: =Calculator!G26 -> 0 | AE41: =Calculator!H26 -> 0 | AG41: Lab/X-Ray/Radiology Services: | AH41: =Calculator!C26 -> 0 | AI41: =Calculator!D26 -> 0 | AJ41: =Calculator!E26 -> 0 | AK41: =Calculator!F26 -> 0 | AL41: =Calculator!G26 -> 0 | AM41: =Calculator!H26 -> 0 | AO41: Lab/X-Ray/Radiology Services: | AP41: =Calculator!C26 -> 0 | AQ41: =Calculator!D26 -> 0 | AR41: =Calculator!E26 -> 0 | AS41: =Calculator!F26 -> 0 | AT41: =Calculator!G26 -> 0 | AU41: =Calculator!H26 -> 0
A42: Emergency Room Visits: | B42: =Calculator!C27 -> 0 | C42: =Calculator!D27 -> 0 | D42: =Calculator!E27 -> 0 | E42: =Calculator!F27 -> 0 | F42: =Calculator!G27 -> 0 | G42: =Calculator!H27 -> 0 | I42: Emergency Room Visits: | J42: =Calculator!C27 -> 0 | K42: =Calculator!D27 -> 0 | L42: =Calculator!E27 -> 0 | M42: =Calculator!F27 -> 0 | N42: =Calculator!G27 -> 0 | O42: =Calculator!H27 -> 0 | Q42: Emergency Room Visits: | R42: =Calculator!C27 -> 0 | S42: =Calculator!D27 -> 0 | T42: =Calculator!E27 -> 0 | U42: =Calculator!F27 -> 0 | V42: =Calculator!G27 -> 0 | W42: =Calculator!H27 -> 0 | Y42: Emergency Room Visits: | Z42: =Calculator!C27 -> 0 | AA42: =Calculator!D27 -> 0 | AB42: =Calculator!E27 -> 0 | AC42: =Calculator!F27 -> 0 | AD42: =Calculator!G27 -> 0 | AE42: =Calculator!H27 -> 0 | AG42: Emergency Room Visits: | AH42: =Calculator!C27 -> 0 | AI42: =Calculator!D27 -> 0 | AJ42: =Calculator!E27 -> 0 | AK42: =Calculator!F27 -> 0 | AL42: =Calculator!G27 -> 0 | AM42: =Calculator!H27 -> 0 | AO42: Emergency Room Visits: | AP42: =Calculator!C27 -> 0 | AQ42: =Calculator!D27 -> 0 | AR42: =Calculator!E27 -> 0 | AS42: =Calculator!F27 -> 0 | AT42: =Calculator!G27 -> 0 | AU42: =Calculator!H27 -> 0
A43: Urgent Care: | B43: =Calculator!C28 -> 0 | C43: =Calculator!D28 -> 0 | D43: =Calculator!E28 -> 0 | E43: =Calculator!F28 -> 0 | F43: =Calculator!G28 -> 0 | G43: =Calculator!H28 -> 0 | I43: Urgent Care: | J43: =Calculator!C28 -> 0 | K43: =Calculator!D28 -> 0 | L43: =Calculator!E28 -> 0 | M43: =Calculator!F28 -> 0 | N43: =Calculator!G28 -> 0 | O43: =Calculator!H28 -> 0 | Q43: Urgent Care: | R43: =Calculator!C28 -> 0 | S43: =Calculator!D28 -> 0 | T43: =Calculator!E28 -> 0 | U43: =Calculator!F28 -> 0 | V43: =Calculator!G28 -> 0 | W43: =Calculator!H28 -> 0 | Y43: Urgent Care: | Z43: =Calculator!C28 -> 0 | AA43: =Calculator!D28 -> 0 | AB43: =Calculator!E28 -> 0 | AC43: =Calculator!F28 -> 0 | AD43: =Calculator!G28 -> 0 | AE43: =Calculator!H28 -> 0 | AG43: Urgent Care: | AH43: =Calculator!C28 -> 0 | AI43: =Calculator!D28 -> 0 | AJ43: =Calculator!E28 -> 0 | AK43: =Calculator!F28 -> 0 | AL43: =Calculator!G28 -> 0 | AM43: =Calculator!H28 -> 0 | AO43: Urgent Care: | AP43: =Calculator!C28 -> 0 | AQ43: =Calculator!D28 -> 0 | AR43: =Calculator!E28 -> 0 | AS43: =Calculator!F28 -> 0 | AT43: =Calculator!G28 -> 0 | AU43: =Calculator!H28 -> 0
A44: PCP Office Visits: | B44: =Calculator!C29 -> 0 | C44: =Calculator!D29 -> 0 | D44: =Calculator!E29 -> 0 | E44: =Calculator!F29 -> 0 | F44: =Calculator!G29 -> 0 | G44: =Calculator!H29 -> 0 | I44: PCP Office Visits: | J44: =Calculator!C29 -> 0 | K44: =Calculator!D29 -> 0 | L44: =Calculator!E29 -> 0 | M44: =Calculator!F29 -> 0 | N44: =Calculator!G29 -> 0 | O44: =Calculator!H29 -> 0 | Q44: PCP Office Visits: | R44: =Calculator!C29 -> 0 | S44: =Calculator!D29 -> 0 | T44: =Calculator!E29 -> 0 | U44: =Calculator!F29 -> 0 | V44: =Calculator!G29 -> 0 | W44: =Calculator!H29 -> 0 | Y44: PCP Office Visits: | Z44: =Calculator!C29 -> 0 | AA44: =Calculator!D29 -> 0 | AB44: =Calculator!E29 -> 0 | AC44: =Calculator!F29 -> 0 | AD44: =Calculator!G29 -> 0 | AE44: =Calculator!H29 -> 0 | AG44: PCP Office Visits: | AH44: =Calculator!C29 -> 0 | AI44: =Calculator!D29 -> 0 | AJ44: =Calculator!E29 -> 0 | AK44: =Calculator!F29 -> 0 | AL44: =Calculator!G29 -> 0 | AM44: =Calculator!H29 -> 0 | AO44: PCP Office Visits: | AP44: =Calculator!C29 -> 0 | AQ44: =Calculator!D29 -> 0 | AR44: =Calculator!E29 -> 0 | AS44: =Calculator!F29 -> 0 | AT44: =Calculator!G29 -> 0 | AU44: =Calculator!H29 -> 0
A45: Specialist Office Visits: | B45: =Calculator!C30 -> 0 | C45: =Calculator!D30 -> 0 | D45: =Calculator!E30 -> 0 | E45: =Calculator!F30 -> 0 | F45: =Calculator!G30 -> 0 | G45: =Calculator!H30 -> 0 | I45: Specialist Office Visits: | J45: =Calculator!C30 -> 0 | K45: =Calculator!D30 -> 0 | L45: =Calculator!E30 -> 0 | M45: =Calculator!F30 -> 0 | N45: =Calculator!G30 -> 0 | O45: =Calculator!H30 -> 0 | Q45: Specialist Office Visits: | R45: =Calculator!C30 -> 0 | S45: =Calculator!D30 -> 0 | T45: =Calculator!E30 -> 0 | U45: =Calculator!F30 -> 0 | V45: =Calculator!G30 -> 0 | W45: =Calculator!H30 -> 0 | Y45: Specialist Office Visits: | Z45: =Calculator!C30 -> 0 | AA45: =Calculator!D30 -> 0 | AB45: =Calculator!E30 -> 0 | AC45: =Calculator!F30 -> 0 | AD45: =Calculator!G30 -> 0 | AE45: =Calculator!H30 -> 0 | AG45: Specialist Office Visits: | AH45: =Calculator!C30 -> 0 | AI45: =Calculator!D30 -> 0 | AJ45: =Calculator!E30 -> 0 | AK45: =Calculator!F30 -> 0 | AL45: =Calculator!G30 -> 0 | AM45: =Calculator!H30 -> 0 | AO45: Specialist Office Visits: | AP45: =Calculator!C30 -> 0 | AQ45: =Calculator!D30 -> 0 | AR45: =Calculator!E30 -> 0 | AS45: =Calculator!F30 -> 0 | AT45: =Calculator!G30 -> 0 | AU45: =Calculator!H30 -> 0
A46: Chiropractor Vists: | B46: =Calculator!C31 -> 0 | C46: =Calculator!D31 -> 0 | D46: =Calculator!E31 -> 0 | E46: =Calculator!F31 -> 0 | F46: =Calculator!G31 -> 0 | G46: =Calculator!H31 -> 0 | I46: Chiropractor Vists: | J46: =Calculator!C31 -> 0 | K46: =Calculator!D31 -> 0 | L46: =Calculator!E31 -> 0 | M46: =Calculator!F31 -> 0 | N46: =Calculator!G31 -> 0 | O46: =Calculator!H31 -> 0 | Q46: Chiropractor Vists: | R46: =Calculator!C31 -> 0 | S46: =Calculator!D31 -> 0 | T46: =Calculator!E31 -> 0 | U46: =Calculator!F31 -> 0 | V46: =Calculator!G31 -> 0 | W46: =Calculator!H31 -> 0 | Y46: Chiropractor Vists: | Z46: =Calculator!C31 -> 0 | AA46: =Calculator!D31 -> 0 | AB46: =Calculator!E31 -> 0 | AC46: =Calculator!F31 -> 0 | AD46: =Calculator!G31 -> 0 | AE46: =Calculator!H31 -> 0 | AG46: Chiropractor Vists: | AH46: =Calculator!C31 -> 0 | AI46: =Calculator!D31 -> 0 | AJ46: =Calculator!E31 -> 0 | AK46: =Calculator!F31 -> 0 | AL46: =Calculator!G31 -> 0 | AM46: =Calculator!H31 -> 0 | AO46: Chiropractor Vists: | AP46: =Calculator!C31 -> 0 | AQ46: =Calculator!D31 -> 0 | AR46: =Calculator!E31 -> 0 | AS46: =Calculator!F31 -> 0 | AT46: =Calculator!G31 -> 0 | AU46: =Calculator!H31 -> 0
A47: Rx Generic (Retail): | B47: =Calculator!C32 -> 0 | C47: =Calculator!D32 -> 0 | D47: =Calculator!E32 -> 0 | E47: =Calculator!F32 -> 0 | F47: =Calculator!G32 -> 0 | G47: =Calculator!H32 -> 0 | I47: Rx Generic (Retail): | J47: =Calculator!C32 -> 0 | K47: =Calculator!D32 -> 0 | L47: =Calculator!E32 -> 0 | M47: =Calculator!F32 -> 0 | N47: =Calculator!G32 -> 0 | O47: =Calculator!H32 -> 0 | Q47: Rx Generic (Retail): | R47: =Calculator!C32 -> 0 | S47: =Calculator!D32 -> 0 | T47: =Calculator!E32 -> 0 | U47: =Calculator!F32 -> 0 | V47: =Calculator!G32 -> 0 | W47: =Calculator!H32 -> 0 | Y47: Rx Generic (Retail): | Z47: =Calculator!C32 -> 0 | AA47: =Calculator!D32 -> 0 | AB47: =Calculator!E32 -> 0 | AC47: =Calculator!F32 -> 0 | AD47: =Calculator!G32 -> 0 | AE47: =Calculator!H32 -> 0 | AG47: Rx Generic (Retail): | AH47: =Calculator!C32 -> 0 | AI47: =Calculator!D32 -> 0 | AJ47: =Calculator!E32 -> 0 | AK47: =Calculator!F32 -> 0 | AL47: =Calculator!G32 -> 0 | AM47: =Calculator!H32 -> 0 | AO47: Rx Generic (Retail): | AP47: =Calculator!C32 -> 0 | AQ47: =Calculator!D32 -> 0 | AR47: =Calculator!E32 -> 0 | AS47: =Calculator!F32 -> 0 | AT47: =Calculator!G32 -> 0 | AU47: =Calculator!H32 -> 0
A48: Rx Brand Formulary (Retail): | B48: =Calculator!C33 -> 0 | C48: =Calculator!D33 -> 0 | D48: =Calculator!E33 -> 0 | E48: =Calculator!F33 -> 0 | F48: =Calculator!G33 -> 0 | G48: =Calculator!H33 -> 0 | I48: Rx Brand Formulary (Retail): | J48: =Calculator!C33 -> 0 | K48: =Calculator!D33 -> 0 | L48: =Calculator!E33 -> 0 | M48: =Calculator!F33 -> 0 | N48: =Calculator!G33 -> 0 | O48: =Calculator!H33 -> 0 | Q48: Rx Brand Formulary (Retail): | R48: =Calculator!C33 -> 0 | S48: =Calculator!D33 -> 0 | T48: =Calculator!E33 -> 0 | U48: =Calculator!F33 -> 0 | V48: =Calculator!G33 -> 0 | W48: =Calculator!H33 -> 0 | Y48: Rx Brand Formulary (Retail): | Z48: =Calculator!C33 -> 0 | AA48: =Calculator!D33 -> 0 | AB48: =Calculator!E33 -> 0 | AC48: =Calculator!F33 -> 0 | AD48: =Calculator!G33 -> 0 | AE48: =Calculator!H33 -> 0 | AG48: Rx Brand Formulary (Retail): | AH48: =Calculator!C33 -> 0 | AI48: =Calculator!D33 -> 0 | AJ48: =Calculator!E33 -> 0 | AK48: =Calculator!F33 -> 0 | AL48: =Calculator!G33 -> 0 | AM48: =Calculator!H33 -> 0 | AO48: Rx Brand Formulary (Retail): | AP48: =Calculator!C33 -> 0 | AQ48: =Calculator!D33 -> 0 | AR48: =Calculator!E33 -> 0 | AS48: =Calculator!F33 -> 0 | AT48: =Calculator!G33 -> 0 | AU48: =Calculator!H33 -> 0
A49: Rx Brand Non-Formulary (Retail): | B49: =Calculator!C34 -> 0 | C49: =Calculator!D34 -> 0 | D49: =Calculator!E34 -> 0 | E49: =Calculator!F34 -> 0 | F49: =Calculator!G34 -> 0 | G49: =Calculator!H34 -> 0 | I49: Rx Brand Non-Formulary (Retail): | J49: =Calculator!C34 -> 0 | K49: =Calculator!D34 -> 0 | L49: =Calculator!E34 -> 0 | M49: =Calculator!F34 -> 0 | N49: =Calculator!G34 -> 0 | O49: =Calculator!H34 -> 0 | Q49: Rx Brand Non-Formulary (Retail): | R49: =Calculator!C34 -> 0 | S49: =Calculator!D34 -> 0 | T49: =Calculator!E34 -> 0 | U49: =Calculator!F34 -> 0 | V49: =Calculator!G34 -> 0 | W49: =Calculator!H34 -> 0 | Y49: Rx Brand Non-Formulary (Retail): | Z49: =Calculator!C34 -> 0 | AA49: =Calculator!D34 -> 0 | AB49: =Calculator!E34 -> 0 | AC49: =Calculator!F34 -> 0 | AD49: =Calculator!G34 -> 0 | AE49: =Calculator!H34 -> 0 | AG49: Rx Brand Non-Formulary (Retail): | AH49: =Calculator!C34 -> 0 | AI49: =Calculator!D34 -> 0 | AJ49: =Calculator!E34 -> 0 | AK49: =Calculator!F34 -> 0 | AL49: =Calculator!G34 -> 0 | AM49: =Calculator!H34 -> 0 | AO49: Rx Brand Non-Formulary (Retail): | AP49: =Calculator!C34 -> 0 | AQ49: =Calculator!D34 -> 0 | AR49: =Calculator!E34 -> 0 | AS49: =Calculator!F34 -> 0 | AT49: =Calculator!G34 -> 0 | AU49: =Calculator!H34 -> 0
A50: Rx Specialty (Retail): | B50: =Calculator!C35 -> 0 | C50: =Calculator!D35 -> 0 | D50: =Calculator!E35 -> 0 | E50: =Calculator!F35 -> 0 | F50: =Calculator!G35 -> 0 | G50: =Calculator!H35 -> 0 | I50: Rx Specialty (Retail): | J50: =Calculator!C35 -> 0 | K50: =Calculator!D35 -> 0 | L50: =Calculator!E35 -> 0 | M50: =Calculator!F35 -> 0 | N50: =Calculator!G35 -> 0 | O50: =Calculator!H35 -> 0 | Q50: Rx Specialty (Retail): | R50: =Calculator!C35 -> 0 | S50: =Calculator!D35 -> 0 | T50: =Calculator!E35 -> 0 | U50: =Calculator!F35 -> 0 | V50: =Calculator!G35 -> 0 | W50: =Calculator!H35 -> 0 | Y50: Rx Specialty (Retail): | Z50: =Calculator!C35 -> 0 | AA50: =Calculator!D35 -> 0 | AB50: =Calculator!E35 -> 0 | AC50: =Calculator!F35 -> 0 | AD50: =Calculator!G35 -> 0 | AE50: =Calculator!H35 -> 0 | AG50: Rx Specialty (Retail): | AH50: =Calculator!C35 -> 0 | AI50: =Calculator!D35 -> 0 | AJ50: =Calculator!E35 -> 0 | AK50: =Calculator!F35 -> 0 | AL50: =Calculator!G35 -> 0 | AM50: =Calculator!H35 -> 0 | AO50: Rx Specialty (Retail): | AP50: =Calculator!C35 -> 0 | AQ50: =Calculator!D35 -> 0 | AR50: =Calculator!E35 -> 0 | AS50: =Calculator!F35 -> 0 | AT50: =Calculator!G35 -> 0 | AU50: =Calculator!H35 -> 0
A51: Rx Generic (Mail): | B51: =Calculator!C36 -> 0 | C51: =Calculator!D36 -> 0 | D51: =Calculator!E36 -> 0 | E51: =Calculator!F36 -> 0 | F51: =Calculator!G36 -> 0 | G51: =Calculator!H36 -> 0 | I51: Rx Generic (Mail): | J51: =Calculator!C36 -> 0 | K51: =Calculator!D36 -> 0 | L51: =Calculator!E36 -> 0 | M51: =Calculator!F36 -> 0 | N51: =Calculator!G36 -> 0 | O51: =Calculator!H36 -> 0 | Q51: Rx Generic (Mail): | R51: =Calculator!C36 -> 0 | S51: =Calculator!D36 -> 0 | T51: =Calculator!E36 -> 0 | U51: =Calculator!F36 -> 0 | V51: =Calculator!G36 -> 0 | W51: =Calculator!H36 -> 0 | Y51: Rx Generic (Mail): | Z51: =Calculator!C36 -> 0 | AA51: =Calculator!D36 -> 0 | AB51: =Calculator!E36 -> 0 | AC51: =Calculator!F36 -> 0 | AD51: =Calculator!G36 -> 0 | AE51: =Calculator!H36 -> 0 | AG51: Rx Generic (Mail): | AH51: =Calculator!C36 -> 0 | AI51: =Calculator!D36 -> 0 | AJ51: =Calculator!E36 -> 0 | AK51: =Calculator!F36 -> 0 | AL51: =Calculator!G36 -> 0 | AM51: =Calculator!H36 -> 0 | AO51: Rx Generic (Mail): | AP51: =Calculator!C36 -> 0 | AQ51: =Calculator!D36 -> 0 | AR51: =Calculator!E36 -> 0 | AS51: =Calculator!F36 -> 0 | AT51: =Calculator!G36 -> 0 | AU51: =Calculator!H36 -> 0
A52: Rx Brand Formulary (Mail): | B52: =Calculator!C37 -> 0 | C52: =Calculator!D37 -> 0 | D52: =Calculator!E37 -> 0 | E52: =Calculator!F37 -> 0 | F52: =Calculator!G37 -> 0 | G52: =Calculator!H37 -> 0 | I52: Rx Brand Formulary (Mail): | J52: =Calculator!C37 -> 0 | K52: =Calculator!D37 -> 0 | L52: =Calculator!E37 -> 0 | M52: =Calculator!F37 -> 0 | N52: =Calculator!G37 -> 0 | O52: =Calculator!H37 -> 0 | Q52: Rx Brand Formulary (Mail): | R52: =Calculator!C37 -> 0 | S52: =Calculator!D37 -> 0 | T52: =Calculator!E37 -> 0 | U52: =Calculator!F37 -> 0 | V52: =Calculator!G37 -> 0 | W52: =Calculator!H37 -> 0 | Y52: Rx Brand Formulary (Mail): | Z52: =Calculator!C37 -> 0 | AA52: =Calculator!D37 -> 0 | AB52: =Calculator!E37 -> 0 | AC52: =Calculator!F37 -> 0 | AD52: =Calculator!G37 -> 0 | AE52: =Calculator!H37 -> 0 | AG52: Rx Brand Formulary (Mail): | AH52: =Calculator!C37 -> 0 | AI52: =Calculator!D37 -> 0 | AJ52: =Calculator!E37 -> 0 | AK52: =Calculator!F37 -> 0 | AL52: =Calculator!G37 -> 0 | AM52: =Calculator!H37 -> 0 | AO52: Rx Brand Formulary (Mail): | AP52: =Calculator!C37 -> 0 | AQ52: =Calculator!D37 -> 0 | AR52: =Calculator!E37 -> 0 | AS52: =Calculator!F37 -> 0 | AT52: =Calculator!G37 -> 0 | AU52: =Calculator!H37 -> 0
A53: Rx Brand Non-Formulary (Mail): | B53: =Calculator!C38 -> 0 | C53: =Calculator!D38 -> 0 | D53: =Calculator!E38 -> 0 | E53: =Calculator!F38 -> 0 | F53: =Calculator!G38 -> 0 | G53: =Calculator!H38 -> 0 | I53: Rx Brand Non-Formulary (Mail): | J53: =Calculator!C38 -> 0 | K53: =Calculator!D38 -> 0 | L53: =Calculator!E38 -> 0 | M53: =Calculator!F38 -> 0 | N53: =Calculator!G38 -> 0 | O53: =Calculator!H38 -> 0 | Q53: Rx Brand Non-Formulary (Mail): | R53: =Calculator!C38 -> 0 | S53: =Calculator!D38 -> 0 | T53: =Calculator!E38 -> 0 | U53: =Calculator!F38 -> 0 | V53: =Calculator!G38 -> 0 | W53: =Calculator!H38 -> 0 | Y53: Rx Brand Non-Formulary (Mail): | Z53: =Calculator!C38 -> 0 | AA53: =Calculator!D38 -> 0 | AB53: =Calculator!E38 -> 0 | AC53: =Calculator!F38 -> 0 | AD53: =Calculator!G38 -> 0 | AE53: =Calculator!H38 -> 0 | AG53: Rx Brand Non-Formulary (Mail): | AH53: =Calculator!C38 -> 0 | AI53: =Calculator!D38 -> 0 | AJ53: =Calculator!E38 -> 0 | AK53: =Calculator!F38 -> 0 | AL53: =Calculator!G38 -> 0 | AM53: =Calculator!H38 -> 0 | AO53: Rx Brand Non-Formulary (Mail): | AP53: =Calculator!C38 -> 0 | AQ53: =Calculator!D38 -> 0 | AR53: =Calculator!E38 -> 0 | AS53: =Calculator!F38 -> 0 | AT53: =Calculator!G38 -> 0 | AU53: =Calculator!H38 -> 0
A54: Rx Specialty (Mail): | B54: =Calculator!C39 -> 0 | C54: =Calculator!D39 -> 0 | D54: =Calculator!E39 -> 0 | E54: =Calculator!F39 -> 0 | F54: =Calculator!G39 -> 0 | G54: =Calculator!H39 -> 0 | I54: Rx Specialty (Mail): | J54: =Calculator!C39 -> 0 | K54: =Calculator!D39 -> 0 | L54: =Calculator!E39 -> 0 | M54: =Calculator!F39 -> 0 | N54: =Calculator!G39 -> 0 | O54: =Calculator!H39 -> 0 | Q54: Rx Specialty (Mail): | R54: =Calculator!C39 -> 0 | S54: =Calculator!D39 -> 0 | T54: =Calculator!E39 -> 0 | U54: =Calculator!F39 -> 0 | V54: =Calculator!G39 -> 0 | W54: =Calculator!H39 -> 0 | Y54: Rx Specialty (Mail): | Z54: =Calculator!C39 -> 0 | AA54: =Calculator!D39 -> 0 | AB54: =Calculator!E39 -> 0 | AC54: =Calculator!F39 -> 0 | AD54: =Calculator!G39 -> 0 | AE54: =Calculator!H39 -> 0 | AG54: Rx Specialty (Mail): | AH54: =Calculator!C39 -> 0 | AI54: =Calculator!D39 -> 0 | AJ54: =Calculator!E39 -> 0 | AK54: =Calculator!F39 -> 0 | AL54: =Calculator!G39 -> 0 | AM54: =Calculator!H39 -> 0 | AO54: Rx Specialty (Mail): | AP54: =Calculator!C39 -> 0 | AQ54: =Calculator!D39 -> 0 | AR54: =Calculator!E39 -> 0 | AS54: =Calculator!F39 -> 0 | AT54: =Calculator!G39 -> 0 | AU54: =Calculator!H39 -> 0
A56: Allowed Amounts: | I56: Allowed Amounts: | Q56: Allowed Amounts: | Y56: Allowed Amounts: | AG56: Allowed Amounts: | AO56: Allowed Amounts:
A57: Preventive Visit: | B57: =Calculator!C44 -> 129.84 | C57: =B57 -> 129.84 | D57: =C57 -> 129.84 | E57: 129.84 | F57: 129.84 | G57: 129.84 | I57: Preventive Visit: | J57: =B57 -> 129.84 | K57: =J57 -> 129.84 | L57: =K57 -> 129.84 | M57: =L57 -> 129.84 | N57: =M57 -> 129.84 | O57: =N57 -> 129.84 | Q57: Preventive Visit: | R57: =J57 -> 129.84 | S57: =R57 -> 129.84 | T57: =S57 -> 129.84 | U57: =T57 -> 129.84 | V57: =U57 -> 129.84 | W57: =V57 -> 129.84 | Y57: Preventive Visit: | Z57: =R57 -> 129.84 | AA57: =Z57 -> 129.84 | AB57: =AA57 -> 129.84 | AC57: =AB57 -> 129.84 | AD57: =AC57 -> 129.84 | AE57: =AD57 -> 129.84 | AG57: Preventive Visit: | AH57: =Z57 -> 129.84 | AI57: =AH57 -> 129.84 | AJ57: =AI57 -> 129.84 | AK57: =AJ57 -> 129.84 | AL57: =AK57 -> 129.84 | AM57: =AL57 -> 129.84 | AO57: Preventive Visit: | AP57: =AH57 -> 129.84 | AQ57: =AP57 -> 129.84 | AR57: =AQ57 -> 129.84 | AS57: =AR57 -> 129.84 | AT57: =AS57 -> 129.84 | AU57: =AT57 -> 129.84
A58: Hospitalization: | B58: =Calculator!C45 -> 9997.6221 | C58: =B58 -> 9997.6221 | D58: =C58 -> 9997.6221 | E58: 9997.6221 | F58: 9997.6221 | G58: 9997.6221 | I58: Hospitalization: | J58: =B58 -> 9997.6221 | K58: =J58 -> 9997.6221 | L58: 9997.6221 | M58: 9997.6221 | N58: 9997.6221 | O58: 9997.6221 | Q58: Hospitalization: | R58: =J58 -> 9997.6221 | S58: =R58 -> 9997.6221 | T58: 9997.6221 | U58: 9997.6221 | V58: 9997.6221 | W58: 9997.6221 | Y58: Hospitalization: | Z58: =R58 -> 9997.6221 | AA58: =Z58 -> 9997.6221 | AB58: 9997.6221 | AC58: 9997.6221 | AD58: 9997.6221 | AE58: 9997.6221 | AG58: Hospitalization: | AH58: =Z58 -> 9997.6221 | AI58: =AH58 -> 9997.6221 | AJ58: 9997.6221 | AK58: 9997.6221 | AL58: 9997.6221 | AM58: 9997.6221 | AO58: Hospitalization: | AP58: =AH58 -> 9997.6221 | AQ58: =AP58 -> 9997.6221 | AR58: 9997.6221 | AS58: 9997.6221 | AT58: 9997.6221 | AU58: 9997.6221
A59: Outpatient Service: | B59: =Calculator!C46 -> 1550 | C59: 1550 | D59: =C59 -> 1550 | E59: 1550 | F59: 1550 | G59: 1550 | I59: Outpatient Service: | J59: 1550 | K59: 1550 | L59: 1550 | M59: 1550 | N59: 1550 | O59: 1550 | Q59: Outpatient Service: | R59: 1550 | S59: 1550 | T59: 1550 | U59: 1550 | V59: 1550 | W59: 1550 | Y59: Outpatient Service: | Z59: 1550 | AA59: 1550 | AB59: 1550 | AC59: 1550 | AD59: 1550 | AE59: 1550 | AG59: Outpatient Service: | AH59: 1550 | AI59: 1550 | AJ59: 1550 | AK59: 1550 | AL59: 1550 | AM59: 1550 | AO59: Outpatient Service: | AP59: 1550 | AQ59: 1550 | AR59: 1550 | AS59: 1550 | AT59: 1550 | AU59: 1550
A60: Lab/X-Ray/Radiology Service: | B60: =Calculator!C47 -> 60.87 | C60: 60.87 | D60: =C60 -> 60.87 | E60: 60.87 | F60: 60.87 | G60: 60.87 | I60: Lab/X-Ray/Radiology Service: | J60: 60.87 | K60: 60.87 | L60: 60.87 | M60: 60.87 | N60: 60.87 | O60: 60.87 | Q60: Lab/X-Ray/Radiology Service: | R60: 60.87 | S60: 60.87 | T60: 60.87 | U60: 60.87 | V60: 60.87 | W60: 60.87 | Y60: Lab/X-Ray/Radiology Service: | Z60: 60.87 | AA60: 60.87 | AB60: 60.87 | AC60: 60.87 | AD60: 60.87 | AE60: 60.87 | AG60: Lab/X-Ray/Radiology Service: | AH60: 60.87 | AI60: 60.87 | AJ60: 60.87 | AK60: 60.87 | AL60: 60.87 | AM60: 60.87 | AO60: Lab/X-Ray/Radiology Service: | AP60: 60.87 | AQ60: 60.87 | AR60: 60.87 | AS60: 60.87 | AT60: 60.87 | AU60: 60.87
A61: Emergency Room Visit: | B61: =Calculator!C48 -> 1128.01 | C61: 1128.01 | D61: =C61 -> 1128.01 | E61: 1128.01 | F61: 1128.01 | G61: 1128.01 | I61: Emergency Room Visit: | J61: 1128.01 | K61: 1128.01 | L61: 1128.01 | M61: 1128.01 | N61: 1128.01 | O61: 1128.01 | Q61: Emergency Room Visit: | R61: 1128.01 | S61: 1128.01 | T61: 1128.01 | U61: 1128.01 | V61: 1128.01 | W61: 1128.01 | Y61: Emergency Room Visit: | Z61: 1128.01 | AA61: 1128.01 | AB61: 1128.01 | AC61: 1128.01 | AD61: 1128.01 | AE61: 1128.01 | AG61: Emergency Room Visit: | AH61: 1128.01 | AI61: 1128.01 | AJ61: 1128.01 | AK61: 1128.01 | AL61: 1128.01 | AM61: 1128.01 | AO61: Emergency Room Visit: | AP61: 1128.01 | AQ61: 1128.01 | AR61: 1128.01 | AS61: 1128.01 | AT61: 1128.01 | AU61: 1128.01
A62: Urgent Care Visit: | B62: =Calculator!C49 -> 145 | C62: 145 | D62: =C62 -> 145 | E62: 145 | F62: 145 | G62: 145 | I62: Urgent Care Visit: | J62: 145 | K62: 145 | L62: 145 | M62: 145 | N62: 145 | O62: 145 | Q62: Urgent Care Visit: | R62: 145 | S62: 145 | T62: 145 | U62: 145 | V62: 145 | W62: 145 | Y62: Urgent Care Visit: | Z62: 145 | AA62: 145 | AB62: 145 | AC62: 145 | AD62: 145 | AE62: 145 | AG62: Urgent Care Visit: | AH62: 145 | AI62: 145 | AJ62: 145 | AK62: 145 | AL62: 145 | AM62: 145 | AO62: Urgent Care Visit: | AP62: 145 | AQ62: 145 | AR62: 145 | AS62: 145 | AT62: 145 | AU62: 145
A63: PCP Office Visit: | B63: =Calculator!C50 -> 161.06 | C63: 161.06 | D63: =C63 -> 161.06 | E63: 161.06 | F63: 161.06 | G63: 161.06 | I63: PCP Office Visit: | J63: 161.06 | K63: 161.06 | L63: 161.06 | M63: 161.06 | N63: 161.06 | O63: 161.06 | Q63: PCP Office Visit: | R63: 161.06 | S63: 161.06 | T63: 161.06 | U63: 161.06 | V63: 161.06 | W63: 161.06 | Y63: PCP Office Visit: | Z63: 161.06 | AA63: 161.06 | AB63: 161.06 | AC63: 161.06 | AD63: 161.06 | AE63: 161.06 | AG63: PCP Office Visit: | AH63: 161.06 | AI63: 161.06 | AJ63: 161.06 | AK63: 161.06 | AL63: 161.06 | AM63: 161.06 | AO63: PCP Office Visit: | AP63: 161.06 | AQ63: 161.06 | AR63: 161.06 | AS63: 161.06 | AT63: 161.06 | AU63: 161.06
A64: Specialist Office Visit: | B64: =Calculator!C51 -> 157.5 | C64: 157.5 | D64: =C64 -> 157.5 | E64: 157.5 | F64: 157.5 | G64: 157.5 | I64: Specialist Office Visit: | J64: 157.5 | K64: 157.5 | L64: 157.5 | M64: 157.5 | N64: 157.5 | O64: 157.5 | Q64: Specialist Office Visit: | R64: 157.5 | S64: 157.5 | T64: 157.5 | U64: 157.5 | V64: 157.5 | W64: 157.5 | Y64: Specialist Office Visit: | Z64: 157.5 | AA64: 157.5 | AB64: 157.5 | AC64: 157.5 | AD64: 157.5 | AE64: 157.5 | AG64: Specialist Office Visit: | AH64: 157.5 | AI64: 157.5 | AJ64: 157.5 | AK64: 157.5 | AL64: 157.5 | AM64: 157.5 | AO64: Specialist Office Visit: | AP64: 157.5 | AQ64: 157.5 | AR64: 157.5 | AS64: 157.5 | AT64: 157.5 | AU64: 157.5
A65: Chiropractor Visit: | B65: =Calculator!C52 -> 38.41 | C65: 38.41 | D65: =C65 -> 38.41 | E65: 38.41 | F65: 38.41 | G65: 38.41 | I65: Chiropractor Visit: | J65: 38.41 | K65: 38.41 | L65: 38.41 | M65: 38.41 | N65: 38.41 | O65: 38.41 | Q65: Chiropractor Visit: | R65: 38.41 | S65: 38.41 | T65: 38.41 | U65: 38.41 | V65: 38.41 | W65: 38.41 | Y65: Chiropractor Visit: | Z65: 38.41 | AA65: 38.41 | AB65: 38.41 | AC65: 38.41 | AD65: 38.41 | AE65: 38.41 | AG65: Chiropractor Visit: | AH65: 38.41 | AI65: 38.41 | AJ65: 38.41 | AK65: 38.41 | AL65: 38.41 | AM65: 38.41 | AO65: Chiropractor Visit: | AP65: 38.41 | AQ65: 38.41 | AR65: 38.41 | AS65: 38.41 | AT65: 38.41 | AU65: 38.41
A66: Rx Generic (Retail): | B66: =Calculator!C53 -> 10.31 | C66: 10.31 | D66: =C66 -> 10.31 | E66: 10.31 | F66: 10.31 | G66: 10.31 | I66: Rx Generic (Retail): | J66: 10.31 | K66: 10.31 | L66: 10.31 | M66: 10.31 | N66: 10.31 | O66: 10.31 | Q66: Rx Generic (Retail): | R66: 10.31 | S66: 10.31 | T66: 10.31 | U66: 10.31 | V66: 10.31 | W66: 10.31 | Y66: Rx Generic (Retail): | Z66: 10.31 | AA66: 10.31 | AB66: 10.31 | AC66: 10.31 | AD66: 10.31 | AE66: 10.31 | AG66: Rx Generic (Retail): | AH66: 10.31 | AI66: 10.31 | AJ66: 10.31 | AK66: 10.31 | AL66: 10.31 | AM66: 10.31 | AO66: Rx Generic (Retail): | AP66: 10.31 | AQ66: 10.31 | AR66: 10.31 | AS66: 10.31 | AT66: 10.31 | AU66: 10.31
A67: Rx Brand Formulary (Retail): | B67: =Calculator!C54 -> 261.35 | C67: 261.35 | D67: =C67 -> 261.35 | E67: 261.35 | F67: 261.35 | G67: 261.35 | I67: Rx Brand Formulary (Retail): | J67: 261.35 | K67: 261.35 | L67: 261.35 | M67: 261.35 | N67: 261.35 | O67: 261.35 | Q67: Rx Brand Formulary (Retail): | R67: 261.35 | S67: 261.35 | T67: 261.35 | U67: 261.35 | V67: 261.35 | W67: 261.35 | Y67: Rx Brand Formulary (Retail): | Z67: 261.35 | AA67: 261.35 | AB67: 261.35 | AC67: 261.35 | AD67: 261.35 | AE67: 261.35 | AG67: Rx Brand Formulary (Retail): | AH67: 261.35 | AI67: 261.35 | AJ67: 261.35 | AK67: 261.35 | AL67: 261.35 | AM67: 261.35 | AO67: Rx Brand Formulary (Retail): | AP67: 261.35 | AQ67: 261.35 | AR67: 261.35 | AS67: 261.35 | AT67: 261.35 | AU67: 261.35
A68: Rx Brand Non-Formulary (Retail): | B68: =Calculator!C55 -> 261.35 | C68: 261.35 | D68: =C68 -> 261.35 | E68: 261.35 | F68: 261.35 | G68: 261.35 | I68: Rx Brand Non-Formulary (Retail): | J68: 261.35 | K68: 261.35 | L68: 261.35 | M68: 261.35 | N68: 261.35 | O68: 261.35 | Q68: Rx Brand Non-Formulary (Retail): | R68: 261.35 | S68: 261.35 | T68: 261.35 | U68: 261.35 | V68: 261.35 | W68: 261.35 | Y68: Rx Brand Non-Formulary (Retail): | Z68: 261.35 | AA68: 261.35 | AB68: 261.35 | AC68: 261.35 | AD68: 261.35 | AE68: 261.35 | AG68: Rx Brand Non-Formulary (Retail): | AH68: 261.35 | AI68: 261.35 | AJ68: 261.35 | AK68: 261.35 | AL68: 261.35 | AM68: 261.35 | AO68: Rx Brand Non-Formulary (Retail): | AP68: 261.35 | AQ68: 261.35 | AR68: 261.35 | AS68: 261.35 | AT68: 261.35 | AU68: 261.35
A69: Rx Specialty (Retail): | B69: =Calculator!C56 -> 1646 | C69: 1646 | D69: =C69 -> 1646 | E69: 1646 | F69: 1646 | G69: 1646 | I69: Rx Specialty (Retail): | J69: 1646 | K69: 1646 | L69: 1646 | M69: 1646 | N69: 1646 | O69: 1646 | Q69: Rx Specialty (Retail): | R69: 1646 | S69: 1646 | T69: 1646 | U69: 1646 | V69: 1646 | W69: 1646 | Y69: Rx Specialty (Retail): | Z69: 1646 | AA69: 1646 | AB69: 1646 | AC69: 1646 | AD69: 1646 | AE69: 1646 | AG69: Rx Specialty (Retail): | AH69: 1646 | AI69: 1646 | AJ69: 1646 | AK69: 1646 | AL69: 1646 | AM69: 1646 | AO69: Rx Specialty (Retail): | AP69: 1646 | AQ69: 1646 | AR69: 1646 | AS69: 1646 | AT69: 1646 | AU69: 1646
A70: Rx Generic (Mail): | B70: =B66*3 -> 30.93 | C70: 30.93 | D70: =C70 -> 30.93 | E70: 30.93 | F70: 30.93 | G70: 30.93 | I70: Rx Generic (Mail): | J70: 30.93 | K70: 30.93 | L70: 30.93 | M70: 30.93 | N70: 30.93 | O70: 30.93 | Q70: Rx Generic (Mail): | R70: 30.93 | S70: 30.93 | T70: 30.93 | U70: 30.93 | V70: 30.93 | W70: 30.93 | Y70: Rx Generic (Mail): | Z70: 30.93 | AA70: 30.93 | AB70: 30.93 | AC70: 30.93 | AD70: 30.93 | AE70: 30.93 | AG70: Rx Generic (Mail): | AH70: 30.93 | AI70: 30.93 | AJ70: 30.93 | AK70: 30.93 | AL70: 30.93 | AM70: 30.93 | AO70: Rx Generic (Mail): | AP70: 30.93 | AQ70: 30.93 | AR70: 30.93 | AS70: 30.93 | AT70: 30.93 | AU70: 30.93
A71: Rx Brand Formulary (Mail): | B71: =B67*3 -> 784.05 | C71: 784.05 | D71: =C71 -> 784.05 | E71: 784.05 | F71: 784.05 | G71: 784.05 | I71: Rx Brand Formulary (Mail): | J71: 784.05 | K71: 784.05 | L71: 784.05 | M71: 784.05 | N71: 784.05 | O71: 784.05 | Q71: Rx Brand Formulary (Mail): | R71: 784.05 | S71: 784.05 | T71: 784.05 | U71: 784.05 | V71: 784.05 | W71: 784.05 | Y71: Rx Brand Formulary (Mail): | Z71: 784.05 | AA71: 784.05 | AB71: 784.05 | AC71: 784.05 | AD71: 784.05 | AE71: 784.05 | AG71: Rx Brand Formulary (Mail): | AH71: 784.05 | AI71: 784.05 | AJ71: 784.05 | AK71: 784.05 | AL71: 784.05 | AM71: 784.05 | AO71: Rx Brand Formulary (Mail): | AP71: 784.05 | AQ71: 784.05 | AR71: 784.05 | AS71: 784.05 | AT71: 784.05 | AU71: 784.05
A72: Rx Brand Non-Formulary (Mail): | B72: =B68*3 -> 784.05 | C72: 784.05 | D72: =C72 -> 784.05 | E72: 784.05 | F72: 784.05 | G72: 784.05 | I72: Rx Brand Non-Formulary (Mail): | J72: 784.05 | K72: 784.05 | L72: 784.05 | M72: 784.05 | N72: 784.05 | O72: 784.05 | Q72: Rx Brand Non-Formulary (Mail): | R72: 784.05 | S72: 784.05 | T72: 784.05 | U72: 784.05 | V72: 784.05 | W72: 784.05 | Y72: Rx Brand Non-Formulary (Mail): | Z72: 784.05 | AA72: 784.05 | AB72: 784.05 | AC72: 784.05 | AD72: 784.05 | AE72: 784.05 | AG72: Rx Brand Non-Formulary (Mail): | AH72: 784.05 | AI72: 784.05 | AJ72: 784.05 | AK72: 784.05 | AL72: 784.05 | AM72: 784.05 | AO72: Rx Brand Non-Formulary (Mail): | AP72: 784.05 | AQ72: 784.05 | AR72: 784.05 | AS72: 784.05 | AT72: 784.05 | AU72: 784.05
A73: Rx Specialty (Mail): | B73: =B69*3 -> 4938 | C73: 4938 | D73: =C73 -> 4938 | E73: 4938 | F73: 4938 | G73: 4938 | I73: Rx Specialty (Mail): | J73: 4938 | K73: 4938 | L73: 4938 | M73: 4938 | N73: 4938 | O73: 4938 | Q73: Rx Specialty (Mail): | R73: 4938 | S73: 4938 | T73: 4938 | U73: 4938 | V73: 4938 | W73: 4938 | Y73: Rx Specialty (Mail): | Z73: 4938 | AA73: 4938 | AB73: 4938 | AC73: 4938 | AD73: 4938 | AE73: 4938 | AG73: Rx Specialty (Mail): | AH73: 4938 | AI73: 4938 | AJ73: 4938 | AK73: 4938 | AL73: 4938 | AM73: 4938 | AO73: Rx Specialty (Mail): | AP73: 4938 | AQ73: 4938 | AR73: 4938 | AS73: 4938 | AT73: 4938 | AU73: 4938
A75: Copayments: | I75: Copayments: | Q75: Copayments: | Y75: Copayments: | AG75: Copayments: | AO75: Copayments:
A76: Preventive Visit: | B76: =B38*B19 -> 0 | C76: =C38*C19 -> 0 | D76: 0 | E76: 0 | F76: 0 | G76: 0 | I76: Preventive Visit: | J76: =J38*J19 -> 0 | K76: =K38*K19 -> 0 | L76: 0 | M76: 0 | N76: 0 | O76: 0 | Q76: Preventive Visit: | R76: =R38*R19 -> 0 | S76: =S38*S19 -> 0 | T76: 0 | U76: 0 | V76: 0 | W76: 0 | Y76: Preventive Visit: | Z76: =Z38*Z19 -> 0 | AA76: =AA38*AA19 -> 0 | AB76: 0 | AC76: 0 | AD76: 0 | AE76: 0 | AG76: Preventive Visit: | AH76: =AH38*AH19 -> 0 | AI76: =AI38*AI19 -> 0 | AJ76: 0 | AK76: 0 | AL76: 0 | AM76: 0 | AO76: Preventive Visit: | AP76: =AP38*AP19 -> 0 | AQ76: =AQ38*AQ19 -> 0 | AR76: 0 | AS76: 0 | AT76: 0 | AU76: 0
A77: Hospitalization: | B77: =B39*B20 -> 0 | C77: =C39*C20 -> 0 | D77: 0 | E77: 0 | F77: 0 | G77: 0 | I77: Hospitalization: | J77: =J39*J20 -> 0 | K77: 0 | L77: 0 | M77: 0 | N77: 0 | O77: 0 | Q77: Hospitalization: | R77: =R39*R20 -> 0 | S77: 0 | T77: 0 | U77: 0 | V77: 0 | W77: 0 | Y77: Hospitalization: | Z77: =Z39*Z20 -> 0 | AA77: 0 | AB77: 0 | AC77: 0 | AD77: 0 | AE77: 0 | AG77: Hospitalization: | AH77: =AH39*AH20 -> 0 | AI77: 0 | AJ77: 0 | AK77: 0 | AL77: 0 | AM77: 0 | AO77: Hospitalization: | AP77: =AP39*AP20 -> 0 | AQ77: 0 | AR77: 0 | AS77: 0 | AT77: 0 | AU77: 0
A78: Outpatient Service: | B78: 0 | C78: =C40*C21 -> 0 | D78: 0 | E78: 0 | F78: 0 | G78: 0 | I78: Outpatient Service: | J78: 0 | K78: 0 | L78: 0 | M78: 0 | N78: 0 | O78: 0 | Q78: Outpatient Service: | R78: =R40*R21 -> 0 | S78: 0 | T78: 0 | U78: 0 | V78: 0 | W78: 0 | Y78: Outpatient Service: | Z78: =Z40*Z21 -> 0 | AA78: 0 | AB78: 0 | AC78: 0 | AD78: 0 | AE78: 0 | AG78: Outpatient Service: | AH78: =AH40*AH21 -> 0 | AI78: 0 | AJ78: 0 | AK78: 0 | AL78: 0 | AM78: 0 | AO78: Outpatient Service: | AP78: =AP40*AP21 -> 0 | AQ78: 0 | AR78: 0 | AS78: 0 | AT78: 0 | AU78: 0
A79: Lab/X-Ray/Radiology Service: | B79: 0 | C79: =C41*C22 -> 0 | D79: 0 | E79: 0 | F79: 0 | G79: 0 | I79: Lab/X-Ray/Radiology Service: | J79: 0 | K79: 0 | L79: 0 | M79: 0 | N79: 0 | O79: 0 | Q79: Lab/X-Ray/Radiology Service: | R79: =R41*R22 -> 0 | S79: 0 | T79: 0 | U79: 0 | V79: 0 | W79: 0 | Y79: Lab/X-Ray/Radiology Service: | Z79: =Z41*Z22 -> 0 | AA79: 0 | AB79: 0 | AC79: 0 | AD79: 0 | AE79: 0 | AG79: Lab/X-Ray/Radiology Service: | AH79: =AH41*AH22 -> 0 | AI79: 0 | AJ79: 0 | AK79: 0 | AL79: 0 | AM79: 0 | AO79: Lab/X-Ray/Radiology Service: | AP79: =AP41*AP22 -> 0 | AQ79: 0 | AR79: 0 | AS79: 0 | AT79: 0 | AU79: 0
A80: Emergency Room Visit: | B80: 0 | C80: =C42*C23 -> 0 | D80: 0 | E80: 0 | F80: 0 | G80: 0 | I80: Emergency Room Visit: | J80: 0 | K80: 0 | L80: 0 | M80: 0 | N80: 0 | O80: 0 | Q80: Emergency Room Visit: | R80: =R42*R23 -> 0 | S80: 0 | T80: 0 | U80: 0 | V80: 0 | W80: 0 | Y80: Emergency Room Visit: | Z80: =Z42*Z23 -> 0 | AA80: 0 | AB80: 0 | AC80: 0 | AD80: 0 | AE80: 0 | AG80: Emergency Room Visit: | AH80: =AH42*AH23 -> 0 | AI80: 0 | AJ80: 0 | AK80: 0 | AL80: 0 | AM80: 0 | AO80: Emergency Room Visit: | AP80: =AP42*AP23 -> 0 | AQ80: 0 | AR80: 0 | AS80: 0 | AT80: 0 | AU80: 0
A81: Urgent Care Visit: | B81: 0 | C81: =C43*C24 -> 0 | D81: 0 | E81: 0 | F81: 0 | G81: 0 | I81: Urgent Care Visit: | J81: 0 | K81: 0 | L81: 0 | M81: 0 | N81: 0 | O81: 0 | Q81: Urgent Care Visit: | R81: =R43*R24 -> 0 | S81: 0 | T81: 0 | U81: 0 | V81: 0 | W81: 0 | Y81: Urgent Care Visit: | Z81: =Z43*Z24 -> 0 | AA81: 0 | AB81: 0 | AC81: 0 | AD81: 0 | AE81: 0 | AG81: Urgent Care Visit: | AH81: =AH43*AH24 -> 0 | AI81: 0 | AJ81: 0 | AK81: 0 | AL81: 0 | AM81: 0 | AO81: Urgent Care Visit: | AP81: =AP43*AP24 -> 0 | AQ81: 0 | AR81: 0 | AS81: 0 | AT81: 0 | AU81: 0
A82: PCP Office Visit: | B82: 0 | C82: =C44*C25 -> 0 | D82: 0 | E82: 0 | F82: 0 | G82: 0 | I82: PCP Office Visit: | J82: 0 | K82: 0 | L82: 0 | M82: 0 | N82: 0 | O82: 0 | Q82: PCP Office Visit: | R82: =R44*R25 -> 0 | S82: 0 | T82: 0 | U82: 0 | V82: 0 | W82: 0 | Y82: PCP Office Visit: | Z82: =Z44*Z25 -> 0 | AA82: 0 | AB82: 0 | AC82: 0 | AD82: 0 | AE82: 0 | AG82: PCP Office Visit: | AH82: =AH44*AH25 -> 0 | AI82: 0 | AJ82: 0 | AK82: 0 | AL82: 0 | AM82: 0 | AO82: PCP Office Visit: | AP82: =AP44*AP25 -> 0 | AQ82: 0 | AR82: 0 | AS82: 0 | AT82: 0 | AU82: 0
A83: Specialist Office Visit: | B83: 0 | C83: =C45*C26 -> 0 | D83: 0 | E83: 0 | F83: 0 | G83: 0 | I83: Specialist Office Visit: | J83: 0 | K83: 0 | L83: 0 | M83: 0 | N83: 0 | O83: 0 | Q83: Specialist Office Visit: | R83: =R45*R26 -> 0 | S83: 0 | T83: 0 | U83: 0 | V83: 0 | W83: 0 | Y83: Specialist Office Visit: | Z83: =Z45*Z26 -> 0 | AA83: 0 | AB83: 0 | AC83: 0 | AD83: 0 | AE83: 0 | AG83: Specialist Office Visit: | AH83: =AH45*AH26 -> 0 | AI83: 0 | AJ83: 0 | AK83: 0 | AL83: 0 | AM83: 0 | AO83: Specialist Office Visit: | AP83: =AP45*AP26 -> 0 | AQ83: 0 | AR83: 0 | AS83: 0 | AT83: 0 | AU83: 0
A84: Chiropractor Visit: | B84: 0 | C84: =C46*C27 -> 0 | D84: 0 | E84: 0 | F84: 0 | G84: 0 | I84: Chiropractor Visit: | J84: 0 | K84: 0 | L84: 0 | M84: 0 | N84: 0 | O84: 0 | Q84: Chiropractor Visit: | R84: =R46*R27 -> 0 | S84: 0 | T84: 0 | U84: 0 | V84: 0 | W84: 0 | Y84: Chiropractor Visit: | Z84: =Z46*Z27 -> 0 | AA84: 0 | AB84: 0 | AC84: 0 | AD84: 0 | AE84: 0 | AG84: Chiropractor Visit: | AH84: =AH46*AH27 -> 0 | AI84: 0 | AJ84: 0 | AK84: 0 | AL84: 0 | AM84: 0 | AO84: Chiropractor Visit: | AP84: =AP46*AP27 -> 0 | AQ84: 0 | AR84: 0 | AS84: 0 | AT84: 0 | AU84: 0
A85: Rx Generic (Retail): | B85: =IF('1. Plan Inputs'!$G$50="Yes",0,B47*B66*$B151) -> 0 | C85: =IF('1. Plan Inputs'!$G$50="Yes",0,C47*C66*$B151) -> 0 | D85: =IF('1. Plan Inputs'!$G$50="Yes",0,D47*D66*$B151) -> 0 | E85: =IF('1. Plan Inputs'!$G$50="Yes",0,E47*E66*$B151) -> 0 | F85: =IF('1. Plan Inputs'!$G$50="Yes",0,F47*F66*$B151) -> 0 | G85: =IF('1. Plan Inputs'!$G$50="Yes",0,G47*G66*$B151) -> 0 | I85: Rx Generic (Retail): | J85: =IF('1. Plan Inputs'!$J$50="Yes",0,J47*J66*$J151) -> 0 | K85: =IF('1. Plan Inputs'!$J$50="Yes",0,K47*K66*$J151) -> 0 | L85: =IF('1. Plan Inputs'!$J$50="Yes",0,L47*L66*$J151) -> 0 | M85: =IF('1. Plan Inputs'!$J$50="Yes",0,M47*M66*$J151) -> 0 | N85: =IF('1. Plan Inputs'!$J$50="Yes",0,N47*N66*$J151) -> 0 | O85: =IF('1. Plan Inputs'!$J$50="Yes",0,O47*O66*$J151) -> 0 | Q85: Rx Generic (Retail): | R85: =IF('1. Plan Inputs'!$M$50="Yes",0,R47*R66*$R151) -> 0 | S85: =IF('1. Plan Inputs'!$M$50="Yes",0,S47*S66*$R151) -> 0 | T85: =IF('1. Plan Inputs'!$M$50="Yes",0,T47*T66*$R151) -> 0 | U85: =IF('1. Plan Inputs'!$M$50="Yes",0,U47*U66*$R151) -> 0 | V85: =IF('1. Plan Inputs'!$M$50="Yes",0,V47*V66*$R151) -> 0 | W85: =IF('1. Plan Inputs'!$M$50="Yes",0,W47*W66*$R151) -> 0 | Y85: Rx Generic (Retail): | Z85: =IF('1. Plan Inputs'!$P$50="Yes",0,Z47*Z66*$Z151) -> 0 | AA85: =IF('1. Plan Inputs'!$P$50="Yes",0,AA47*AA66*$Z151) -> 0 | AB85: =IF('1. Plan Inputs'!$P$50="Yes",0,AB47*AB66*$Z151) -> 0 | AC85: =IF('1. Plan Inputs'!$P$50="Yes",0,AC47*AC66*$Z151) -> 0 | AD85: =IF('1. Plan Inputs'!$P$50="Yes",0,AD47*AD66*$Z151) -> 0 | AE85: =IF('1. Plan Inputs'!$P$50="Yes",0,AE47*AE66*$Z151) -> 0 | AG85: Rx Generic (Retail): | AH85: =IF('1. Plan Inputs'!$S$50="Yes",0,AH47*AH66*$AH151) -> 0 | AI85: =IF('1. Plan Inputs'!$S$50="Yes",0,AI47*AI66*$AH151) -> 0 | AJ85: =IF('1. Plan Inputs'!$S$50="Yes",0,AJ47*AJ66*$AH151) -> 0 | AK85: =IF('1. Plan Inputs'!$S$50="Yes",0,AK47*AK66*$AH151) -> 0 | AL85: =IF('1. Plan Inputs'!$S$50="Yes",0,AL47*AL66*$AH151) -> 0 | AM85: =IF('1. Plan Inputs'!$S$50="Yes",0,AM47*AM66*$AH151) -> 0 | AO85: Rx Generic (Retail): | AP85: =IF('1. Plan Inputs'!$V$50="Yes",0,AP47*AP66*$AP151) -> 0 | AQ85: =IF('1. Plan Inputs'!$V$50="Yes",0,AQ47*AQ66*$AP151) -> 0 | AR85: =IF('1. Plan Inputs'!$V$50="Yes",0,AR47*AR66*$AP151) -> 0 | AS85: =IF('1. Plan Inputs'!$V$50="Yes",0,AS47*AS66*$AP151) -> 0 | AT85: =IF('1. Plan Inputs'!$V$50="Yes",0,AT47*AT66*$AP151) -> 0 | AU85: =IF('1. Plan Inputs'!$V$50="Yes",0,AU47*AU66*$AP151) -> 0
A86: Rx Brand Formulary (Retail): | B86: =IF('1. Plan Inputs'!$G$50="Yes",0,B48*B67*$B152) -> 0 | C86: =IF('1. Plan Inputs'!$G$50="Yes",0,C48*C67*$B152) -> 0 | D86: =IF('1. Plan Inputs'!$G$50="Yes",0,D48*D67*$B152) -> 0 | E86: =IF('1. Plan Inputs'!$G$50="Yes",0,E48*E67*$B152) -> 0 | F86: =IF('1. Plan Inputs'!$G$50="Yes",0,F48*F67*$B152) -> 0 | G86: =IF('1. Plan Inputs'!$G$50="Yes",0,G48*G67*$B152) -> 0 | I86: Rx Brand Formulary (Retail): | J86: =IF('1. Plan Inputs'!$J$50="Yes",0,J48*J67*$J152) -> 0 | K86: =IF('1. Plan Inputs'!$J$50="Yes",0,K48*K67*$J152) -> 0 | L86: =IF('1. Plan Inputs'!$J$50="Yes",0,L48*L67*$J152) -> 0 | M86: =IF('1. Plan Inputs'!$J$50="Yes",0,M48*M67*$J152) -> 0 | N86: =IF('1. Plan Inputs'!$J$50="Yes",0,N48*N67*$J152) -> 0 | O86: =IF('1. Plan Inputs'!$J$50="Yes",0,O48*O67*$J152) -> 0 | Q86: Rx Brand Formulary (Retail): | R86: =IF('1. Plan Inputs'!$M$50="Yes",0,R48*R67*$R152) -> 0 | S86: =IF('1. Plan Inputs'!$M$50="Yes",0,S48*S67*$R152) -> 0 | T86: =IF('1. Plan Inputs'!$M$50="Yes",0,T48*T67*$R152) -> 0 | U86: =IF('1. Plan Inputs'!$M$50="Yes",0,U48*U67*$R152) -> 0 | V86: =IF('1. Plan Inputs'!$M$50="Yes",0,V48*V67*$R152) -> 0 | W86: =IF('1. Plan Inputs'!$M$50="Yes",0,W48*W67*$R152) -> 0 | Y86: Rx Brand Formulary (Retail): | Z86: =IF('1. Plan Inputs'!$P$50="Yes",0,Z48*Z67*$Z152) -> 0 | AA86: =IF('1. Plan Inputs'!$P$50="Yes",0,AA48*AA67*$Z152) -> 0 | AB86: =IF('1. Plan Inputs'!$P$50="Yes",0,AB48*AB67*$Z152) -> 0 | AC86: =IF('1. Plan Inputs'!$P$50="Yes",0,AC48*AC67*$Z152) -> 0 | AD86: =IF('1. Plan Inputs'!$P$50="Yes",0,AD48*AD67*$Z152) -> 0 | AE86: =IF('1. Plan Inputs'!$P$50="Yes",0,AE48*AE67*$Z152) -> 0 | AG86: Rx Brand Formulary (Retail): | AH86: =IF('1. Plan Inputs'!$S$50="Yes",0,AH48*AH67*$AH152) -> 0 | AI86: =IF('1. Plan Inputs'!$S$50="Yes",0,AI48*AI67*$AH152) -> 0 | AJ86: =IF('1. Plan Inputs'!$S$50="Yes",0,AJ48*AJ67*$AH152) -> 0 | AK86: =IF('1. Plan Inputs'!$S$50="Yes",0,AK48*AK67*$AH152) -> 0 | AL86: =IF('1. Plan Inputs'!$S$50="Yes",0,AL48*AL67*$AH152) -> 0 | AM86: =IF('1. Plan Inputs'!$S$50="Yes",0,AM48*AM67*$AH152) -> 0 | AO86: Rx Brand Formulary (Retail): | AP86: =IF('1. Plan Inputs'!$V$50="Yes",0,AP48*AP67*$AP152) -> 0 | AQ86: =IF('1. Plan Inputs'!$V$50="Yes",0,AQ48*AQ67*$AP152) -> 0 | AR86: =IF('1. Plan Inputs'!$V$50="Yes",0,AR48*AR67*$AP152) -> 0 | AS86: =IF('1. Plan Inputs'!$V$50="Yes",0,AS48*AS67*$AP152) -> 0 | AT86: =IF('1. Plan Inputs'!$V$50="Yes",0,AT48*AT67*$AP152) -> 0 | AU86: =IF('1. Plan Inputs'!$V$50="Yes",0,AU48*AU67*$AP152) -> 0
A87: Rx Brand Non-Formulary (Retail): | B87: =IF('1. Plan Inputs'!$G$50="Yes",0,B49*B68*$B153) -> 0 | C87: =IF('1. Plan Inputs'!$G$50="Yes",0,C49*C68*$B153) -> 0 | D87: =IF('1. Plan Inputs'!$G$50="Yes",0,D49*D68*$B153) -> 0 | E87: =IF('1. Plan Inputs'!$G$50="Yes",0,E49*E68*$B153) -> 0 | F87: =IF('1. Plan Inputs'!$G$50="Yes",0,F49*F68*$B153) -> 0 | G87: =IF('1. Plan Inputs'!$G$50="Yes",0,G49*G68*$B153) -> 0 | I87: Rx Brand Non-Formulary (Retail): | J87: =IF('1. Plan Inputs'!$J$50="Yes",0,J49*J68*$J153) -> 0 | K87: =IF('1. Plan Inputs'!$J$50="Yes",0,K49*K68*$J153) -> 0 | L87: =IF('1. Plan Inputs'!$J$50="Yes",0,L49*L68*$J153) -> 0 | M87: =IF('1. Plan Inputs'!$J$50="Yes",0,M49*M68*$J153) -> 0 | N87: =IF('1. Plan Inputs'!$J$50="Yes",0,N49*N68*$J153) -> 0 | O87: =IF('1. Plan Inputs'!$J$50="Yes",0,O49*O68*$J153) -> 0 | Q87: Rx Brand Non-Formulary (Retail): | R87: =IF('1. Plan Inputs'!$M$50="Yes",0,R49*R68*$R153) -> 0 | S87: =IF('1. Plan Inputs'!$M$50="Yes",0,S49*S68*$R153) -> 0 | T87: =IF('1. Plan Inputs'!$M$50="Yes",0,T49*T68*$R153) -> 0 | U87: =IF('1. Plan Inputs'!$M$50="Yes",0,U49*U68*$R153) -> 0 | V87: =IF('1. Plan Inputs'!$M$50="Yes",0,V49*V68*$R153) -> 0 | W87: =IF('1. Plan Inputs'!$M$50="Yes",0,W49*W68*$R153) -> 0 | Y87: Rx Brand Non-Formulary (Retail): | Z87: =IF('1. Plan Inputs'!$P$50="Yes",0,Z49*Z68*$Z153) -> 0 | AA87: =IF('1. Plan Inputs'!$P$50="Yes",0,AA49*AA68*$Z153) -> 0 | AB87: =IF('1. Plan Inputs'!$P$50="Yes",0,AB49*AB68*$Z153) -> 0 | AC87: =IF('1. Plan Inputs'!$P$50="Yes",0,AC49*AC68*$Z153) -> 0 | AD87: =IF('1. Plan Inputs'!$P$50="Yes",0,AD49*AD68*$Z153) -> 0 | AE87: =IF('1. Plan Inputs'!$P$50="Yes",0,AE49*AE68*$Z153) -> 0 | AG87: Rx Brand Non-Formulary (Retail): | AH87: =IF('1. Plan Inputs'!$S$50="Yes",0,AH49*AH68*$AH153) -> 0 | AI87: =IF('1. Plan Inputs'!$S$50="Yes",0,AI49*AI68*$AH153) -> 0 | AJ87: =IF('1. Plan Inputs'!$S$50="Yes",0,AJ49*AJ68*$AH153) -> 0 | AK87: =IF('1. Plan Inputs'!$S$50="Yes",0,AK49*AK68*$AH153) -> 0 | AL87: =IF('1. Plan Inputs'!$S$50="Yes",0,AL49*AL68*$AH153) -> 0 | AM87: =IF('1. Plan Inputs'!$S$50="Yes",0,AM49*AM68*$AH153) -> 0 | AO87: Rx Brand Non-Formulary (Retail): | AP87: =IF('1. Plan Inputs'!$V$50="Yes",0,AP49*AP68*$AP153) -> 0 | AQ87: =IF('1. Plan Inputs'!$V$50="Yes",0,AQ49*AQ68*$AP153) -> 0 | AR87: =IF('1. Plan Inputs'!$V$50="Yes",0,AR49*AR68*$AP153) -> 0 | AS87: =IF('1. Plan Inputs'!$V$50="Yes",0,AS49*AS68*$AP153) -> 0 | AT87: =IF('1. Plan Inputs'!$V$50="Yes",0,AT49*AT68*$AP153) -> 0 | AU87: =IF('1. Plan Inputs'!$V$50="Yes",0,AU49*AU68*$AP153) -> 0
A88: Rx Specialty (Retail): | B88: =IF('1. Plan Inputs'!$G$50="Yes",0,B50*B69*$B154) -> 0 | C88: =IF('1. Plan Inputs'!$G$50="Yes",0,C50*C69*$B154) -> 0 | D88: =IF('1. Plan Inputs'!$G$50="Yes",0,D50*D69*$B154) -> 0 | E88: =IF('1. Plan Inputs'!$G$50="Yes",0,E50*E69*$B154) -> 0 | F88: =IF('1. Plan Inputs'!$G$50="Yes",0,F50*F69*$B154) -> 0 | G88: =IF('1. Plan Inputs'!$G$50="Yes",0,G50*G69*$B154) -> 0 | I88: Rx Specialty (Retail): | J88: =IF('1. Plan Inputs'!$J$50="Yes",0,J50*J69*$J154) -> 0 | K88: =IF('1. Plan Inputs'!$J$50="Yes",0,K50*K69*$J154) -> 0 | L88: =IF('1. Plan Inputs'!$J$50="Yes",0,L50*L69*$J154) -> 0 | M88: =IF('1. Plan Inputs'!$J$50="Yes",0,M50*M69*$J154) -> 0 | N88: =IF('1. Plan Inputs'!$J$50="Yes",0,N50*N69*$J154) -> 0 | O88: =IF('1. Plan Inputs'!$J$50="Yes",0,O50*O69*$J154) -> 0 | Q88: Rx Specialty (Retail): | R88: =IF('1. Plan Inputs'!$M$50="Yes",0,R50*R69*$R154) -> 0 | S88: =IF('1. Plan Inputs'!$M$50="Yes",0,S50*S69*$R154) -> 0 | T88: =IF('1. Plan Inputs'!$M$50="Yes",0,T50*T69*$R154) -> 0 | U88: =IF('1. Plan Inputs'!$M$50="Yes",0,U50*U69*$R154) -> 0 | V88: =IF('1. Plan Inputs'!$M$50="Yes",0,V50*V69*$R154) -> 0 | W88: =IF('1. Plan Inputs'!$M$50="Yes",0,W50*W69*$R154) -> 0 | Y88: Rx Specialty (Retail): | Z88: =IF('1. Plan Inputs'!$P$50="Yes",0,Z50*Z69*$Z154) -> 0 | AA88: =IF('1. Plan Inputs'!$P$50="Yes",0,AA50*AA69*$Z154) -> 0 | AB88: =IF('1. Plan Inputs'!$P$50="Yes",0,AB50*AB69*$Z154) -> 0 | AC88: =IF('1. Plan Inputs'!$P$50="Yes",0,AC50*AC69*$Z154) -> 0 | AD88: =IF('1. Plan Inputs'!$P$50="Yes",0,AD50*AD69*$Z154) -> 0 | AE88: =IF('1. Plan Inputs'!$P$50="Yes",0,AE50*AE69*$Z154) -> 0 | AG88: Rx Specialty (Retail): | AH88: =IF('1. Plan Inputs'!$S$50="Yes",0,AH50*AH69*$AH154) -> 0 | AI88: =IF('1. Plan Inputs'!$S$50="Yes",0,AI50*AI69*$AH154) -> 0 | AJ88: =IF('1. Plan Inputs'!$S$50="Yes",0,AJ50*AJ69*$AH154) -> 0 | AK88: =IF('1. Plan Inputs'!$S$50="Yes",0,AK50*AK69*$AH154) -> 0 | AL88: =IF('1. Plan Inputs'!$S$50="Yes",0,AL50*AL69*$AH154) -> 0 | AM88: =IF('1. Plan Inputs'!$S$50="Yes",0,AM50*AM69*$AH154) -> 0 | AO88: Rx Specialty (Retail): | AP88: =IF('1. Plan Inputs'!$V$50="Yes",0,AP50*AP69*$AP154) -> 0 | AQ88: =IF('1. Plan Inputs'!$V$50="Yes",0,AQ50*AQ69*$AP154) -> 0 | AR88: =IF('1. Plan Inputs'!$V$50="Yes",0,AR50*AR69*$AP154) -> 0 | AS88: =IF('1. Plan Inputs'!$V$50="Yes",0,AS50*AS69*$AP154) -> 0 | AT88: =IF('1. Plan Inputs'!$V$50="Yes",0,AT50*AT69*$AP154) -> 0 | AU88: =IF('1. Plan Inputs'!$V$50="Yes",0,AU50*AU69*$AP154) -> 0
A89: Rx Generic (Mail): | B89: =IF('1. Plan Inputs'!$G$50="Yes",0,B51*B70*$B155) -> 0 | C89: =IF('1. Plan Inputs'!$G$50="Yes",0,C51*C70*$B155) -> 0 | D89: =IF('1. Plan Inputs'!$G$50="Yes",0,D51*D70*$B155) -> 0 | E89: =IF('1. Plan Inputs'!$G$50="Yes",0,E51*E70*$B155) -> 0 | F89: =IF('1. Plan Inputs'!$G$50="Yes",0,F51*F70*$B155) -> 0 | G89: =IF('1. Plan Inputs'!$G$50="Yes",0,G51*G70*$B155) -> 0 | I89: Rx Generic (Mail): | J89: =IF('1. Plan Inputs'!$J$50="Yes",0,J51*J70*$J155) -> 0 | K89: =IF('1. Plan Inputs'!$J$50="Yes",0,K51*K70*$J155) -> 0 | L89: =IF('1. Plan Inputs'!$J$50="Yes",0,L51*L70*$J155) -> 0 | M89: =IF('1. Plan Inputs'!$J$50="Yes",0,M51*M70*$J155) -> 0 | N89: =IF('1. Plan Inputs'!$J$50="Yes",0,N51*N70*$J155) -> 0 | O89: =IF('1. Plan Inputs'!$J$50="Yes",0,O51*O70*$J155) -> 0 | Q89: Rx Generic (Mail): | R89: =IF('1. Plan Inputs'!$M$50="Yes",0,R51*R70*$R155) -> 0 | S89: =IF('1. Plan Inputs'!$M$50="Yes",0,S51*S70*$R155) -> 0 | T89: =IF('1. Plan Inputs'!$M$50="Yes",0,T51*T70*$R155) -> 0 | U89: =IF('1. Plan Inputs'!$M$50="Yes",0,U51*U70*$R155) -> 0 | V89: =IF('1. Plan Inputs'!$M$50="Yes",0,V51*V70*$R155) -> 0 | W89: =IF('1. Plan Inputs'!$M$50="Yes",0,W51*W70*$R155) -> 0 | Y89: Rx Generic (Mail): | Z89: =IF('1. Plan Inputs'!$P$50="Yes",0,Z51*Z70*$Z155) -> 0 | AA89: =IF('1. Plan Inputs'!$P$50="Yes",0,AA51*AA70*$Z155) -> 0 | AB89: =IF('1. Plan Inputs'!$P$50="Yes",0,AB51*AB70*$Z155) -> 0 | AC89: =IF('1. Plan Inputs'!$P$50="Yes",0,AC51*AC70*$Z155) -> 0 | AD89: =IF('1. Plan Inputs'!$P$50="Yes",0,AD51*AD70*$Z155) -> 0 | AE89: =IF('1. Plan Inputs'!$P$50="Yes",0,AE51*AE70*$Z155) -> 0 | AG89: Rx Generic (Mail): | AH89: =IF('1. Plan Inputs'!$S$50="Yes",0,AH51*AH70*$AH155) -> 0 | AI89: =IF('1. Plan Inputs'!$S$50="Yes",0,AI51*AI70*$AH155) -> 0 | AJ89: =IF('1. Plan Inputs'!$S$50="Yes",0,AJ51*AJ70*$AH155) -> 0 | AK89: =IF('1. Plan Inputs'!$S$50="Yes",0,AK51*AK70*$AH155) -> 0 | AL89: =IF('1. Plan Inputs'!$S$50="Yes",0,AL51*AL70*$AH155) -> 0 | AM89: =IF('1. Plan Inputs'!$S$50="Yes",0,AM51*AM70*$AH155) -> 0 | AO89: Rx Generic (Mail): | AP89: =IF('1. Plan Inputs'!$V$50="Yes",0,AP51*AP70*$AP155) -> 0 | AQ89: =IF('1. Plan Inputs'!$V$50="Yes",0,AQ51*AQ70*$AP155) -> 0 | AR89: =IF('1. Plan Inputs'!$V$50="Yes",0,AR51*AR70*$AP155) -> 0 | AS89: =IF('1. Plan Inputs'!$V$50="Yes",0,AS51*AS70*$AP155) -> 0 | AT89: =IF('1. Plan Inputs'!$V$50="Yes",0,AT51*AT70*$AP155) -> 0 | AU89: =IF('1. Plan Inputs'!$V$50="Yes",0,AU51*AU70*$AP155) -> 0
A90: Rx Brand Formulary (Mail): | B90: =IF('1. Plan Inputs'!$G$50="Yes",0,B52*B71*$B156) -> 0 | C90: =IF('1. Plan Inputs'!$G$50="Yes",0,C52*C71*$B156) -> 0 | D90: =IF('1. Plan Inputs'!$G$50="Yes",0,D52*D71*$B156) -> 0 | E90: =IF('1. Plan Inputs'!$G$50="Yes",0,E52*E71*$B156) -> 0 | F90: =IF('1. Plan Inputs'!$G$50="Yes",0,F52*F71*$B156) -> 0 | G90: =IF('1. Plan Inputs'!$G$50="Yes",0,G52*G71*$B156) -> 0 | I90: Rx Brand Formulary (Mail): | J90: =IF('1. Plan Inputs'!$J$50="Yes",0,J52*J71*$J156) -> 0 | K90: =IF('1. Plan Inputs'!$J$50="Yes",0,K52*K71*$J156) -> 0 | L90: =IF('1. Plan Inputs'!$J$50="Yes",0,L52*L71*$J156) -> 0 | M90: =IF('1. Plan Inputs'!$J$50="Yes",0,M52*M71*$J156) -> 0 | N90: =IF('1. Plan Inputs'!$J$50="Yes",0,N52*N71*$J156) -> 0 | O90: =IF('1. Plan Inputs'!$J$50="Yes",0,O52*O71*$J156) -> 0 | Q90: Rx Brand Formulary (Mail): | R90: =IF('1. Plan Inputs'!$M$50="Yes",0,R52*R71*$R156) -> 0 | S90: =IF('1. Plan Inputs'!$M$50="Yes",0,S52*S71*$R156) -> 0 | T90: =IF('1. Plan Inputs'!$M$50="Yes",0,T52*T71*$R156) -> 0 | U90: =IF('1. Plan Inputs'!$M$50="Yes",0,U52*U71*$R156) -> 0 | V90: =IF('1. Plan Inputs'!$M$50="Yes",0,V52*V71*$R156) -> 0 | W90: =IF('1. Plan Inputs'!$M$50="Yes",0,W52*W71*$R156) -> 0 | Y90: Rx Brand Formulary (Mail): | Z90: =IF('1. Plan Inputs'!$P$50="Yes",0,Z52*Z71*$Z156) -> 0 | AA90: =IF('1. Plan Inputs'!$P$50="Yes",0,AA52*AA71*$Z156) -> 0 | AB90: =IF('1. Plan Inputs'!$P$50="Yes",0,AB52*AB71*$Z156) -> 0 | AC90: =IF('1. Plan Inputs'!$P$50="Yes",0,AC52*AC71*$Z156) -> 0 | AD90: =IF('1. Plan Inputs'!$P$50="Yes",0,AD52*AD71*$Z156) -> 0 | AE90: =IF('1. Plan Inputs'!$P$50="Yes",0,AE52*AE71*$Z156) -> 0 | AG90: Rx Brand Formulary (Mail): | AH90: =IF('1. Plan Inputs'!$S$50="Yes",0,AH52*AH71*$AH156) -> 0 | AI90: =IF('1. Plan Inputs'!$S$50="Yes",0,AI52*AI71*$AH156) -> 0 | AJ90: =IF('1. Plan Inputs'!$S$50="Yes",0,AJ52*AJ71*$AH156) -> 0 | AK90: =IF('1. Plan Inputs'!$S$50="Yes",0,AK52*AK71*$AH156) -> 0 | AL90: =IF('1. Plan Inputs'!$S$50="Yes",0,AL52*AL71*$AH156) -> 0 | AM90: =IF('1. Plan Inputs'!$S$50="Yes",0,AM52*AM71*$AH156) -> 0 | AO90: Rx Brand Formulary (Mail): | AP90: =IF('1. Plan Inputs'!$V$50="Yes",0,AP52*AP71*$AP156) -> 0 | AQ90: =IF('1. Plan Inputs'!$V$50="Yes",0,AQ52*AQ71*$AP156) -> 0 | AR90: =IF('1. Plan Inputs'!$V$50="Yes",0,AR52*AR71*$AP156) -> 0 | AS90: =IF('1. Plan Inputs'!$V$50="Yes",0,AS52*AS71*$AP156) -> 0 | AT90: =IF('1. Plan Inputs'!$V$50="Yes",0,AT52*AT71*$AP156) -> 0 | AU90: =IF('1. Plan Inputs'!$V$50="Yes",0,AU52*AU71*$AP156) -> 0
A91: Rx Brand Non-Formulary (Mail): | B91: =IF('1. Plan Inputs'!$G$50="Yes",0,B53*B72*$B157) -> 0 | C91: =IF('1. Plan Inputs'!$G$50="Yes",0,C53*C72*$B157) -> 0 | D91: =IF('1. Plan Inputs'!$G$50="Yes",0,D53*D72*$B157) -> 0 | E91: =IF('1. Plan Inputs'!$G$50="Yes",0,E53*E72*$B157) -> 0 | F91: =IF('1. Plan Inputs'!$G$50="Yes",0,F53*F72*$B157) -> 0 | G91: =IF('1. Plan Inputs'!$G$50="Yes",0,G53*G72*$B157) -> 0 | I91: Rx Brand Non-Formulary (Mail): | J91: =IF('1. Plan Inputs'!$J$50="Yes",0,J53*J72*$J157) -> 0 | K91: =IF('1. Plan Inputs'!$J$50="Yes",0,K53*K72*$J157) -> 0 | L91: =IF('1. Plan Inputs'!$J$50="Yes",0,L53*L72*$J157) -> 0 | M91: =IF('1. Plan Inputs'!$J$50="Yes",0,M53*M72*$J157) -> 0 | N91: =IF('1. Plan Inputs'!$J$50="Yes",0,N53*N72*$J157) -> 0 | O91: =IF('1. Plan Inputs'!$J$50="Yes",0,O53*O72*$J157) -> 0 | Q91: Rx Brand Non-Formulary (Mail): | R91: =IF('1. Plan Inputs'!$M$50="Yes",0,R53*R72*$R157) -> 0 | S91: =IF('1. Plan Inputs'!$M$50="Yes",0,S53*S72*$R157) -> 0 | T91: =IF('1. Plan Inputs'!$M$50="Yes",0,T53*T72*$R157) -> 0 | U91: =IF('1. Plan Inputs'!$M$50="Yes",0,U53*U72*$R157) -> 0 | V91: =IF('1. Plan Inputs'!$M$50="Yes",0,V53*V72*$R157) -> 0 | W91: =IF('1. Plan Inputs'!$M$50="Yes",0,W53*W72*$R157) -> 0 | Y91: Rx Brand Non-Formulary (Mail): | Z91: =IF('1. Plan Inputs'!$P$50="Yes",0,Z53*Z72*$Z157) -> 0 | AA91: =IF('1. Plan Inputs'!$P$50="Yes",0,AA53*AA72*$Z157) -> 0 | AB91: =IF('1. Plan Inputs'!$P$50="Yes",0,AB53*AB72*$Z157) -> 0 | AC91: =IF('1. Plan Inputs'!$P$50="Yes",0,AC53*AC72*$Z157) -> 0 | AD91: =IF('1. Plan Inputs'!$P$50="Yes",0,AD53*AD72*$Z157) -> 0 | AE91: =IF('1. Plan Inputs'!$P$50="Yes",0,AE53*AE72*$Z157) -> 0 | AG91: Rx Brand Non-Formulary (Mail): | AH91: =IF('1. Plan Inputs'!$S$50="Yes",0,AH53*AH72*$AH157) -> 0 | AI91: =IF('1. Plan Inputs'!$S$50="Yes",0,AI53*AI72*$AH157) -> 0 | AJ91: =IF('1. Plan Inputs'!$S$50="Yes",0,AJ53*AJ72*$AH157) -> 0 | AK91: =IF('1. Plan Inputs'!$S$50="Yes",0,AK53*AK72*$AH157) -> 0 | AL91: =IF('1. Plan Inputs'!$S$50="Yes",0,AL53*AL72*$AH157) -> 0 | AM91: =IF('1. Plan Inputs'!$S$50="Yes",0,AM53*AM72*$AH157) -> 0 | AO91: Rx Brand Non-Formulary (Mail): | AP91: =IF('1. Plan Inputs'!$V$50="Yes",0,AP53*AP72*$AP157) -> 0 | AQ91: =IF('1. Plan Inputs'!$V$50="Yes",0,AQ53*AQ72*$AP157) -> 0 | AR91: =IF('1. Plan Inputs'!$V$50="Yes",0,AR53*AR72*$AP157) -> 0 | AS91: =IF('1. Plan Inputs'!$V$50="Yes",0,AS53*AS72*$AP157) -> 0 | AT91: =IF('1. Plan Inputs'!$V$50="Yes",0,AT53*AT72*$AP157) -> 0 | AU91: =IF('1. Plan Inputs'!$V$50="Yes",0,AU53*AU72*$AP157) -> 0
A92: Rx Specialty (Mail): | B92: =IF('1. Plan Inputs'!$G$50="Yes",0,B54*B73*$B158) -> 0 | C92: =IF('1. Plan Inputs'!$G$50="Yes",0,C54*C73*$B158) -> 0 | D92: =IF('1. Plan Inputs'!$G$50="Yes",0,D54*D73*$B158) -> 0 | E92: =IF('1. Plan Inputs'!$G$50="Yes",0,E54*E73*$B158) -> 0 | F92: =IF('1. Plan Inputs'!$G$50="Yes",0,F54*F73*$B158) -> 0 | G92: =IF('1. Plan Inputs'!$G$50="Yes",0,G54*G73*$B158) -> 0 | I92: Rx Specialty (Mail): | J92: =IF('1. Plan Inputs'!$J$50="Yes",0,J54*J73*$J158) -> 0 | K92: =IF('1. Plan Inputs'!$J$50="Yes",0,K54*K73*$J158) -> 0 | L92: =IF('1. Plan Inputs'!$J$50="Yes",0,L54*L73*$J158) -> 0 | M92: =IF('1. Plan Inputs'!$J$50="Yes",0,M54*M73*$J158) -> 0 | N92: =IF('1. Plan Inputs'!$J$50="Yes",0,N54*N73*$J158) -> 0 | O92: =IF('1. Plan Inputs'!$J$50="Yes",0,O54*O73*$J158) -> 0 | Q92: Rx Specialty (Mail): | R92: =IF('1. Plan Inputs'!$M$50="Yes",0,R54*R73*$R158) -> 0 | S92: =IF('1. Plan Inputs'!$M$50="Yes",0,S54*S73*$R158) -> 0 | T92: =IF('1. Plan Inputs'!$M$50="Yes",0,T54*T73*$R158) -> 0 | U92: =IF('1. Plan Inputs'!$M$50="Yes",0,U54*U73*$R158) -> 0 | V92: =IF('1. Plan Inputs'!$M$50="Yes",0,V54*V73*$R158) -> 0 | W92: =IF('1. Plan Inputs'!$M$50="Yes",0,W54*W73*$R158) -> 0 | Y92: Rx Specialty (Mail): | Z92: =IF('1. Plan Inputs'!$P$50="Yes",0,Z54*Z73*$Z158) -> 0 | AA92: =IF('1. Plan Inputs'!$P$50="Yes",0,AA54*AA73*$Z158) -> 0 | AB92: =IF('1. Plan Inputs'!$P$50="Yes",0,AB54*AB73*$Z158) -> 0 | AC92: =IF('1. Plan Inputs'!$P$50="Yes",0,AC54*AC73*$Z158) -> 0 | AD92: =IF('1. Plan Inputs'!$P$50="Yes",0,AD54*AD73*$Z158) -> 0 | AE92: =IF('1. Plan Inputs'!$P$50="Yes",0,AE54*AE73*$Z158) -> 0 | AG92: Rx Specialty (Mail): | AH92: =IF('1. Plan Inputs'!$S$50="Yes",0,AH54*AH73*$AH158) -> 0 | AI92: =IF('1. Plan Inputs'!$S$50="Yes",0,AI54*AI73*$AH158) -> 0 | AJ92: =IF('1. Plan Inputs'!$S$50="Yes",0,AJ54*AJ73*$AH158) -> 0 | AK92: =IF('1. Plan Inputs'!$S$50="Yes",0,AK54*AK73*$AH158) -> 0 | AL92: =IF('1. Plan Inputs'!$S$50="Yes",0,AL54*AL73*$AH158) -> 0 | AM92: =IF('1. Plan Inputs'!$S$50="Yes",0,AM54*AM73*$AH158) -> 0 | AO92: Rx Specialty (Mail): | AP92: =IF('1. Plan Inputs'!$V$50="Yes",0,AP54*AP73*$AP158) -> 0 | AQ92: =IF('1. Plan Inputs'!$V$50="Yes",0,AQ54*AQ73*$AP158) -> 0 | AR92: =IF('1. Plan Inputs'!$V$50="Yes",0,AR54*AR73*$AP158) -> 0 | AS92: =IF('1. Plan Inputs'!$V$50="Yes",0,AS54*AS73*$AP158) -> 0 | AT92: =IF('1. Plan Inputs'!$V$50="Yes",0,AT54*AT73*$AP158) -> 0 | AU92: =IF('1. Plan Inputs'!$V$50="Yes",0,AU54*AU73*$AP158) -> 0
A94: Applies Towards Deductible and Coinsurance: | I94: Applies Towards Deductible and Coinsurance: | Q94: Applies Towards Deductible and Coinsurance: | Y94: Applies Towards Deductible and Coinsurance: | AG94: Applies Towards Deductible and Coinsurance: | AO94: Applies Towards Deductible and Coinsurance:
A95: Preventive Visit: | B95: =MAX(IF('1. Plan Inputs'!$F41="Yes",Worksheet!B57*Worksheet!B38,0)-B76,0) -> 0 | C95: =MAX(IF('1. Plan Inputs'!$F41="Yes",Worksheet!C57*Worksheet!C38,0)-C76,0) -> 0 | D95: =MAX(IF('1. Plan Inputs'!$F41="Yes",Worksheet!D57*Worksheet!D38,0)-D76,0) -> 0 | E95: =MAX(IF('1. Plan Inputs'!$F41="Yes",Worksheet!E57*Worksheet!E38,0)-E76,0) -> 0 | F95: =MAX(IF('1. Plan Inputs'!$F41="Yes",Worksheet!F57*Worksheet!F38,0)-F76,0) -> 0 | G95: =MAX(IF('1. Plan Inputs'!$F41="Yes",Worksheet!G57*Worksheet!G38,0)-G76,0) -> 0 | I95: Preventive Visit: | J95: =MAX(IF('1. Plan Inputs'!$I41="Yes",Worksheet!J57*Worksheet!J38,0)-J76,0) -> 0 | K95: =MAX(IF('1. Plan Inputs'!$I41="Yes",Worksheet!K57*Worksheet!K38,0)-K76,0) -> 0 | L95: =MAX(IF('1. Plan Inputs'!$I41="Yes",Worksheet!L57*Worksheet!L38,0)-L76,0) -> 0 | M95: =MAX(IF('1. Plan Inputs'!$I41="Yes",Worksheet!M57*Worksheet!M38,0)-M76,0) -> 0 | N95: =MAX(IF('1. Plan Inputs'!$I41="Yes",Worksheet!N57*Worksheet!N38,0)-N76,0) -> 0 | O95: =MAX(IF('1. Plan Inputs'!$I41="Yes",Worksheet!O57*Worksheet!O38,0)-O76,0) -> 0 | Q95: Preventive Visit: | R95: =MAX(IF('1. Plan Inputs'!$L41="Yes",Worksheet!R57*Worksheet!R38,0)-R76,0) -> 0 | S95: =MAX(IF('1. Plan Inputs'!$L41="Yes",Worksheet!S57*Worksheet!S38,0)-S76,0) -> 0 | T95: =MAX(IF('1. Plan Inputs'!$L41="Yes",Worksheet!T57*Worksheet!T38,0)-T76,0) -> 0 | U95: =MAX(IF('1. Plan Inputs'!$L41="Yes",Worksheet!U57*Worksheet!U38,0)-U76,0) -> 0 | V95: =MAX(IF('1. Plan Inputs'!$L41="Yes",Worksheet!V57*Worksheet!V38,0)-V76,0) -> 0 | W95: =MAX(IF('1. Plan Inputs'!$L41="Yes",Worksheet!W57*Worksheet!W38,0)-W76,0) -> 0 | Y95: Preventive Visit: | Z95: =MAX(IF('1. Plan Inputs'!$O41="Yes",Worksheet!Z57*Worksheet!Z38,0)-Z76,0) -> 0 | AA95: =MAX(IF('1. Plan Inputs'!$O41="Yes",Worksheet!AA57*Worksheet!AA38,0)-AA76,0) -> 0 | AB95: =MAX(IF('1. Plan Inputs'!$O41="Yes",Worksheet!AB57*Worksheet!AB38,0)-AB76,0) -> 0 | AC95: =MAX(IF('1. Plan Inputs'!$O41="Yes",Worksheet!AC57*Worksheet!AC38,0)-AC76,0) -> 0 | AD95: =MAX(IF('1. Plan Inputs'!$O41="Yes",Worksheet!AD57*Worksheet!AD38,0)-AD76,0) -> 0 | AE95: =MAX(IF('1. Plan Inputs'!$O41="Yes",Worksheet!AE57*Worksheet!AE38,0)-AE76,0) -> 0 | AG95: Preventive Visit: | AH95: =MAX(IF('1. Plan Inputs'!$R41="Yes",Worksheet!AH57*Worksheet!AH38,0)-AH76,0) -> 0 | AI95: =MAX(IF('1. Plan Inputs'!$R41="Yes",Worksheet!AI57*Worksheet!AI38,0)-AI76,0) -> 0 | AJ95: =MAX(IF('1. Plan Inputs'!$R41="Yes",Worksheet!AJ57*Worksheet!AJ38,0)-AJ76,0) -> 0 | AK95: =MAX(IF('1. Plan Inputs'!$R41="Yes",Worksheet!AK57*Worksheet!AK38,0)-AK76,0) -> 0 | AL95: =MAX(IF('1. Plan Inputs'!$R41="Yes",Worksheet!AL57*Worksheet!AL38,0)-AL76,0) -> 0 | AM95: =MAX(IF('1. Plan Inputs'!$R41="Yes",Worksheet!AM57*Worksheet!AM38,0)-AM76,0) -> 0 | AO95: Preventive Visit: | AP95: =MAX(IF('1. Plan Inputs'!$U41="Yes",Worksheet!AP57*Worksheet!AP38,0)-AP76,0) -> 0 | AQ95: =MAX(IF('1. Plan Inputs'!$U41="Yes",Worksheet!AQ57*Worksheet!AQ38,0)-AQ76,0) -> 0 | AR95: =MAX(IF('1. Plan Inputs'!$U41="Yes",Worksheet!AR57*Worksheet!AR38,0)-AR76,0) -> 0 | AS95: =MAX(IF('1. Plan Inputs'!$U41="Yes",Worksheet!AS57*Worksheet!AS38,0)-AS76,0) -> 0 | AT95: =MAX(IF('1. Plan Inputs'!$U41="Yes",Worksheet!AT57*Worksheet!AT38,0)-AT76,0) -> 0 | AU95: =MAX(IF('1. Plan Inputs'!$U41="Yes",Worksheet!AU57*Worksheet!AU38,0)-AU76,0) -> 0
A96: Hospitalization: | B96: =MAX(IF('1. Plan Inputs'!$F34="Yes",Worksheet!B58*Worksheet!B39,0)-B77,0) -> 0 | C96: =MAX(IF('1. Plan Inputs'!$F34="Yes",Worksheet!C58*Worksheet!C39,0)-C77,0) -> 0 | D96: =MAX(IF('1. Plan Inputs'!$F34="Yes",Worksheet!D58*Worksheet!D39,0)-D77,0) -> 0 | E96: =MAX(IF('1. Plan Inputs'!$F34="Yes",Worksheet!E58*Worksheet!E39,0)-E77,0) -> 0 | F96: =MAX(IF('1. Plan Inputs'!$F34="Yes",Worksheet!F58*Worksheet!F39,0)-F77,0) -> 0 | G96: =MAX(IF('1. Plan Inputs'!$F34="Yes",Worksheet!G58*Worksheet!G39,0)-G77,0) -> 0 | I96: Hospitalization: | J96: =MAX(IF('1. Plan Inputs'!$I34="Yes",Worksheet!J58*Worksheet!J39,0)-J77,0) -> 0 | K96: =MAX(IF('1. Plan Inputs'!$I34="Yes",Worksheet!K58*Worksheet!K39,0)-K77,0) -> 0 | L96: =MAX(IF('1. Plan Inputs'!$I34="Yes",Worksheet!L58*Worksheet!L39,0)-L77,0) -> 0 | M96: =MAX(IF('1. Plan Inputs'!$I34="Yes",Worksheet!M58*Worksheet!M39,0)-M77,0) -> 0 | N96: =MAX(IF('1. Plan Inputs'!$I34="Yes",Worksheet!N58*Worksheet!N39,0)-N77,0) -> 0 | O96: =MAX(IF('1. Plan Inputs'!$I34="Yes",Worksheet!O58*Worksheet!O39,0)-O77,0) -> 0 | Q96: Hospitalization: | R96: =MAX(IF('1. Plan Inputs'!$L34="Yes",Worksheet!R58*Worksheet!R39,0)-R77,0) -> 0 | S96: =MAX(IF('1. Plan Inputs'!$L34="Yes",Worksheet!S58*Worksheet!S39,0)-S77,0) -> 0 | T96: =MAX(IF('1. Plan Inputs'!$L34="Yes",Worksheet!T58*Worksheet!T39,0)-T77,0) -> 0 | U96: =MAX(IF('1. Plan Inputs'!$L34="Yes",Worksheet!U58*Worksheet!U39,0)-U77,0) -> 0 | V96: =MAX(IF('1. Plan Inputs'!$L34="Yes",Worksheet!V58*Worksheet!V39,0)-V77,0) -> 0 | W96: =MAX(IF('1. Plan Inputs'!$L34="Yes",Worksheet!W58*Worksheet!W39,0)-W77,0) -> 0 | Y96: Hospitalization: | Z96: =MAX(IF('1. Plan Inputs'!$O34="Yes",Worksheet!Z58*Worksheet!Z39,0)-Z77,0) -> 0 | AA96: =MAX(IF('1. Plan Inputs'!$O34="Yes",Worksheet!AA58*Worksheet!AA39,0)-AA77,0) -> 0 | AB96: =MAX(IF('1. Plan Inputs'!$O34="Yes",Worksheet!AB58*Worksheet!AB39,0)-AB77,0) -> 0 | AC96: =MAX(IF('1. Plan Inputs'!$O34="Yes",Worksheet!AC58*Worksheet!AC39,0)-AC77,0) -> 0 | AD96: =MAX(IF('1. Plan Inputs'!$O34="Yes",Worksheet!AD58*Worksheet!AD39,0)-AD77,0) -> 0 | AE96: =MAX(IF('1. Plan Inputs'!$O34="Yes",Worksheet!AE58*Worksheet!AE39,0)-AE77,0) -> 0 | AG96: Hospitalization: | AH96: =MAX(IF('1. Plan Inputs'!$R34="Yes",Worksheet!AH58*Worksheet!AH39,0)-AH77,0) -> 0 | AI96: =MAX(IF('1. Plan Inputs'!$R34="Yes",Worksheet!AI58*Worksheet!AI39,0)-AI77,0) -> 0 | AJ96: =MAX(IF('1. Plan Inputs'!$R34="Yes",Worksheet!AJ58*Worksheet!AJ39,0)-AJ77,0) -> 0 | AK96: =MAX(IF('1. Plan Inputs'!$R34="Yes",Worksheet!AK58*Worksheet!AK39,0)-AK77,0) -> 0 | AL96: =MAX(IF('1. Plan Inputs'!$R34="Yes",Worksheet!AL58*Worksheet!AL39,0)-AL77,0) -> 0 | AM96: =MAX(IF('1. Plan Inputs'!$R34="Yes",Worksheet!AM58*Worksheet!AM39,0)-AM77,0) -> 0 | AO96: Hospitalization: | AP96: =MAX(IF('1. Plan Inputs'!$U34="Yes",Worksheet!AP58*Worksheet!AP39,0)-AP77,0) -> 0 | AQ96: =MAX(IF('1. Plan Inputs'!$U34="Yes",Worksheet!AQ58*Worksheet!AQ39,0)-AQ77,0) -> 0 | AR96: =MAX(IF('1. Plan Inputs'!$U34="Yes",Worksheet!AR58*Worksheet!AR39,0)-AR77,0) -> 0 | AS96: =MAX(IF('1. Plan Inputs'!$U34="Yes",Worksheet!AS58*Worksheet!AS39,0)-AS77,0) -> 0 | AT96: =MAX(IF('1. Plan Inputs'!$U34="Yes",Worksheet!AT58*Worksheet!AT39,0)-AT77,0) -> 0 | AU96: =MAX(IF('1. Plan Inputs'!$U34="Yes",Worksheet!AU58*Worksheet!AU39,0)-AU77,0) -> 0
A97: Outpatient Service: | B97: =MAX(IF('1. Plan Inputs'!$F35="Yes",Worksheet!B59*Worksheet!B40,0)-B78,0) -> 0 | C97: =MAX(IF('1. Plan Inputs'!$F35="Yes",Worksheet!C59*Worksheet!C40,0)-C78,0) -> 0 | D97: =MAX(IF('1. Plan Inputs'!$F35="Yes",Worksheet!D59*Worksheet!D40,0)-D78,0) -> 0 | E97: =MAX(IF('1. Plan Inputs'!$F35="Yes",Worksheet!E59*Worksheet!E40,0)-E78,0) -> 0 | F97: =MAX(IF('1. Plan Inputs'!$F35="Yes",Worksheet!F59*Worksheet!F40,0)-F78,0) -> 0 | G97: =MAX(IF('1. Plan Inputs'!$F35="Yes",Worksheet!G59*Worksheet!G40,0)-G78,0) -> 0 | I97: Outpatient Service: | J97: =MAX(IF('1. Plan Inputs'!$I35="Yes",Worksheet!J59*Worksheet!J40,0)-J78,0) -> 0 | K97: =MAX(IF('1. Plan Inputs'!$I35="Yes",Worksheet!K59*Worksheet!K40,0)-K78,0) -> 0 | L97: =MAX(IF('1. Plan Inputs'!$I35="Yes",Worksheet!L59*Worksheet!L40,0)-L78,0) -> 0 | M97: =MAX(IF('1. Plan Inputs'!$I35="Yes",Worksheet!M59*Worksheet!M40,0)-M78,0) -> 0 | N97: =MAX(IF('1. Plan Inputs'!$I35="Yes",Worksheet!N59*Worksheet!N40,0)-N78,0) -> 0 | O97: =MAX(IF('1. Plan Inputs'!$I35="Yes",Worksheet!O59*Worksheet!O40,0)-O78,0) -> 0 | Q97: Outpatient Service: | R97: =MAX(IF('1. Plan Inputs'!$L35="Yes",Worksheet!R59*Worksheet!R40,0)-R78,0) -> 0 | S97: =MAX(IF('1. Plan Inputs'!$L35="Yes",Worksheet!S59*Worksheet!S40,0)-S78,0) -> 0 | T97: =MAX(IF('1. Plan Inputs'!$L35="Yes",Worksheet!T59*Worksheet!T40,0)-T78,0) -> 0 | U97: =MAX(IF('1. Plan Inputs'!$L35="Yes",Worksheet!U59*Worksheet!U40,0)-U78,0) -> 0 | V97: =MAX(IF('1. Plan Inputs'!$L35="Yes",Worksheet!V59*Worksheet!V40,0)-V78,0) -> 0 | W97: =MAX(IF('1. Plan Inputs'!$L35="Yes",Worksheet!W59*Worksheet!W40,0)-W78,0) -> 0 | Y97: Outpatient Service: | Z97: =MAX(IF('1. Plan Inputs'!$O35="Yes",Worksheet!Z59*Worksheet!Z40,0)-Z78,0) -> 0 | AA97: =MAX(IF('1. Plan Inputs'!$O35="Yes",Worksheet!AA59*Worksheet!AA40,0)-AA78,0) -> 0 | AB97: =MAX(IF('1. Plan Inputs'!$O35="Yes",Worksheet!AB59*Worksheet!AB40,0)-AB78,0) -> 0 | AC97: =MAX(IF('1. Plan Inputs'!$O35="Yes",Worksheet!AC59*Worksheet!AC40,0)-AC78,0) -> 0 | AD97: =MAX(IF('1. Plan Inputs'!$O35="Yes",Worksheet!AD59*Worksheet!AD40,0)-AD78,0) -> 0 | AE97: =MAX(IF('1. Plan Inputs'!$O35="Yes",Worksheet!AE59*Worksheet!AE40,0)-AE78,0) -> 0 | AG97: Outpatient Service: | AH97: =MAX(IF('1. Plan Inputs'!$R35="Yes",Worksheet!AH59*Worksheet!AH40,0)-AH78,0) -> 0 | AI97: =MAX(IF('1. Plan Inputs'!$R35="Yes",Worksheet!AI59*Worksheet!AI40,0)-AI78,0) -> 0 | AJ97: =MAX(IF('1. Plan Inputs'!$R35="Yes",Worksheet!AJ59*Worksheet!AJ40,0)-AJ78,0) -> 0 | AK97: =MAX(IF('1. Plan Inputs'!$R35="Yes",Worksheet!AK59*Worksheet!AK40,0)-AK78,0) -> 0 | AL97: =MAX(IF('1. Plan Inputs'!$R35="Yes",Worksheet!AL59*Worksheet!AL40,0)-AL78,0) -> 0 | AM97: =MAX(IF('1. Plan Inputs'!$R35="Yes",Worksheet!AM59*Worksheet!AM40,0)-AM78,0) -> 0 | AO97: Outpatient Service: | AP97: =MAX(IF('1. Plan Inputs'!$U35="Yes",Worksheet!AP59*Worksheet!AP40,0)-AP78,0) -> 0 | AQ97: =MAX(IF('1. Plan Inputs'!$U35="Yes",Worksheet!AQ59*Worksheet!AQ40,0)-AQ78,0) -> 0 | AR97: =MAX(IF('1. Plan Inputs'!$U35="Yes",Worksheet!AR59*Worksheet!AR40,0)-AR78,0) -> 0 | AS97: =MAX(IF('1. Plan Inputs'!$U35="Yes",Worksheet!AS59*Worksheet!AS40,0)-AS78,0) -> 0 | AT97: =MAX(IF('1. Plan Inputs'!$U35="Yes",Worksheet!AT59*Worksheet!AT40,0)-AT78,0) -> 0 | AU97: =MAX(IF('1. Plan Inputs'!$U35="Yes",Worksheet!AU59*Worksheet!AU40,0)-AU78,0) -> 0
A98: Lab/X-Ray/Radiology Service: | B98: =MAX(IF('1. Plan Inputs'!$F36="Yes",Worksheet!B60*Worksheet!B41,0)-B79,0) -> 0 | C98: =MAX(IF('1. Plan Inputs'!$F36="Yes",Worksheet!C60*Worksheet!C41,0)-C79,0) -> 0 | D98: =MAX(IF('1. Plan Inputs'!$F36="Yes",Worksheet!D60*Worksheet!D41,0)-D79,0) -> 0 | E98: =MAX(IF('1. Plan Inputs'!$F36="Yes",Worksheet!E60*Worksheet!E41,0)-E79,0) -> 0 | F98: =MAX(IF('1. Plan Inputs'!$F36="Yes",Worksheet!F60*Worksheet!F41,0)-F79,0) -> 0 | G98: =MAX(IF('1. Plan Inputs'!$F36="Yes",Worksheet!G60*Worksheet!G41,0)-G79,0) -> 0 | I98: Lab/X-Ray/Radiology Service: | J98: =MAX(IF('1. Plan Inputs'!$I36="Yes",Worksheet!J60*Worksheet!J41,0)-J79,0) -> 0 | K98: =MAX(IF('1. Plan Inputs'!$I36="Yes",Worksheet!K60*Worksheet!K41,0)-K79,0) -> 0 | L98: =MAX(IF('1. Plan Inputs'!$I36="Yes",Worksheet!L60*Worksheet!L41,0)-L79,0) -> 0 | M98: =MAX(IF('1. Plan Inputs'!$I36="Yes",Worksheet!M60*Worksheet!M41,0)-M79,0) -> 0 | N98: =MAX(IF('1. Plan Inputs'!$I36="Yes",Worksheet!N60*Worksheet!N41,0)-N79,0) -> 0 | O98: =MAX(IF('1. Plan Inputs'!$I36="Yes",Worksheet!O60*Worksheet!O41,0)-O79,0) -> 0 | Q98: Lab/X-Ray/Radiology Service: | R98: =MAX(IF('1. Plan Inputs'!$L36="Yes",Worksheet!R60*Worksheet!R41,0)-R79,0) -> 0 | S98: =MAX(IF('1. Plan Inputs'!$L36="Yes",Worksheet!S60*Worksheet!S41,0)-S79,0) -> 0 | T98: =MAX(IF('1. Plan Inputs'!$L36="Yes",Worksheet!T60*Worksheet!T41,0)-T79,0) -> 0 | U98: =MAX(IF('1. Plan Inputs'!$L36="Yes",Worksheet!U60*Worksheet!U41,0)-U79,0) -> 0 | V98: =MAX(IF('1. Plan Inputs'!$L36="Yes",Worksheet!V60*Worksheet!V41,0)-V79,0) -> 0 | W98: =MAX(IF('1. Plan Inputs'!$L36="Yes",Worksheet!W60*Worksheet!W41,0)-W79,0) -> 0 | Y98: Lab/X-Ray/Radiology Service: | Z98: =MAX(IF('1. Plan Inputs'!$O36="Yes",Worksheet!Z60*Worksheet!Z41,0)-Z79,0) -> 0 | AA98: =MAX(IF('1. Plan Inputs'!$O36="Yes",Worksheet!AA60*Worksheet!AA41,0)-AA79,0) -> 0 | AB98: =MAX(IF('1. Plan Inputs'!$O36="Yes",Worksheet!AB60*Worksheet!AB41,0)-AB79,0) -> 0 | AC98: =MAX(IF('1. Plan Inputs'!$O36="Yes",Worksheet!AC60*Worksheet!AC41,0)-AC79,0) -> 0 | AD98: =MAX(IF('1. Plan Inputs'!$O36="Yes",Worksheet!AD60*Worksheet!AD41,0)-AD79,0) -> 0 | AE98: =MAX(IF('1. Plan Inputs'!$O36="Yes",Worksheet!AE60*Worksheet!AE41,0)-AE79,0) -> 0 | AG98: Lab/X-Ray/Radiology Service: | AH98: =MAX(IF('1. Plan Inputs'!$R36="Yes",Worksheet!AH60*Worksheet!AH41,0)-AH79,0) -> 0 | AI98: =MAX(IF('1. Plan Inputs'!$R36="Yes",Worksheet!AI60*Worksheet!AI41,0)-AI79,0) -> 0 | AJ98: =MAX(IF('1. Plan Inputs'!$R36="Yes",Worksheet!AJ60*Worksheet!AJ41,0)-AJ79,0) -> 0 | AK98: =MAX(IF('1. Plan Inputs'!$R36="Yes",Worksheet!AK60*Worksheet!AK41,0)-AK79,0) -> 0 | AL98: =MAX(IF('1. Plan Inputs'!$R36="Yes",Worksheet!AL60*Worksheet!AL41,0)-AL79,0) -> 0 | AM98: =MAX(IF('1. Plan Inputs'!$R36="Yes",Worksheet!AM60*Worksheet!AM41,0)-AM79,0) -> 0 | AO98: Lab/X-Ray/Radiology Service: | AP98: =MAX(IF('1. Plan Inputs'!$U36="Yes",Worksheet!AP60*Worksheet!AP41,0)-AP79,0) -> 0 | AQ98: =MAX(IF('1. Plan Inputs'!$U36="Yes",Worksheet!AQ60*Worksheet!AQ41,0)-AQ79,0) -> 0 | AR98: =MAX(IF('1. Plan Inputs'!$U36="Yes",Worksheet!AR60*Worksheet!AR41,0)-AR79,0) -> 0 | AS98: =MAX(IF('1. Plan Inputs'!$U36="Yes",Worksheet!AS60*Worksheet!AS41,0)-AS79,0) -> 0 | AT98: =MAX(IF('1. Plan Inputs'!$U36="Yes",Worksheet!AT60*Worksheet!AT41,0)-AT79,0) -> 0 | AU98: =MAX(IF('1. Plan Inputs'!$U36="Yes",Worksheet!AU60*Worksheet!AU41,0)-AU79,0) -> 0
A99: Emergency Room Visit: | B99: =MAX(IF('1. Plan Inputs'!$F38="Yes",Worksheet!B61*Worksheet!B42,0)-B80,0) -> 0 | C99: =MAX(IF('1. Plan Inputs'!$F38="Yes",Worksheet!C61*Worksheet!C42,0)-C80,0) -> 0 | D99: =MAX(IF('1. Plan Inputs'!$F38="Yes",Worksheet!D61*Worksheet!D42,0)-D80,0) -> 0 | E99: =MAX(IF('1. Plan Inputs'!$F38="Yes",Worksheet!E61*Worksheet!E42,0)-E80,0) -> 0 | F99: =MAX(IF('1. Plan Inputs'!$F38="Yes",Worksheet!F61*Worksheet!F42,0)-F80,0) -> 0 | G99: =MAX(IF('1. Plan Inputs'!$F38="Yes",Worksheet!G61*Worksheet!G42,0)-G80,0) -> 0 | I99: Emergency Room Visit: | J99: =MAX(IF('1. Plan Inputs'!$I38="Yes",Worksheet!J61*Worksheet!J42,0)-J80,0) -> 0 | K99: =MAX(IF('1. Plan Inputs'!$I38="Yes",Worksheet!K61*Worksheet!K42,0)-K80,0) -> 0 | L99: =MAX(IF('1. Plan Inputs'!$I38="Yes",Worksheet!L61*Worksheet!L42,0)-L80,0) -> 0 | M99: =MAX(IF('1. Plan Inputs'!$I38="Yes",Worksheet!M61*Worksheet!M42,0)-M80,0) -> 0 | N99: =MAX(IF('1. Plan Inputs'!$I38="Yes",Worksheet!N61*Worksheet!N42,0)-N80,0) -> 0 | O99: =MAX(IF('1. Plan Inputs'!$I38="Yes",Worksheet!O61*Worksheet!O42,0)-O80,0) -> 0 | Q99: Emergency Room Visit: | R99: =MAX(IF('1. Plan Inputs'!$L38="Yes",Worksheet!R61*Worksheet!R42,0)-R80,0) -> 0 | S99: =MAX(IF('1. Plan Inputs'!$L38="Yes",Worksheet!S61*Worksheet!S42,0)-S80,0) -> 0 | T99: =MAX(IF('1. Plan Inputs'!$L38="Yes",Worksheet!T61*Worksheet!T42,0)-T80,0) -> 0 | U99: =MAX(IF('1. Plan Inputs'!$L38="Yes",Worksheet!U61*Worksheet!U42,0)-U80,0) -> 0 | V99: =MAX(IF('1. Plan Inputs'!$L38="Yes",Worksheet!V61*Worksheet!V42,0)-V80,0) -> 0 | W99: =MAX(IF('1. Plan Inputs'!$L38="Yes",Worksheet!W61*Worksheet!W42,0)-W80,0) -> 0 | Y99: Emergency Room Visit: | Z99: =MAX(IF('1. Plan Inputs'!$O38="Yes",Worksheet!Z61*Worksheet!Z42,0)-Z80,0) -> 0 | AA99: =MAX(IF('1. Plan Inputs'!$O38="Yes",Worksheet!AA61*Worksheet!AA42,0)-AA80,0) -> 0 | AB99: =MAX(IF('1. Plan Inputs'!$O38="Yes",Worksheet!AB61*Worksheet!AB42,0)-AB80,0) -> 0 | AC99: =MAX(IF('1. Plan Inputs'!$O38="Yes",Worksheet!AC61*Worksheet!AC42,0)-AC80,0) -> 0 | AD99: =MAX(IF('1. Plan Inputs'!$O38="Yes",Worksheet!AD61*Worksheet!AD42,0)-AD80,0) -> 0 | AE99: =MAX(IF('1. Plan Inputs'!$O38="Yes",Worksheet!AE61*Worksheet!AE42,0)-AE80,0) -> 0 | AG99: Emergency Room Visit: | AH99: =MAX(IF('1. Plan Inputs'!$R38="Yes",Worksheet!AH61*Worksheet!AH42,0)-AH80,0) -> 0 | AI99: =MAX(IF('1. Plan Inputs'!$R38="Yes",Worksheet!AI61*Worksheet!AI42,0)-AI80,0) -> 0 | AJ99: =MAX(IF('1. Plan Inputs'!$R38="Yes",Worksheet!AJ61*Worksheet!AJ42,0)-AJ80,0) -> 0 | AK99: =MAX(IF('1. Plan Inputs'!$R38="Yes",Worksheet!AK61*Worksheet!AK42,0)-AK80,0) -> 0 | AL99: =MAX(IF('1. Plan Inputs'!$R38="Yes",Worksheet!AL61*Worksheet!AL42,0)-AL80,0) -> 0 | AM99: =MAX(IF('1. Plan Inputs'!$R38="Yes",Worksheet!AM61*Worksheet!AM42,0)-AM80,0) -> 0 | AO99: Emergency Room Visit: | AP99: =MAX(IF('1. Plan Inputs'!$U38="Yes",Worksheet!AP61*Worksheet!AP42,0)-AP80,0) -> 0 | AQ99: =MAX(IF('1. Plan Inputs'!$U38="Yes",Worksheet!AQ61*Worksheet!AQ42,0)-AQ80,0) -> 0 | AR99: =MAX(IF('1. Plan Inputs'!$U38="Yes",Worksheet!AR61*Worksheet!AR42,0)-AR80,0) -> 0 | AS99: =MAX(IF('1. Plan Inputs'!$U38="Yes",Worksheet!AS61*Worksheet!AS42,0)-AS80,0) -> 0 | AT99: =MAX(IF('1. Plan Inputs'!$U38="Yes",Worksheet!AT61*Worksheet!AT42,0)-AT80,0) -> 0 | AU99: =MAX(IF('1. Plan Inputs'!$U38="Yes",Worksheet!AU61*Worksheet!AU42,0)-AU80,0) -> 0
A100: Urgent Care Visit: | B100: =MAX(IF('1. Plan Inputs'!$F39="Yes",Worksheet!B62*Worksheet!B43,0)-B81,0) -> 0 | C100: =MAX(IF('1. Plan Inputs'!$F39="Yes",Worksheet!C62*Worksheet!C43,0)-C81,0) -> 0 | D100: =MAX(IF('1. Plan Inputs'!$F39="Yes",Worksheet!D62*Worksheet!D43,0)-D81,0) -> 0 | E100: =MAX(IF('1. Plan Inputs'!$F39="Yes",Worksheet!E62*Worksheet!E43,0)-E81,0) -> 0 | F100: =MAX(IF('1. Plan Inputs'!$F39="Yes",Worksheet!F62*Worksheet!F43,0)-F81,0) -> 0 | G100: =MAX(IF('1. Plan Inputs'!$F39="Yes",Worksheet!G62*Worksheet!G43,0)-G81,0) -> 0 | I100: Urgent Care Visit: | J100: =MAX(IF('1. Plan Inputs'!$I39="Yes",Worksheet!J62*Worksheet!J43,0)-J81,0) -> 0 | K100: =MAX(IF('1. Plan Inputs'!$I39="Yes",Worksheet!K62*Worksheet!K43,0)-K81,0) -> 0 | L100: =MAX(IF('1. Plan Inputs'!$I39="Yes",Worksheet!L62*Worksheet!L43,0)-L81,0) -> 0 | M100: =MAX(IF('1. Plan Inputs'!$I39="Yes",Worksheet!M62*Worksheet!M43,0)-M81,0) -> 0 | N100: =MAX(IF('1. Plan Inputs'!$I39="Yes",Worksheet!N62*Worksheet!N43,0)-N81,0) -> 0 | O100: =MAX(IF('1. Plan Inputs'!$I39="Yes",Worksheet!O62*Worksheet!O43,0)-O81,0) -> 0 | Q100: Urgent Care Visit: | R100: =MAX(IF('1. Plan Inputs'!$L39="Yes",Worksheet!R62*Worksheet!R43,0)-R81,0) -> 0 | S100: =MAX(IF('1. Plan Inputs'!$L39="Yes",Worksheet!S62*Worksheet!S43,0)-S81,0) -> 0 | T100: =MAX(IF('1. Plan Inputs'!$L39="Yes",Worksheet!T62*Worksheet!T43,0)-T81,0) -> 0 | U100: =MAX(IF('1. Plan Inputs'!$L39="Yes",Worksheet!U62*Worksheet!U43,0)-U81,0) -> 0 | V100: =MAX(IF('1. Plan Inputs'!$L39="Yes",Worksheet!V62*Worksheet!V43,0)-V81,0) -> 0 | W100: =MAX(IF('1. Plan Inputs'!$L39="Yes",Worksheet!W62*Worksheet!W43,0)-W81,0) -> 0 | Y100: Urgent Care Visit: | Z100: =MAX(IF('1. Plan Inputs'!$O39="Yes",Worksheet!Z62*Worksheet!Z43,0)-Z81,0) -> 0 | AA100: =MAX(IF('1. Plan Inputs'!$O39="Yes",Worksheet!AA62*Worksheet!AA43,0)-AA81,0) -> 0 | AB100: =MAX(IF('1. Plan Inputs'!$O39="Yes",Worksheet!AB62*Worksheet!AB43,0)-AB81,0) -> 0 | AC100: =MAX(IF('1. Plan Inputs'!$O39="Yes",Worksheet!AC62*Worksheet!AC43,0)-AC81,0) -> 0 | AD100: =MAX(IF('1. Plan Inputs'!$O39="Yes",Worksheet!AD62*Worksheet!AD43,0)-AD81,0) -> 0 | AE100: =MAX(IF('1. Plan Inputs'!$O39="Yes",Worksheet!AE62*Worksheet!AE43,0)-AE81,0) -> 0 | AG100: Urgent Care Visit: | AH100: =MAX(IF('1. Plan Inputs'!$R39="Yes",Worksheet!AH62*Worksheet!AH43,0)-AH81,0) -> 0 | AI100: =MAX(IF('1. Plan Inputs'!$R39="Yes",Worksheet!AI62*Worksheet!AI43,0)-AI81,0) -> 0 | AJ100: =MAX(IF('1. Plan Inputs'!$R39="Yes",Worksheet!AJ62*Worksheet!AJ43,0)-AJ81,0) -> 0 | AK100: =MAX(IF('1. Plan Inputs'!$R39="Yes",Worksheet!AK62*Worksheet!AK43,0)-AK81,0) -> 0 | AL100: =MAX(IF('1. Plan Inputs'!$R39="Yes",Worksheet!AL62*Worksheet!AL43,0)-AL81,0) -> 0 | AM100: =MAX(IF('1. Plan Inputs'!$R39="Yes",Worksheet!AM62*Worksheet!AM43,0)-AM81,0) -> 0 | AO100: Urgent Care Visit: | AP100: =MAX(IF('1. Plan Inputs'!$U39="Yes",Worksheet!AP62*Worksheet!AP43,0)-AP81,0) -> 0 | AQ100: =MAX(IF('1. Plan Inputs'!$U39="Yes",Worksheet!AQ62*Worksheet!AQ43,0)-AQ81,0) -> 0 | AR100: =MAX(IF('1. Plan Inputs'!$U39="Yes",Worksheet!AR62*Worksheet!AR43,0)-AR81,0) -> 0 | AS100: =MAX(IF('1. Plan Inputs'!$U39="Yes",Worksheet!AS62*Worksheet!AS43,0)-AS81,0) -> 0 | AT100: =MAX(IF('1. Plan Inputs'!$U39="Yes",Worksheet!AT62*Worksheet!AT43,0)-AT81,0) -> 0 | AU100: =MAX(IF('1. Plan Inputs'!$U39="Yes",Worksheet!AU62*Worksheet!AU43,0)-AU81,0) -> 0
A101: PCP Office Visit: | B101: =MAX(IF('1. Plan Inputs'!$F42="Yes",Worksheet!B63*Worksheet!B44,0)-B82,0) -> 0 | C101: =MAX(IF('1. Plan Inputs'!$F42="Yes",Worksheet!C63*Worksheet!C44,0)-C82,0) -> 0 | D101: =MAX(IF('1. Plan Inputs'!$F42="Yes",Worksheet!D63*Worksheet!D44,0)-D82,0) -> 0 | E101: =MAX(IF('1. Plan Inputs'!$F42="Yes",Worksheet!E63*Worksheet!E44,0)-E82,0) -> 0 | F101: =MAX(IF('1. Plan Inputs'!$F42="Yes",Worksheet!F63*Worksheet!F44,0)-F82,0) -> 0 | G101: =MAX(IF('1. Plan Inputs'!$F42="Yes",Worksheet!G63*Worksheet!G44,0)-G82,0) -> 0 | I101: PCP Office Visit: | J101: =MAX(IF('1. Plan Inputs'!$I42="Yes",Worksheet!J63*Worksheet!J44,0)-J82,0) -> 0 | K101: =MAX(IF('1. Plan Inputs'!$I42="Yes",Worksheet!K63*Worksheet!K44,0)-K82,0) -> 0 | L101: =MAX(IF('1. Plan Inputs'!$I42="Yes",Worksheet!L63*Worksheet!L44,0)-L82,0) -> 0 | M101: =MAX(IF('1. Plan Inputs'!$I42="Yes",Worksheet!M63*Worksheet!M44,0)-M82,0) -> 0 | N101: =MAX(IF('1. Plan Inputs'!$I42="Yes",Worksheet!N63*Worksheet!N44,0)-N82,0) -> 0 | O101: =MAX(IF('1. Plan Inputs'!$I42="Yes",Worksheet!O63*Worksheet!O44,0)-O82,0) -> 0 | Q101: PCP Office Visit: | R101: =MAX(IF('1. Plan Inputs'!$L42="Yes",Worksheet!R63*Worksheet!R44,0)-R82,0) -> 0 | S101: =MAX(IF('1. Plan Inputs'!$L42="Yes",Worksheet!S63*Worksheet!S44,0)-S82,0) -> 0 | T101: =MAX(IF('1. Plan Inputs'!$L42="Yes",Worksheet!T63*Worksheet!T44,0)-T82,0) -> 0 | U101: =MAX(IF('1. Plan Inputs'!$L42="Yes",Worksheet!U63*Worksheet!U44,0)-U82,0) -> 0 | V101: =MAX(IF('1. Plan Inputs'!$L42="Yes",Worksheet!V63*Worksheet!V44,0)-V82,0) -> 0 | W101: =MAX(IF('1. Plan Inputs'!$L42="Yes",Worksheet!W63*Worksheet!W44,0)-W82,0) -> 0 | Y101: PCP Office Visit: | Z101: =MAX(IF('1. Plan Inputs'!$O42="Yes",Worksheet!Z63*Worksheet!Z44,0)-Z82,0) -> 0 | AA101: =MAX(IF('1. Plan Inputs'!$O42="Yes",Worksheet!AA63*Worksheet!AA44,0)-AA82,0) -> 0 | AB101: =MAX(IF('1. Plan Inputs'!$O42="Yes",Worksheet!AB63*Worksheet!AB44,0)-AB82,0) -> 0 | AC101: =MAX(IF('1. Plan Inputs'!$O42="Yes",Worksheet!AC63*Worksheet!AC44,0)-AC82,0) -> 0 | AD101: =MAX(IF('1. Plan Inputs'!$O42="Yes",Worksheet!AD63*Worksheet!AD44,0)-AD82,0) -> 0 | AE101: =MAX(IF('1. Plan Inputs'!$O42="Yes",Worksheet!AE63*Worksheet!AE44,0)-AE82,0) -> 0 | AG101: PCP Office Visit: | AH101: =MAX(IF('1. Plan Inputs'!$R42="Yes",Worksheet!AH63*Worksheet!AH44,0)-AH82,0) -> 0 | AI101: =MAX(IF('1. Plan Inputs'!$R42="Yes",Worksheet!AI63*Worksheet!AI44,0)-AI82,0) -> 0 | AJ101: =MAX(IF('1. Plan Inputs'!$R42="Yes",Worksheet!AJ63*Worksheet!AJ44,0)-AJ82,0) -> 0 | AK101: =MAX(IF('1. Plan Inputs'!$R42="Yes",Worksheet!AK63*Worksheet!AK44,0)-AK82,0) -> 0 | AL101: =MAX(IF('1. Plan Inputs'!$R42="Yes",Worksheet!AL63*Worksheet!AL44,0)-AL82,0) -> 0 | AM101: =MAX(IF('1. Plan Inputs'!$R42="Yes",Worksheet!AM63*Worksheet!AM44,0)-AM82,0) -> 0 | AO101: PCP Office Visit: | AP101: =MAX(IF('1. Plan Inputs'!$U42="Yes",Worksheet!AP63*Worksheet!AP44,0)-AP82,0) -> 0 | AQ101: =MAX(IF('1. Plan Inputs'!$U42="Yes",Worksheet!AQ63*Worksheet!AQ44,0)-AQ82,0) -> 0 | AR101: =MAX(IF('1. Plan Inputs'!$U42="Yes",Worksheet!AR63*Worksheet!AR44,0)-AR82,0) -> 0 | AS101: =MAX(IF('1. Plan Inputs'!$U42="Yes",Worksheet!AS63*Worksheet!AS44,0)-AS82,0) -> 0 | AT101: =MAX(IF('1. Plan Inputs'!$U42="Yes",Worksheet!AT63*Worksheet!AT44,0)-AT82,0) -> 0 | AU101: =MAX(IF('1. Plan Inputs'!$U42="Yes",Worksheet!AU63*Worksheet!AU44,0)-AU82,0) -> 0
A102: Specialist Office Visit: | B102: =MAX(IF('1. Plan Inputs'!$F43="Yes",Worksheet!B64*Worksheet!B45,0)-B83,0) -> 0 | C102: =MAX(IF('1. Plan Inputs'!$F43="Yes",Worksheet!C64*Worksheet!C45,0)-C83,0) -> 0 | D102: =MAX(IF('1. Plan Inputs'!$F43="Yes",Worksheet!D64*Worksheet!D45,0)-D83,0) -> 0 | E102: =MAX(IF('1. Plan Inputs'!$F43="Yes",Worksheet!E64*Worksheet!E45,0)-E83,0) -> 0 | F102: =MAX(IF('1. Plan Inputs'!$F43="Yes",Worksheet!F64*Worksheet!F45,0)-F83,0) -> 0 | G102: =MAX(IF('1. Plan Inputs'!$F43="Yes",Worksheet!G64*Worksheet!G45,0)-G83,0) -> 0 | I102: Specialist Office Visit: | J102: =MAX(IF('1. Plan Inputs'!$I43="Yes",Worksheet!J64*Worksheet!J45,0)-J83,0) -> 0 | K102: =MAX(IF('1. Plan Inputs'!$I43="Yes",Worksheet!K64*Worksheet!K45,0)-K83,0) -> 0 | L102: =MAX(IF('1. Plan Inputs'!$I43="Yes",Worksheet!L64*Worksheet!L45,0)-L83,0) -> 0 | M102: =MAX(IF('1. Plan Inputs'!$I43="Yes",Worksheet!M64*Worksheet!M45,0)-M83,0) -> 0 | N102: =MAX(IF('1. Plan Inputs'!$I43="Yes",Worksheet!N64*Worksheet!N45,0)-N83,0) -> 0 | O102: =MAX(IF('1. Plan Inputs'!$I43="Yes",Worksheet!O64*Worksheet!O45,0)-O83,0) -> 0 | Q102: Specialist Office Visit: | R102: =MAX(IF('1. Plan Inputs'!$L43="Yes",Worksheet!R64*Worksheet!R45,0)-R83,0) -> 0 | S102: =MAX(IF('1. Plan Inputs'!$L43="Yes",Worksheet!S64*Worksheet!S45,0)-S83,0) -> 0 | T102: =MAX(IF('1. Plan Inputs'!$L43="Yes",Worksheet!T64*Worksheet!T45,0)-T83,0) -> 0 | U102: =MAX(IF('1. Plan Inputs'!$L43="Yes",Worksheet!U64*Worksheet!U45,0)-U83,0) -> 0 | V102: =MAX(IF('1. Plan Inputs'!$L43="Yes",Worksheet!V64*Worksheet!V45,0)-V83,0) -> 0 | W102: =MAX(IF('1. Plan Inputs'!$L43="Yes",Worksheet!W64*Worksheet!W45,0)-W83,0) -> 0 | Y102: Specialist Office Visit: | Z102: =MAX(IF('1. Plan Inputs'!$O43="Yes",Worksheet!Z64*Worksheet!Z45,0)-Z83,0) -> 0 | AA102: =MAX(IF('1. Plan Inputs'!$O43="Yes",Worksheet!AA64*Worksheet!AA45,0)-AA83,0) -> 0 | AB102: =MAX(IF('1. Plan Inputs'!$O43="Yes",Worksheet!AB64*Worksheet!AB45,0)-AB83,0) -> 0 | AC102: =MAX(IF('1. Plan Inputs'!$O43="Yes",Worksheet!AC64*Worksheet!AC45,0)-AC83,0) -> 0 | AD102: =MAX(IF('1. Plan Inputs'!$O43="Yes",Worksheet!AD64*Worksheet!AD45,0)-AD83,0) -> 0 | AE102: =MAX(IF('1. Plan Inputs'!$O43="Yes",Worksheet!AE64*Worksheet!AE45,0)-AE83,0) -> 0 | AG102: Specialist Office Visit: | AH102: =MAX(IF('1. Plan Inputs'!$R43="Yes",Worksheet!AH64*Worksheet!AH45,0)-AH83,0) -> 0 | AI102: =MAX(IF('1. Plan Inputs'!$R43="Yes",Worksheet!AI64*Worksheet!AI45,0)-AI83,0) -> 0 | AJ102: =MAX(IF('1. Plan Inputs'!$R43="Yes",Worksheet!AJ64*Worksheet!AJ45,0)-AJ83,0) -> 0 | AK102: =MAX(IF('1. Plan Inputs'!$R43="Yes",Worksheet!AK64*Worksheet!AK45,0)-AK83,0) -> 0 | AL102: =MAX(IF('1. Plan Inputs'!$R43="Yes",Worksheet!AL64*Worksheet!AL45,0)-AL83,0) -> 0 | AM102: =MAX(IF('1. Plan Inputs'!$R43="Yes",Worksheet!AM64*Worksheet!AM45,0)-AM83,0) -> 0 | AO102: Specialist Office Visit: | AP102: =MAX(IF('1. Plan Inputs'!$U43="Yes",Worksheet!AP64*Worksheet!AP45,0)-AP83,0) -> 0 | AQ102: =MAX(IF('1. Plan Inputs'!$U43="Yes",Worksheet!AQ64*Worksheet!AQ45,0)-AQ83,0) -> 0 | AR102: =MAX(IF('1. Plan Inputs'!$U43="Yes",Worksheet!AR64*Worksheet!AR45,0)-AR83,0) -> 0 | AS102: =MAX(IF('1. Plan Inputs'!$U43="Yes",Worksheet!AS64*Worksheet!AS45,0)-AS83,0) -> 0 | AT102: =MAX(IF('1. Plan Inputs'!$U43="Yes",Worksheet!AT64*Worksheet!AT45,0)-AT83,0) -> 0 | AU102: =MAX(IF('1. Plan Inputs'!$U43="Yes",Worksheet!AU64*Worksheet!AU45,0)-AU83,0) -> 0
A103: Chiropractor Visit: | B103: =MAX(IF('1. Plan Inputs'!$F44="Yes",Worksheet!B65*Worksheet!B46,0)-B84,0) -> 0 | C103: =MAX(IF('1. Plan Inputs'!$F44="Yes",Worksheet!C65*Worksheet!C46,0)-C84,0) -> 0 | D103: =MAX(IF('1. Plan Inputs'!$F44="Yes",Worksheet!D65*Worksheet!D46,0)-D84,0) -> 0 | E103: =MAX(IF('1. Plan Inputs'!$F44="Yes",Worksheet!E65*Worksheet!E46,0)-E84,0) -> 0 | F103: =MAX(IF('1. Plan Inputs'!$F44="Yes",Worksheet!F65*Worksheet!F46,0)-F84,0) -> 0 | G103: =MAX(IF('1. Plan Inputs'!$F44="Yes",Worksheet!G65*Worksheet!G46,0)-G84,0) -> 0 | I103: Chiropractor Visit: | J103: =MAX(IF('1. Plan Inputs'!$I44="Yes",Worksheet!J65*Worksheet!J46,0)-J84,0) -> 0 | K103: =MAX(IF('1. Plan Inputs'!$I44="Yes",Worksheet!K65*Worksheet!K46,0)-K84,0) -> 0 | L103: =MAX(IF('1. Plan Inputs'!$I44="Yes",Worksheet!L65*Worksheet!L46,0)-L84,0) -> 0 | M103: =MAX(IF('1. Plan Inputs'!$I44="Yes",Worksheet!M65*Worksheet!M46,0)-M84,0) -> 0 | N103: =MAX(IF('1. Plan Inputs'!$I44="Yes",Worksheet!N65*Worksheet!N46,0)-N84,0) -> 0 | O103: =MAX(IF('1. Plan Inputs'!$I44="Yes",Worksheet!O65*Worksheet!O46,0)-O84,0) -> 0 | Q103: Chiropractor Visit: | R103: =MAX(IF('1. Plan Inputs'!$L44="Yes",Worksheet!R65*Worksheet!R46,0)-R84,0) -> 0 | S103: =MAX(IF('1. Plan Inputs'!$L44="Yes",Worksheet!S65*Worksheet!S46,0)-S84,0) -> 0 | T103: =MAX(IF('1. Plan Inputs'!$L44="Yes",Worksheet!T65*Worksheet!T46,0)-T84,0) -> 0 | U103: =MAX(IF('1. Plan Inputs'!$L44="Yes",Worksheet!U65*Worksheet!U46,0)-U84,0) -> 0 | V103: =MAX(IF('1. Plan Inputs'!$L44="Yes",Worksheet!V65*Worksheet!V46,0)-V84,0) -> 0 | W103: =MAX(IF('1. Plan Inputs'!$L44="Yes",Worksheet!W65*Worksheet!W46,0)-W84,0) -> 0 | Y103: Chiropractor Visit: | Z103: =MAX(IF('1. Plan Inputs'!$O44="Yes",Worksheet!Z65*Worksheet!Z46,0)-Z84,0) -> 0 | AA103: =MAX(IF('1. Plan Inputs'!$O44="Yes",Worksheet!AA65*Worksheet!AA46,0)-AA84,0) -> 0 | AB103: =MAX(IF('1. Plan Inputs'!$O44="Yes",Worksheet!AB65*Worksheet!AB46,0)-AB84,0) -> 0 | AC103: =MAX(IF('1. Plan Inputs'!$O44="Yes",Worksheet!AC65*Worksheet!AC46,0)-AC84,0) -> 0 | AD103: =MAX(IF('1. Plan Inputs'!$O44="Yes",Worksheet!AD65*Worksheet!AD46,0)-AD84,0) -> 0 | AE103: =MAX(IF('1. Plan Inputs'!$O44="Yes",Worksheet!AE65*Worksheet!AE46,0)-AE84,0) -> 0 | AG103: Chiropractor Visit: | AH103: =MAX(IF('1. Plan Inputs'!$R44="Yes",Worksheet!AH65*Worksheet!AH46,0)-AH84,0) -> 0 | AI103: =MAX(IF('1. Plan Inputs'!$R44="Yes",Worksheet!AI65*Worksheet!AI46,0)-AI84,0) -> 0 | AJ103: =MAX(IF('1. Plan Inputs'!$R44="Yes",Worksheet!AJ65*Worksheet!AJ46,0)-AJ84,0) -> 0 | AK103: =MAX(IF('1. Plan Inputs'!$R44="Yes",Worksheet!AK65*Worksheet!AK46,0)-AK84,0) -> 0 | AL103: =MAX(IF('1. Plan Inputs'!$R44="Yes",Worksheet!AL65*Worksheet!AL46,0)-AL84,0) -> 0 | AM103: =MAX(IF('1. Plan Inputs'!$R44="Yes",Worksheet!AM65*Worksheet!AM46,0)-AM84,0) -> 0 | AO103: Chiropractor Visit: | AP103: =MAX(IF('1. Plan Inputs'!$U44="Yes",Worksheet!AP65*Worksheet!AP46,0)-AP84,0) -> 0 | AQ103: =MAX(IF('1. Plan Inputs'!$U44="Yes",Worksheet!AQ65*Worksheet!AQ46,0)-AQ84,0) -> 0 | AR103: =MAX(IF('1. Plan Inputs'!$U44="Yes",Worksheet!AR65*Worksheet!AR46,0)-AR84,0) -> 0 | AS103: =MAX(IF('1. Plan Inputs'!$U44="Yes",Worksheet!AS65*Worksheet!AS46,0)-AS84,0) -> 0 | AT103: =MAX(IF('1. Plan Inputs'!$U44="Yes",Worksheet!AT65*Worksheet!AT46,0)-AT84,0) -> 0 | AU103: =MAX(IF('1. Plan Inputs'!$U44="Yes",Worksheet!AU65*Worksheet!AU46,0)-AU84,0) -> 0
A104: Rx Generic (Retail): | B104: =MAX(IF('1. Plan Inputs'!$G$50="Yes",Worksheet!B66*Worksheet!B47,0)-B85,0) -> 0 | C104: =MAX(IF('1. Plan Inputs'!$G$50="Yes",Worksheet!C66*Worksheet!C47,0)-C85,0) -> 0 | D104: =MAX(IF('1. Plan Inputs'!$G$50="Yes",Worksheet!D66*Worksheet!D47,0)-D85,0) -> 0 | E104: =MAX(IF('1. Plan Inputs'!$G$50="Yes",Worksheet!E66*Worksheet!E47,0)-E85,0) -> 0 | F104: =MAX(IF('1. Plan Inputs'!$G$50="Yes",Worksheet!F66*Worksheet!F47,0)-F85,0) -> 0 | G104: =MAX(IF('1. Plan Inputs'!$G$50="Yes",Worksheet!G66*Worksheet!G47,0)-G85,0) -> 0 | I104: Rx Generic (Retail): | J104: =MAX(IF('1. Plan Inputs'!$J$50="Yes",Worksheet!J66*Worksheet!J47,0)-J85,0) -> 0 | K104: =MAX(IF('1. Plan Inputs'!$J$50="Yes",Worksheet!K66*Worksheet!K47,0)-K85,0) -> 0 | L104: =MAX(IF('1. Plan Inputs'!$J$50="Yes",Worksheet!L66*Worksheet!L47,0)-L85,0) -> 0 | M104: =MAX(IF('1. Plan Inputs'!$J$50="Yes",Worksheet!M66*Worksheet!M47,0)-M85,0) -> 0 | N104: =MAX(IF('1. Plan Inputs'!$J$50="Yes",Worksheet!N66*Worksheet!N47,0)-N85,0) -> 0 | O104: =MAX(IF('1. Plan Inputs'!$J$50="Yes",Worksheet!O66*Worksheet!O47,0)-O85,0) -> 0 | Q104: Rx Generic (Retail): | R104: =MAX(IF('1. Plan Inputs'!$M$50="Yes",Worksheet!R66*Worksheet!R47,0)-R85,0) -> 0 | S104: =MAX(IF('1. Plan Inputs'!$M$50="Yes",Worksheet!S66*Worksheet!S47,0)-S85,0) -> 0 | T104: =MAX(IF('1. Plan Inputs'!$M$50="Yes",Worksheet!T66*Worksheet!T47,0)-T85,0) -> 0 | U104: =MAX(IF('1. Plan Inputs'!$M$50="Yes",Worksheet!U66*Worksheet!U47,0)-U85,0) -> 0 | V104: =MAX(IF('1. Plan Inputs'!$M$50="Yes",Worksheet!V66*Worksheet!V47,0)-V85,0) -> 0 | W104: =MAX(IF('1. Plan Inputs'!$M$50="Yes",Worksheet!W66*Worksheet!W47,0)-W85,0) -> 0 | Y104: Rx Generic (Retail): | Z104: =MAX(IF('1. Plan Inputs'!$P$50="Yes",Worksheet!Z66*Worksheet!Z47,0)-Z85,0) -> 0 | AA104: =MAX(IF('1. Plan Inputs'!$P$50="Yes",Worksheet!AA66*Worksheet!AA47,0)-AA85,0) -> 0 | AB104: =MAX(IF('1. Plan Inputs'!$P$50="Yes",Worksheet!AB66*Worksheet!AB47,0)-AB85,0) -> 0 | AC104: =MAX(IF('1. Plan Inputs'!$P$50="Yes",Worksheet!AC66*Worksheet!AC47,0)-AC85,0) -> 0 | AD104: =MAX(IF('1. Plan Inputs'!$P$50="Yes",Worksheet!AD66*Worksheet!AD47,0)-AD85,0) -> 0 | AE104: =MAX(IF('1. Plan Inputs'!$P$50="Yes",Worksheet!AE66*Worksheet!AE47,0)-AE85,0) -> 0 | AG104: Rx Generic (Retail): | AH104: =MAX(IF('1. Plan Inputs'!$S$50="Yes",Worksheet!AH66*Worksheet!AH47,0)-AH85,0) -> 0 | AI104: =MAX(IF('1. Plan Inputs'!$S$50="Yes",Worksheet!AI66*Worksheet!AI47,0)-AI85,0) -> 0 | AJ104: =MAX(IF('1. Plan Inputs'!$S$50="Yes",Worksheet!AJ66*Worksheet!AJ47,0)-AJ85,0) -> 0 | AK104: =MAX(IF('1. Plan Inputs'!$S$50="Yes",Worksheet!AK66*Worksheet!AK47,0)-AK85,0) -> 0 | AL104: =MAX(IF('1. Plan Inputs'!$S$50="Yes",Worksheet!AL66*Worksheet!AL47,0)-AL85,0) -> 0 | AM104: =MAX(IF('1. Plan Inputs'!$S$50="Yes",Worksheet!AM66*Worksheet!AM47,0)-AM85,0) -> 0 | AO104: Rx Generic (Retail): | AP104: =MAX(IF('1. Plan Inputs'!$V$50="Yes",Worksheet!AP66*Worksheet!AP47,0)-AP85,0) -> 0 | AQ104: =MAX(IF('1. Plan Inputs'!$V$50="Yes",Worksheet!AQ66*Worksheet!AQ47,0)-AQ85,0) -> 0 | AR104: =MAX(IF('1. Plan Inputs'!$V$50="Yes",Worksheet!AR66*Worksheet!AR47,0)-AR85,0) -> 0 | AS104: =MAX(IF('1. Plan Inputs'!$V$50="Yes",Worksheet!AS66*Worksheet!AS47,0)-AS85,0) -> 0 | AT104: =MAX(IF('1. Plan Inputs'!$V$50="Yes",Worksheet!AT66*Worksheet!AT47,0)-AT85,0) -> 0 | AU104: =MAX(IF('1. Plan Inputs'!$V$50="Yes",Worksheet!AU66*Worksheet!AU47,0)-AU85,0) -> 0
A105: Rx Brand Formulary (Retail): | B105: =MAX(IF('1. Plan Inputs'!$G$50="Yes",Worksheet!B67*Worksheet!B48,0)-B86,0) -> 0 | C105: =MAX(IF('1. Plan Inputs'!$G$50="Yes",Worksheet!C67*Worksheet!C48,0)-C86,0) -> 0 | D105: =MAX(IF('1. Plan Inputs'!$G$50="Yes",Worksheet!D67*Worksheet!D48,0)-D86,0) -> 0 | E105: =MAX(IF('1. Plan Inputs'!$G$50="Yes",Worksheet!E67*Worksheet!E48,0)-E86,0) -> 0 | F105: =MAX(IF('1. Plan Inputs'!$G$50="Yes",Worksheet!F67*Worksheet!F48,0)-F86,0) -> 0 | G105: =MAX(IF('1. Plan Inputs'!$G$50="Yes",Worksheet!G67*Worksheet!G48,0)-G86,0) -> 0 | I105: Rx Brand Formulary (Retail): | J105: =MAX(IF('1. Plan Inputs'!$J$50="Yes",Worksheet!J67*Worksheet!J48,0)-J86,0) -> 0 | K105: =MAX(IF('1. Plan Inputs'!$J$50="Yes",Worksheet!K67*Worksheet!K48,0)-K86,0) -> 0 | L105: =MAX(IF('1. Plan Inputs'!$J$50="Yes",Worksheet!L67*Worksheet!L48,0)-L86,0) -> 0 | M105: =MAX(IF('1. Plan Inputs'!$J$50="Yes",Worksheet!M67*Worksheet!M48,0)-M86,0) -> 0 | N105: =MAX(IF('1. Plan Inputs'!$J$50="Yes",Worksheet!N67*Worksheet!N48,0)-N86,0) -> 0 | O105: =MAX(IF('1. Plan Inputs'!$J$50="Yes",Worksheet!O67*Worksheet!O48,0)-O86,0) -> 0 | Q105: Rx Brand Formulary (Retail): | R105: =MAX(IF('1. Plan Inputs'!$M$50="Yes",Worksheet!R67*Worksheet!R48,0)-R86,0) -> 0 | S105: =MAX(IF('1. Plan Inputs'!$M$50="Yes",Worksheet!S67*Worksheet!S48,0)-S86,0) -> 0 | T105: =MAX(IF('1. Plan Inputs'!$M$50="Yes",Worksheet!T67*Worksheet!T48,0)-T86,0) -> 0 | U105: =MAX(IF('1. Plan Inputs'!$M$50="Yes",Worksheet!U67*Worksheet!U48,0)-U86,0) -> 0 | V105: =MAX(IF('1. Plan Inputs'!$M$50="Yes",Worksheet!V67*Worksheet!V48,0)-V86,0) -> 0 | W105: =MAX(IF('1. Plan Inputs'!$M$50="Yes",Worksheet!W67*Worksheet!W48,0)-W86,0) -> 0 | Y105: Rx Brand Formulary (Retail): | Z105: =MAX(IF('1. Plan Inputs'!$P$50="Yes",Worksheet!Z67*Worksheet!Z48,0)-Z86,0) -> 0 | AA105: =MAX(IF('1. Plan Inputs'!$P$50="Yes",Worksheet!AA67*Worksheet!AA48,0)-AA86,0) -> 0 | AB105: =MAX(IF('1. Plan Inputs'!$P$50="Yes",Worksheet!AB67*Worksheet!AB48,0)-AB86,0) -> 0 | AC105: =MAX(IF('1. Plan Inputs'!$P$50="Yes",Worksheet!AC67*Worksheet!AC48,0)-AC86,0) -> 0 | AD105: =MAX(IF('1. Plan Inputs'!$P$50="Yes",Worksheet!AD67*Worksheet!AD48,0)-AD86,0) -> 0 | AE105: =MAX(IF('1. Plan Inputs'!$P$50="Yes",Worksheet!AE67*Worksheet!AE48,0)-AE86,0) -> 0 | AG105: Rx Brand Formulary (Retail): | AH105: =MAX(IF('1. Plan Inputs'!$S$50="Yes",Worksheet!AH67*Worksheet!AH48,0)-AH86,0) -> 0 | AI105: =MAX(IF('1. Plan Inputs'!$S$50="Yes",Worksheet!AI67*Worksheet!AI48,0)-AI86,0) -> 0 | AJ105: =MAX(IF('1. Plan Inputs'!$S$50="Yes",Worksheet!AJ67*Worksheet!AJ48,0)-AJ86,0) -> 0 | AK105: =MAX(IF('1. Plan Inputs'!$S$50="Yes",Worksheet!AK67*Worksheet!AK48,0)-AK86,0) -> 0 | AL105: =MAX(IF('1. Plan Inputs'!$S$50="Yes",Worksheet!AL67*Worksheet!AL48,0)-AL86,0) -> 0 | AM105: =MAX(IF('1. Plan Inputs'!$S$50="Yes",Worksheet!AM67*Worksheet!AM48,0)-AM86,0) -> 0 | AO105: Rx Brand Formulary (Retail): | AP105: =MAX(IF('1. Plan Inputs'!$V$50="Yes",Worksheet!AP67*Worksheet!AP48,0)-AP86,0) -> 0 | AQ105: =MAX(IF('1. Plan Inputs'!$V$50="Yes",Worksheet!AQ67*Worksheet!AQ48,0)-AQ86,0) -> 0 | AR105: =MAX(IF('1. Plan Inputs'!$V$50="Yes",Worksheet!AR67*Worksheet!AR48,0)-AR86,0) -> 0 | AS105: =MAX(IF('1. Plan Inputs'!$V$50="Yes",Worksheet!AS67*Worksheet!AS48,0)-AS86,0) -> 0 | AT105: =MAX(IF('1. Plan Inputs'!$V$50="Yes",Worksheet!AT67*Worksheet!AT48,0)-AT86,0) -> 0 | AU105: =MAX(IF('1. Plan Inputs'!$V$50="Yes",Worksheet!AU67*Worksheet!AU48,0)-AU86,0) -> 0
A106: Rx Brand Non-Formulary (Retail): | B106: =MAX(IF('1. Plan Inputs'!$G$50="Yes",Worksheet!B68*Worksheet!B49,0)-B87,0) -> 0 | C106: =MAX(IF('1. Plan Inputs'!$G$50="Yes",Worksheet!C68*Worksheet!C49,0)-C87,0) -> 0 | D106: =MAX(IF('1. Plan Inputs'!$G$50="Yes",Worksheet!D68*Worksheet!D49,0)-D87,0) -> 0 | E106: =MAX(IF('1. Plan Inputs'!$G$50="Yes",Worksheet!E68*Worksheet!E49,0)-E87,0) -> 0 | F106: =MAX(IF('1. Plan Inputs'!$G$50="Yes",Worksheet!F68*Worksheet!F49,0)-F87,0) -> 0 | G106: =MAX(IF('1. Plan Inputs'!$G$50="Yes",Worksheet!G68*Worksheet!G49,0)-G87,0) -> 0 | I106: Rx Brand Non-Formulary (Retail): | J106: =MAX(IF('1. Plan Inputs'!$J$50="Yes",Worksheet!J68*Worksheet!J49,0)-J87,0) -> 0 | K106: =MAX(IF('1. Plan Inputs'!$J$50="Yes",Worksheet!K68*Worksheet!K49,0)-K87,0) -> 0 | L106: =MAX(IF('1. Plan Inputs'!$J$50="Yes",Worksheet!L68*Worksheet!L49,0)-L87,0) -> 0 | M106: =MAX(IF('1. Plan Inputs'!$J$50="Yes",Worksheet!M68*Worksheet!M49,0)-M87,0) -> 0 | N106: =MAX(IF('1. Plan Inputs'!$J$50="Yes",Worksheet!N68*Worksheet!N49,0)-N87,0) -> 0 | O106: =MAX(IF('1. Plan Inputs'!$J$50="Yes",Worksheet!O68*Worksheet!O49,0)-O87,0) -> 0 | Q106: Rx Brand Non-Formulary (Retail): | R106: =MAX(IF('1. Plan Inputs'!$M$50="Yes",Worksheet!R68*Worksheet!R49,0)-R87,0) -> 0 | S106: =MAX(IF('1. Plan Inputs'!$M$50="Yes",Worksheet!S68*Worksheet!S49,0)-S87,0) -> 0 | T106: =MAX(IF('1. Plan Inputs'!$M$50="Yes",Worksheet!T68*Worksheet!T49,0)-T87,0) -> 0 | U106: =MAX(IF('1. Plan Inputs'!$M$50="Yes",Worksheet!U68*Worksheet!U49,0)-U87,0) -> 0 | V106: =MAX(IF('1. Plan Inputs'!$M$50="Yes",Worksheet!V68*Worksheet!V49,0)-V87,0) -> 0 | W106: =MAX(IF('1. Plan Inputs'!$M$50="Yes",Worksheet!W68*Worksheet!W49,0)-W87,0) -> 0 | Y106: Rx Brand Non-Formulary (Retail): | Z106: =MAX(IF('1. Plan Inputs'!$P$50="Yes",Worksheet!Z68*Worksheet!Z49,0)-Z87,0) -> 0 | AA106: =MAX(IF('1. Plan Inputs'!$P$50="Yes",Worksheet!AA68*Worksheet!AA49,0)-AA87,0) -> 0 | AB106: =MAX(IF('1. Plan Inputs'!$P$50="Yes",Worksheet!AB68*Worksheet!AB49,0)-AB87,0) -> 0 | AC106: =MAX(IF('1. Plan Inputs'!$P$50="Yes",Worksheet!AC68*Worksheet!AC49,0)-AC87,0) -> 0 | AD106: =MAX(IF('1. Plan Inputs'!$P$50="Yes",Worksheet!AD68*Worksheet!AD49,0)-AD87,0) -> 0 | AE106: =MAX(IF('1. Plan Inputs'!$P$50="Yes",Worksheet!AE68*Worksheet!AE49,0)-AE87,0) -> 0 | AG106: Rx Brand Non-Formulary (Retail): | AH106: =MAX(IF('1. Plan Inputs'!$S$50="Yes",Worksheet!AH68*Worksheet!AH49,0)-AH87,0) -> 0 | AI106: =MAX(IF('1. Plan Inputs'!$S$50="Yes",Worksheet!AI68*Worksheet!AI49,0)-AI87,0) -> 0 | AJ106: =MAX(IF('1. Plan Inputs'!$S$50="Yes",Worksheet!AJ68*Worksheet!AJ49,0)-AJ87,0) -> 0 | AK106: =MAX(IF('1. Plan Inputs'!$S$50="Yes",Worksheet!AK68*Worksheet!AK49,0)-AK87,0) -> 0 | AL106: =MAX(IF('1. Plan Inputs'!$S$50="Yes",Worksheet!AL68*Worksheet!AL49,0)-AL87,0) -> 0 | AM106: =MAX(IF('1. Plan Inputs'!$S$50="Yes",Worksheet!AM68*Worksheet!AM49,0)-AM87,0) -> 0 | AO106: Rx Brand Non-Formulary (Retail): | AP106: =MAX(IF('1. Plan Inputs'!$V$50="Yes",Worksheet!AP68*Worksheet!AP49,0)-AP87,0) -> 0 | AQ106: =MAX(IF('1. Plan Inputs'!$V$50="Yes",Worksheet!AQ68*Worksheet!AQ49,0)-AQ87,0) -> 0 | AR106: =MAX(IF('1. Plan Inputs'!$V$50="Yes",Worksheet!AR68*Worksheet!AR49,0)-AR87,0) -> 0 | AS106: =MAX(IF('1. Plan Inputs'!$V$50="Yes",Worksheet!AS68*Worksheet!AS49,0)-AS87,0) -> 0 | AT106: =MAX(IF('1. Plan Inputs'!$V$50="Yes",Worksheet!AT68*Worksheet!AT49,0)-AT87,0) -> 0 | AU106: =MAX(IF('1. Plan Inputs'!$V$50="Yes",Worksheet!AU68*Worksheet!AU49,0)-AU87,0) -> 0
A107: Rx Specialty (Retail): | B107: =MAX(IF('1. Plan Inputs'!$G$50="Yes",Worksheet!B69*Worksheet!B50,0)-B88,0) -> 0 | C107: =MAX(IF('1. Plan Inputs'!$G$50="Yes",Worksheet!C69*Worksheet!C50,0)-C88,0) -> 0 | D107: =MAX(IF('1. Plan Inputs'!$G$50="Yes",Worksheet!D69*Worksheet!D50,0)-D88,0) -> 0 | E107: =MAX(IF('1. Plan Inputs'!$G$50="Yes",Worksheet!E69*Worksheet!E50,0)-E88,0) -> 0 | F107: =MAX(IF('1. Plan Inputs'!$G$50="Yes",Worksheet!F69*Worksheet!F50,0)-F88,0) -> 0 | G107: =MAX(IF('1. Plan Inputs'!$G$50="Yes",Worksheet!G69*Worksheet!G50,0)-G88,0) -> 0 | I107: Rx Specialty (Retail): | J107: =MAX(IF('1. Plan Inputs'!$J$50="Yes",Worksheet!J69*Worksheet!J50,0)-J88,0) -> 0 | K107: =MAX(IF('1. Plan Inputs'!$J$50="Yes",Worksheet!K69*Worksheet!K50,0)-K88,0) -> 0 | L107: =MAX(IF('1. Plan Inputs'!$J$50="Yes",Worksheet!L69*Worksheet!L50,0)-L88,0) -> 0 | M107: =MAX(IF('1. Plan Inputs'!$J$50="Yes",Worksheet!M69*Worksheet!M50,0)-M88,0) -> 0 | N107: =MAX(IF('1. Plan Inputs'!$J$50="Yes",Worksheet!N69*Worksheet!N50,0)-N88,0) -> 0 | O107: =MAX(IF('1. Plan Inputs'!$J$50="Yes",Worksheet!O69*Worksheet!O50,0)-O88,0) -> 0 | Q107: Rx Specialty (Retail): | R107: =MAX(IF('1. Plan Inputs'!$M$50="Yes",Worksheet!R69*Worksheet!R50,0)-R88,0) -> 0 | S107: =MAX(IF('1. Plan Inputs'!$M$50="Yes",Worksheet!S69*Worksheet!S50,0)-S88,0) -> 0 | T107: =MAX(IF('1. Plan Inputs'!$M$50="Yes",Worksheet!T69*Worksheet!T50,0)-T88,0) -> 0 | U107: =MAX(IF('1. Plan Inputs'!$M$50="Yes",Worksheet!U69*Worksheet!U50,0)-U88,0) -> 0 | V107: =MAX(IF('1. Plan Inputs'!$M$50="Yes",Worksheet!V69*Worksheet!V50,0)-V88,0) -> 0 | W107: =MAX(IF('1. Plan Inputs'!$M$50="Yes",Worksheet!W69*Worksheet!W50,0)-W88,0) -> 0 | Y107: Rx Specialty (Retail): | Z107: =MAX(IF('1. Plan Inputs'!$P$50="Yes",Worksheet!Z69*Worksheet!Z50,0)-Z88,0) -> 0 | AA107: =MAX(IF('1. Plan Inputs'!$P$50="Yes",Worksheet!AA69*Worksheet!AA50,0)-AA88,0) -> 0 | AB107: =MAX(IF('1. Plan Inputs'!$P$50="Yes",Worksheet!AB69*Worksheet!AB50,0)-AB88,0) -> 0 | AC107: =MAX(IF('1. Plan Inputs'!$P$50="Yes",Worksheet!AC69*Worksheet!AC50,0)-AC88,0) -> 0 | AD107: =MAX(IF('1. Plan Inputs'!$P$50="Yes",Worksheet!AD69*Worksheet!AD50,0)-AD88,0) -> 0 | AE107: =MAX(IF('1. Plan Inputs'!$P$50="Yes",Worksheet!AE69*Worksheet!AE50,0)-AE88,0) -> 0 | AG107: Rx Specialty (Retail): | AH107: =MAX(IF('1. Plan Inputs'!$S$50="Yes",Worksheet!AH69*Worksheet!AH50,0)-AH88,0) -> 0 | AI107: =MAX(IF('1. Plan Inputs'!$S$50="Yes",Worksheet!AI69*Worksheet!AI50,0)-AI88,0) -> 0 | AJ107: =MAX(IF('1. Plan Inputs'!$S$50="Yes",Worksheet!AJ69*Worksheet!AJ50,0)-AJ88,0) -> 0 | AK107: =MAX(IF('1. Plan Inputs'!$S$50="Yes",Worksheet!AK69*Worksheet!AK50,0)-AK88,0) -> 0 | AL107: =MAX(IF('1. Plan Inputs'!$S$50="Yes",Worksheet!AL69*Worksheet!AL50,0)-AL88,0) -> 0 | AM107: =MAX(IF('1. Plan Inputs'!$S$50="Yes",Worksheet!AM69*Worksheet!AM50,0)-AM88,0) -> 0 | AO107: Rx Specialty (Retail): | AP107: =MAX(IF('1. Plan Inputs'!$V$50="Yes",Worksheet!AP69*Worksheet!AP50,0)-AP88,0) -> 0 | AQ107: =MAX(IF('1. Plan Inputs'!$V$50="Yes",Worksheet!AQ69*Worksheet!AQ50,0)-AQ88,0) -> 0 | AR107: =MAX(IF('1. Plan Inputs'!$V$50="Yes",Worksheet!AR69*Worksheet!AR50,0)-AR88,0) -> 0 | AS107: =MAX(IF('1. Plan Inputs'!$V$50="Yes",Worksheet!AS69*Worksheet!AS50,0)-AS88,0) -> 0 | AT107: =MAX(IF('1. Plan Inputs'!$V$50="Yes",Worksheet!AT69*Worksheet!AT50,0)-AT88,0) -> 0 | AU107: =MAX(IF('1. Plan Inputs'!$V$50="Yes",Worksheet!AU69*Worksheet!AU50,0)-AU88,0) -> 0
A108: Rx Generic (Mail): | B108: =MAX(IF('1. Plan Inputs'!$G$50="Yes",Worksheet!B70*Worksheet!B51,0)-B89,0) -> 0 | C108: =MAX(IF('1. Plan Inputs'!$G$50="Yes",Worksheet!C70*Worksheet!C51,0)-C89,0) -> 0 | D108: =MAX(IF('1. Plan Inputs'!$G$50="Yes",Worksheet!D70*Worksheet!D51,0)-D89,0) -> 0 | E108: =MAX(IF('1. Plan Inputs'!$G$50="Yes",Worksheet!E70*Worksheet!E51,0)-E89,0) -> 0 | F108: =MAX(IF('1. Plan Inputs'!$G$50="Yes",Worksheet!F70*Worksheet!F51,0)-F89,0) -> 0 | G108: =MAX(IF('1. Plan Inputs'!$G$50="Yes",Worksheet!G70*Worksheet!G51,0)-G89,0) -> 0 | I108: Rx Generic (Mail): | J108: =MAX(IF('1. Plan Inputs'!$J$50="Yes",Worksheet!J70*Worksheet!J51,0)-J89,0) -> 0 | K108: =MAX(IF('1. Plan Inputs'!$J$50="Yes",Worksheet!K70*Worksheet!K51,0)-K89,0) -> 0 | L108: =MAX(IF('1. Plan Inputs'!$J$50="Yes",Worksheet!L70*Worksheet!L51,0)-L89,0) -> 0 | M108: =MAX(IF('1. Plan Inputs'!$J$50="Yes",Worksheet!M70*Worksheet!M51,0)-M89,0) -> 0 | N108: =MAX(IF('1. Plan Inputs'!$J$50="Yes",Worksheet!N70*Worksheet!N51,0)-N89,0) -> 0 | O108: =MAX(IF('1. Plan Inputs'!$J$50="Yes",Worksheet!O70*Worksheet!O51,0)-O89,0) -> 0 | Q108: Rx Generic (Mail): | R108: =MAX(IF('1. Plan Inputs'!$M$50="Yes",Worksheet!R70*Worksheet!R51,0)-R89,0) -> 0 | S108: =MAX(IF('1. Plan Inputs'!$M$50="Yes",Worksheet!S70*Worksheet!S51,0)-S89,0) -> 0 | T108: =MAX(IF('1. Plan Inputs'!$M$50="Yes",Worksheet!T70*Worksheet!T51,0)-T89,0) -> 0 | U108: =MAX(IF('1. Plan Inputs'!$M$50="Yes",Worksheet!U70*Worksheet!U51,0)-U89,0) -> 0 | V108: =MAX(IF('1. Plan Inputs'!$M$50="Yes",Worksheet!V70*Worksheet!V51,0)-V89,0) -> 0 | W108: =MAX(IF('1. Plan Inputs'!$M$50="Yes",Worksheet!W70*Worksheet!W51,0)-W89,0) -> 0 | Y108: Rx Generic (Mail): | Z108: =MAX(IF('1. Plan Inputs'!$P$50="Yes",Worksheet!Z70*Worksheet!Z51,0)-Z89,0) -> 0 | AA108: =MAX(IF('1. Plan Inputs'!$P$50="Yes",Worksheet!AA70*Worksheet!AA51,0)-AA89,0) -> 0 | AB108: =MAX(IF('1. Plan Inputs'!$P$50="Yes",Worksheet!AB70*Worksheet!AB51,0)-AB89,0) -> 0 | AC108: =MAX(IF('1. Plan Inputs'!$P$50="Yes",Worksheet!AC70*Worksheet!AC51,0)-AC89,0) -> 0 | AD108: =MAX(IF('1. Plan Inputs'!$P$50="Yes",Worksheet!AD70*Worksheet!AD51,0)-AD89,0) -> 0 | AE108: =MAX(IF('1. Plan Inputs'!$P$50="Yes",Worksheet!AE70*Worksheet!AE51,0)-AE89,0) -> 0 | AG108: Rx Generic (Mail): | AH108: =MAX(IF('1. Plan Inputs'!$S$50="Yes",Worksheet!AH70*Worksheet!AH51,0)-AH89,0) -> 0 | AI108: =MAX(IF('1. Plan Inputs'!$S$50="Yes",Worksheet!AI70*Worksheet!AI51,0)-AI89,0) -> 0 | AJ108: =MAX(IF('1. Plan Inputs'!$S$50="Yes",Worksheet!AJ70*Worksheet!AJ51,0)-AJ89,0) -> 0 | AK108: =MAX(IF('1. Plan Inputs'!$S$50="Yes",Worksheet!AK70*Worksheet!AK51,0)-AK89,0) -> 0 | AL108: =MAX(IF('1. Plan Inputs'!$S$50="Yes",Worksheet!AL70*Worksheet!AL51,0)-AL89,0) -> 0 | AM108: =MAX(IF('1. Plan Inputs'!$S$50="Yes",Worksheet!AM70*Worksheet!AM51,0)-AM89,0) -> 0 | AO108: Rx Generic (Mail): | AP108: =MAX(IF('1. Plan Inputs'!$V$50="Yes",Worksheet!AP70*Worksheet!AP51,0)-AP89,0) -> 0 | AQ108: =MAX(IF('1. Plan Inputs'!$V$50="Yes",Worksheet!AQ70*Worksheet!AQ51,0)-AQ89,0) -> 0 | AR108: =MAX(IF('1. Plan Inputs'!$V$50="Yes",Worksheet!AR70*Worksheet!AR51,0)-AR89,0) -> 0 | AS108: =MAX(IF('1. Plan Inputs'!$V$50="Yes",Worksheet!AS70*Worksheet!AS51,0)-AS89,0) -> 0 | AT108: =MAX(IF('1. Plan Inputs'!$V$50="Yes",Worksheet!AT70*Worksheet!AT51,0)-AT89,0) -> 0 | AU108: =MAX(IF('1. Plan Inputs'!$V$50="Yes",Worksheet!AU70*Worksheet!AU51,0)-AU89,0) -> 0
A109: Rx Brand Formulary (Mail): | B109: =MAX(IF('1. Plan Inputs'!$G$50="Yes",Worksheet!B71*Worksheet!B52,0)-B90,0) -> 0 | C109: =MAX(IF('1. Plan Inputs'!$G$50="Yes",Worksheet!C71*Worksheet!C52,0)-C90,0) -> 0 | D109: =MAX(IF('1. Plan Inputs'!$G$50="Yes",Worksheet!D71*Worksheet!D52,0)-D90,0) -> 0 | E109: =MAX(IF('1. Plan Inputs'!$G$50="Yes",Worksheet!E71*Worksheet!E52,0)-E90,0) -> 0 | F109: =MAX(IF('1. Plan Inputs'!$G$50="Yes",Worksheet!F71*Worksheet!F52,0)-F90,0) -> 0 | G109: =MAX(IF('1. Plan Inputs'!$G$50="Yes",Worksheet!G71*Worksheet!G52,0)-G90,0) -> 0 | I109: Rx Brand Formulary (Mail): | J109: =MAX(IF('1. Plan Inputs'!$J$50="Yes",Worksheet!J71*Worksheet!J52,0)-J90,0) -> 0 | K109: =MAX(IF('1. Plan Inputs'!$J$50="Yes",Worksheet!K71*Worksheet!K52,0)-K90,0) -> 0 | L109: =MAX(IF('1. Plan Inputs'!$J$50="Yes",Worksheet!L71*Worksheet!L52,0)-L90,0) -> 0 | M109: =MAX(IF('1. Plan Inputs'!$J$50="Yes",Worksheet!M71*Worksheet!M52,0)-M90,0) -> 0 | N109: =MAX(IF('1. Plan Inputs'!$J$50="Yes",Worksheet!N71*Worksheet!N52,0)-N90,0) -> 0 | O109: =MAX(IF('1. Plan Inputs'!$J$50="Yes",Worksheet!O71*Worksheet!O52,0)-O90,0) -> 0 | Q109: Rx Brand Formulary (Mail): | R109: =MAX(IF('1. Plan Inputs'!$M$50="Yes",Worksheet!R71*Worksheet!R52,0)-R90,0) -> 0 | S109: =MAX(IF('1. Plan Inputs'!$M$50="Yes",Worksheet!S71*Worksheet!S52,0)-S90,0) -> 0 | T109: =MAX(IF('1. Plan Inputs'!$M$50="Yes",Worksheet!T71*Worksheet!T52,0)-T90,0) -> 0 | U109: =MAX(IF('1. Plan Inputs'!$M$50="Yes",Worksheet!U71*Worksheet!U52,0)-U90,0) -> 0 | V109: =MAX(IF('1. Plan Inputs'!$M$50="Yes",Worksheet!V71*Worksheet!V52,0)-V90,0) -> 0 | W109: =MAX(IF('1. Plan Inputs'!$M$50="Yes",Worksheet!W71*Worksheet!W52,0)-W90,0) -> 0 | Y109: Rx Brand Formulary (Mail): | Z109: =MAX(IF('1. Plan Inputs'!$P$50="Yes",Worksheet!Z71*Worksheet!Z52,0)-Z90,0) -> 0 | AA109: =MAX(IF('1. Plan Inputs'!$P$50="Yes",Worksheet!AA71*Worksheet!AA52,0)-AA90,0) -> 0 | AB109: =MAX(IF('1. Plan Inputs'!$P$50="Yes",Worksheet!AB71*Worksheet!AB52,0)-AB90,0) -> 0 | AC109: =MAX(IF('1. Plan Inputs'!$P$50="Yes",Worksheet!AC71*Worksheet!AC52,0)-AC90,0) -> 0 | AD109: =MAX(IF('1. Plan Inputs'!$P$50="Yes",Worksheet!AD71*Worksheet!AD52,0)-AD90,0) -> 0 | AE109: =MAX(IF('1. Plan Inputs'!$P$50="Yes",Worksheet!AE71*Worksheet!AE52,0)-AE90,0) -> 0 | AG109: Rx Brand Formulary (Mail): | AH109: =MAX(IF('1. Plan Inputs'!$S$50="Yes",Worksheet!AH71*Worksheet!AH52,0)-AH90,0) -> 0 | AI109: =MAX(IF('1. Plan Inputs'!$S$50="Yes",Worksheet!AI71*Worksheet!AI52,0)-AI90,0) -> 0 | AJ109: =MAX(IF('1. Plan Inputs'!$S$50="Yes",Worksheet!AJ71*Worksheet!AJ52,0)-AJ90,0) -> 0 | AK109: =MAX(IF('1. Plan Inputs'!$S$50="Yes",Worksheet!AK71*Worksheet!AK52,0)-AK90,0) -> 0 | AL109: =MAX(IF('1. Plan Inputs'!$S$50="Yes",Worksheet!AL71*Worksheet!AL52,0)-AL90,0) -> 0 | AM109: =MAX(IF('1. Plan Inputs'!$S$50="Yes",Worksheet!AM71*Worksheet!AM52,0)-AM90,0) -> 0 | AO109: Rx Brand Formulary (Mail): | AP109: =MAX(IF('1. Plan Inputs'!$V$50="Yes",Worksheet!AP71*Worksheet!AP52,0)-AP90,0) -> 0 | AQ109: =MAX(IF('1. Plan Inputs'!$V$50="Yes",Worksheet!AQ71*Worksheet!AQ52,0)-AQ90,0) -> 0 | AR109: =MAX(IF('1. Plan Inputs'!$V$50="Yes",Worksheet!AR71*Worksheet!AR52,0)-AR90,0) -> 0 | AS109: =MAX(IF('1. Plan Inputs'!$V$50="Yes",Worksheet!AS71*Worksheet!AS52,0)-AS90,0) -> 0 | AT109: =MAX(IF('1. Plan Inputs'!$V$50="Yes",Worksheet!AT71*Worksheet!AT52,0)-AT90,0) -> 0 | AU109: =MAX(IF('1. Plan Inputs'!$V$50="Yes",Worksheet!AU71*Worksheet!AU52,0)-AU90,0) -> 0
A110: Rx Brand Non-Formulary (Mail): | B110: =MAX(IF('1. Plan Inputs'!$G$50="Yes",Worksheet!B72*Worksheet!B53,0)-B91,0) -> 0 | C110: =MAX(IF('1. Plan Inputs'!$G$50="Yes",Worksheet!C72*Worksheet!C53,0)-C91,0) -> 0 | D110: =MAX(IF('1. Plan Inputs'!$G$50="Yes",Worksheet!D72*Worksheet!D53,0)-D91,0) -> 0 | E110: =MAX(IF('1. Plan Inputs'!$G$50="Yes",Worksheet!E72*Worksheet!E53,0)-E91,0) -> 0 | F110: =MAX(IF('1. Plan Inputs'!$G$50="Yes",Worksheet!F72*Worksheet!F53,0)-F91,0) -> 0 | G110: =MAX(IF('1. Plan Inputs'!$G$50="Yes",Worksheet!G72*Worksheet!G53,0)-G91,0) -> 0 | I110: Rx Brand Non-Formulary (Mail): | J110: =MAX(IF('1. Plan Inputs'!$J$50="Yes",Worksheet!J72*Worksheet!J53,0)-J91,0) -> 0 | K110: =MAX(IF('1. Plan Inputs'!$J$50="Yes",Worksheet!K72*Worksheet!K53,0)-K91,0) -> 0 | L110: =MAX(IF('1. Plan Inputs'!$J$50="Yes",Worksheet!L72*Worksheet!L53,0)-L91,0) -> 0 | M110: =MAX(IF('1. Plan Inputs'!$J$50="Yes",Worksheet!M72*Worksheet!M53,0)-M91,0) -> 0 | N110: =MAX(IF('1. Plan Inputs'!$J$50="Yes",Worksheet!N72*Worksheet!N53,0)-N91,0) -> 0 | O110: =MAX(IF('1. Plan Inputs'!$J$50="Yes",Worksheet!O72*Worksheet!O53,0)-O91,0) -> 0 | Q110: Rx Brand Non-Formulary (Mail): | R110: =MAX(IF('1. Plan Inputs'!$M$50="Yes",Worksheet!R72*Worksheet!R53,0)-R91,0) -> 0 | S110: =MAX(IF('1. Plan Inputs'!$M$50="Yes",Worksheet!S72*Worksheet!S53,0)-S91,0) -> 0 | T110: =MAX(IF('1. Plan Inputs'!$M$50="Yes",Worksheet!T72*Worksheet!T53,0)-T91,0) -> 0 | U110: =MAX(IF('1. Plan Inputs'!$M$50="Yes",Worksheet!U72*Worksheet!U53,0)-U91,0) -> 0 | V110: =MAX(IF('1. Plan Inputs'!$M$50="Yes",Worksheet!V72*Worksheet!V53,0)-V91,0) -> 0 | W110: =MAX(IF('1. Plan Inputs'!$M$50="Yes",Worksheet!W72*Worksheet!W53,0)-W91,0) -> 0 | Y110: Rx Brand Non-Formulary (Mail): | Z110: =MAX(IF('1. Plan Inputs'!$P$50="Yes",Worksheet!Z72*Worksheet!Z53,0)-Z91,0) -> 0 | AA110: =MAX(IF('1. Plan Inputs'!$P$50="Yes",Worksheet!AA72*Worksheet!AA53,0)-AA91,0) -> 0 | AB110: =MAX(IF('1. Plan Inputs'!$P$50="Yes",Worksheet!AB72*Worksheet!AB53,0)-AB91,0) -> 0 | AC110: =MAX(IF('1. Plan Inputs'!$P$50="Yes",Worksheet!AC72*Worksheet!AC53,0)-AC91,0) -> 0 | AD110: =MAX(IF('1. Plan Inputs'!$P$50="Yes",Worksheet!AD72*Worksheet!AD53,0)-AD91,0) -> 0 | AE110: =MAX(IF('1. Plan Inputs'!$P$50="Yes",Worksheet!AE72*Worksheet!AE53,0)-AE91,0) -> 0 | AG110: Rx Brand Non-Formulary (Mail): | AH110: =MAX(IF('1. Plan Inputs'!$S$50="Yes",Worksheet!AH72*Worksheet!AH53,0)-AH91,0) -> 0 | AI110: =MAX(IF('1. Plan Inputs'!$S$50="Yes",Worksheet!AI72*Worksheet!AI53,0)-AI91,0) -> 0 | AJ110: =MAX(IF('1. Plan Inputs'!$S$50="Yes",Worksheet!AJ72*Worksheet!AJ53,0)-AJ91,0) -> 0 | AK110: =MAX(IF('1. Plan Inputs'!$S$50="Yes",Worksheet!AK72*Worksheet!AK53,0)-AK91,0) -> 0 | AL110: =MAX(IF('1. Plan Inputs'!$S$50="Yes",Worksheet!AL72*Worksheet!AL53,0)-AL91,0) -> 0 | AM110: =MAX(IF('1. Plan Inputs'!$S$50="Yes",Worksheet!AM72*Worksheet!AM53,0)-AM91,0) -> 0 | AO110: Rx Brand Non-Formulary (Mail): | AP110: =MAX(IF('1. Plan Inputs'!$V$50="Yes",Worksheet!AP72*Worksheet!AP53,0)-AP91,0) -> 0 | AQ110: =MAX(IF('1. Plan Inputs'!$V$50="Yes",Worksheet!AQ72*Worksheet!AQ53,0)-AQ91,0) -> 0 | AR110: =MAX(IF('1. Plan Inputs'!$V$50="Yes",Worksheet!AR72*Worksheet!AR53,0)-AR91,0) -> 0 | AS110: =MAX(IF('1. Plan Inputs'!$V$50="Yes",Worksheet!AS72*Worksheet!AS53,0)-AS91,0) -> 0 | AT110: =MAX(IF('1. Plan Inputs'!$V$50="Yes",Worksheet!AT72*Worksheet!AT53,0)-AT91,0) -> 0 | AU110: =MAX(IF('1. Plan Inputs'!$V$50="Yes",Worksheet!AU72*Worksheet!AU53,0)-AU91,0) -> 0
A111: Rx Specialty (Mail): | B111: =MAX(IF('1. Plan Inputs'!$G$50="Yes",Worksheet!B73*Worksheet!B54,0)-B92,0) -> 0 | C111: =MAX(IF('1. Plan Inputs'!$G$50="Yes",Worksheet!C73*Worksheet!C54,0)-C92,0) -> 0 | D111: =MAX(IF('1. Plan Inputs'!$G$50="Yes",Worksheet!D73*Worksheet!D54,0)-D92,0) -> 0 | E111: =MAX(IF('1. Plan Inputs'!$G$50="Yes",Worksheet!E73*Worksheet!E54,0)-E92,0) -> 0 | F111: =MAX(IF('1. Plan Inputs'!$G$50="Yes",Worksheet!F73*Worksheet!F54,0)-F92,0) -> 0 | G111: =MAX(IF('1. Plan Inputs'!$G$50="Yes",Worksheet!G73*Worksheet!G54,0)-G92,0) -> 0 | I111: Rx Specialty (Mail): | J111: =MAX(IF('1. Plan Inputs'!$J$50="Yes",Worksheet!J73*Worksheet!J54,0)-J92,0) -> 0 | K111: =MAX(IF('1. Plan Inputs'!$J$50="Yes",Worksheet!K73*Worksheet!K54,0)-K92,0) -> 0 | L111: =MAX(IF('1. Plan Inputs'!$J$50="Yes",Worksheet!L73*Worksheet!L54,0)-L92,0) -> 0 | M111: =MAX(IF('1. Plan Inputs'!$J$50="Yes",Worksheet!M73*Worksheet!M54,0)-M92,0) -> 0 | N111: =MAX(IF('1. Plan Inputs'!$J$50="Yes",Worksheet!N73*Worksheet!N54,0)-N92,0) -> 0 | O111: =MAX(IF('1. Plan Inputs'!$J$50="Yes",Worksheet!O73*Worksheet!O54,0)-O92,0) -> 0 | Q111: Rx Specialty (Mail): | R111: =MAX(IF('1. Plan Inputs'!$M$50="Yes",Worksheet!R73*Worksheet!R54,0)-R92,0) -> 0 | S111: =MAX(IF('1. Plan Inputs'!$M$50="Yes",Worksheet!S73*Worksheet!S54,0)-S92,0) -> 0 | T111: =MAX(IF('1. Plan Inputs'!$M$50="Yes",Worksheet!T73*Worksheet!T54,0)-T92,0) -> 0 | U111: =MAX(IF('1. Plan Inputs'!$M$50="Yes",Worksheet!U73*Worksheet!U54,0)-U92,0) -> 0 | V111: =MAX(IF('1. Plan Inputs'!$M$50="Yes",Worksheet!V73*Worksheet!V54,0)-V92,0) -> 0 | W111: =MAX(IF('1. Plan Inputs'!$M$50="Yes",Worksheet!W73*Worksheet!W54,0)-W92,0) -> 0 | Y111: Rx Specialty (Mail): | Z111: =MAX(IF('1. Plan Inputs'!$P$50="Yes",Worksheet!Z73*Worksheet!Z54,0)-Z92,0) -> 0 | AA111: =MAX(IF('1. Plan Inputs'!$P$50="Yes",Worksheet!AA73*Worksheet!AA54,0)-AA92,0) -> 0 | AB111: =MAX(IF('1. Plan Inputs'!$P$50="Yes",Worksheet!AB73*Worksheet!AB54,0)-AB92,0) -> 0 | AC111: =MAX(IF('1. Plan Inputs'!$P$50="Yes",Worksheet!AC73*Worksheet!AC54,0)-AC92,0) -> 0 | AD111: =MAX(IF('1. Plan Inputs'!$P$50="Yes",Worksheet!AD73*Worksheet!AD54,0)-AD92,0) -> 0 | AE111: =MAX(IF('1. Plan Inputs'!$P$50="Yes",Worksheet!AE73*Worksheet!AE54,0)-AE92,0) -> 0 | AG111: Rx Specialty (Mail): | AH111: =MAX(IF('1. Plan Inputs'!$S$50="Yes",Worksheet!AH73*Worksheet!AH54,0)-AH92,0) -> 0 | AI111: =MAX(IF('1. Plan Inputs'!$S$50="Yes",Worksheet!AI73*Worksheet!AI54,0)-AI92,0) -> 0 | AJ111: =MAX(IF('1. Plan Inputs'!$S$50="Yes",Worksheet!AJ73*Worksheet!AJ54,0)-AJ92,0) -> 0 | AK111: =MAX(IF('1. Plan Inputs'!$S$50="Yes",Worksheet!AK73*Worksheet!AK54,0)-AK92,0) -> 0 | AL111: =MAX(IF('1. Plan Inputs'!$S$50="Yes",Worksheet!AL73*Worksheet!AL54,0)-AL92,0) -> 0 | AM111: =MAX(IF('1. Plan Inputs'!$S$50="Yes",Worksheet!AM73*Worksheet!AM54,0)-AM92,0) -> 0 | AO111: Rx Specialty (Mail): | AP111: =MAX(IF('1. Plan Inputs'!$V$50="Yes",Worksheet!AP73*Worksheet!AP54,0)-AP92,0) -> 0 | AQ111: =MAX(IF('1. Plan Inputs'!$V$50="Yes",Worksheet!AQ73*Worksheet!AQ54,0)-AQ92,0) -> 0 | AR111: =MAX(IF('1. Plan Inputs'!$V$50="Yes",Worksheet!AR73*Worksheet!AR54,0)-AR92,0) -> 0 | AS111: =MAX(IF('1. Plan Inputs'!$V$50="Yes",Worksheet!AS73*Worksheet!AS54,0)-AS92,0) -> 0 | AT111: =MAX(IF('1. Plan Inputs'!$V$50="Yes",Worksheet!AT73*Worksheet!AT54,0)-AT92,0) -> 0 | AU111: =MAX(IF('1. Plan Inputs'!$V$50="Yes",Worksheet!AU73*Worksheet!AU54,0)-AU92,0) -> 0
A114: Other Expenses: | B114: =Calculator!C40 -> 0 | C114: =Calculator!D40 -> 0 | D114: =Calculator!E40 -> 0 | E114: =Calculator!F40 -> 0 | F114: =Calculator!G40 -> 0 | G114: =Calculator!H40 -> 0 | I114: Other Expenses: | J114: =Calculator!C40 -> 0 | K114: =Calculator!D40 -> 0 | L114: =Calculator!E40 -> 0 | M114: =Calculator!F40 -> 0 | N114: =Calculator!G40 -> 0 | O114: =Calculator!H40 -> 0 | Q114: Other Expenses: | R114: =Calculator!C40 -> 0 | S114: =Calculator!D40 -> 0 | T114: =Calculator!E40 -> 0 | U114: =Calculator!F40 -> 0 | V114: =Calculator!G40 -> 0 | W114: =Calculator!H40 -> 0 | Y114: Other Expenses: | Z114: =Calculator!C40 -> 0 | AA114: =Calculator!D40 -> 0 | AB114: =Calculator!E40 -> 0 | AC114: =Calculator!F40 -> 0 | AD114: =Calculator!G40 -> 0 | AE114: =Calculator!H40 -> 0 | AG114: Other Expenses: | AH114: =Calculator!C40 -> 0 | AI114: =Calculator!D40 -> 0 | AJ114: =Calculator!E40 -> 0 | AK114: =Calculator!F40 -> 0 | AL114: =Calculator!G40 -> 0 | AM114: =Calculator!H40 -> 0 | AO114: Other Expenses: | AP114: =Calculator!C40 -> 0 | AQ114: =Calculator!D40 -> 0 | AR114: =Calculator!E40 -> 0 | AS114: =Calculator!F40 -> 0 | AT114: =Calculator!G40 -> 0 | AU114: =Calculator!H40 -> 0
A116: Individual Medical Copayments: | B116: =SUM(B76:B84) -> 0 | C116: =SUM(C76:C84) -> 0 | D116: 0 | E116: 0 | F116: 0 | G116: 0 | I116: Individual Medical Copayments: | J116: =SUM(J76:J84) -> 0 | K116: =SUM(K76:K84) -> 0 | L116: =SUM(L76:L84) -> 0 | M116: 0 | N116: 0 | O116: =SUM(O76:O84) -> 0 | Q116: Individual Medical Copayments: | R116: =SUM(R76:R84) -> 0 | S116: =SUM(S76:S84) -> 0 | T116: =SUM(T76:T84) -> 0 | U116: 0 | V116: 0 | W116: =SUM(W76:W84) -> 0 | Y116: Individual Medical Copayments: | Z116: =SUM(Z76:Z84) -> 0 | AA116: =SUM(AA76:AA84) -> 0 | AB116: =SUM(AB76:AB84) -> 0 | AC116: 0 | AD116: 0 | AE116: =SUM(AE76:AE84) -> 0 | AG116: Individual Medical Copayments: | AH116: =SUM(AH76:AH84) -> 0 | AI116: =SUM(AI76:AI84) -> 0 | AJ116: =SUM(AJ76:AJ84) -> 0 | AK116: 0 | AL116: 0 | AM116: =SUM(AM76:AM84) -> 0 | AO116: Individual Medical Copayments: | AP116: =SUM(AP76:AP84) -> 0 | AQ116: =SUM(AQ76:AQ84) -> 0 | AR116: =SUM(AR76:AR84) -> 0 | AS116: 0 | AT116: 0 | AU116: =SUM(AU76:AU84) -> 0
A118: Family Medical Copayments: | B118: =B116 -> 0 | C118: =C116+B118 -> 0 | D118: =D116+C118 -> 0 | E118: =E116+D118 -> 0 | F118: =F116+E118 -> 0 | G118: =G116+F118 -> 0 | I118: Family Medical Copayments: | J118: =J116 -> 0 | K118: =K116+J118 -> 0 | L118: =L116+K118 -> 0 | M118: =M116+L118 -> 0 | N118: =N116+M118 -> 0 | O118: =O116+N118 -> 0 | Q118: Family Medical Copayments: | R118: =R116 -> 0 | S118: =S116+R118 -> 0 | T118: =T116+S118 -> 0 | U118: =U116+T118 -> 0 | V118: =V116+U118 -> 0 | W118: =W116+V118 -> 0 | Y118: Family Medical Copayments: | Z118: =Z116 -> 0 | AA118: =AA116+Z118 -> 0 | AB118: =AB116+AA118 -> 0 | AC118: =AC116+AB118 -> 0 | AD118: =AD116+AC118 -> 0 | AE118: =AE116+AD118 -> 0 | AG118: Family Medical Copayments: | AH118: =AH116 -> 0 | AI118: =AI116+AH118 -> 0 | AJ118: =AJ116+AI118 -> 0 | AK118: =AK116+AJ118 -> 0 | AL118: =AL116+AK118 -> 0 | AM118: =AM116+AL118 -> 0 | AO118: Family Medical Copayments: | AP118: =AP116 -> 0 | AQ118: =AQ116+AP118 -> 0 | AR118: =AR116+AQ118 -> 0 | AS118: =AS116+AR118 -> 0 | AT118: =AT116+AS118 -> 0 | AU118: =AU116+AT118 -> 0
A120: Individual Rx Copayments: | B120: =SUM(B85:B92) -> 0 | C120: =SUM(C85:C92) -> 0 | D120: 0 | E120: 0 | F120: 0 | G120: 0 | I120: Individual Rx Copayments: | J120: =SUM(J85:J92) -> 0 | K120: =SUM(K85:K92) -> 0 | L120: 0 | M120: 0 | N120: 0 | O120: 0 | Q120: Individual Rx Copayments: | R120: =SUM(R85:R92) -> 0 | S120: =SUM(S85:S92) -> 0 | T120: 0 | U120: 0 | V120: 0 | W120: =SUM(W85:W92) -> 0 | Y120: Individual Rx Copayments: | Z120: =SUM(Z85:Z92) -> 0 | AA120: =SUM(AA85:AA92) -> 0 | AB120: 0 | AC120: 0 | AD120: 0 | AE120: =SUM(AE85:AE92) -> 0 | AG120: Individual Rx Copayments: | AH120: =SUM(AH85:AH92) -> 0 | AI120: =SUM(AI85:AI92) -> 0 | AJ120: 0 | AK120: 0 | AL120: 0 | AM120: =SUM(AM85:AM92) -> 0 | AO120: Individual Rx Copayments: | AP120: =SUM(AP85:AP92) -> 0 | AQ120: =SUM(AQ85:AQ92) -> 0 | AR120: 0 | AS120: 0 | AT120: 0 | AU120: =SUM(AU85:AU92) -> 0
A122: Family Rx Copayments: | B122: =B120 -> 0 | C122: =C120+B122 -> 0 | D122: =D120+C122 -> 0 | E122: 0 | F122: 0 | G122: 0 | I122: Family Rx Copayments: | J122: =J120 -> 0 | K122: =K120+J122 -> 0 | L122: =L120+K122 -> 0 | M122: =M120+L122 -> 0 | N122: =N120+M122 -> 0 | O122: =O120+N122 -> 0 | Q122: Family Rx Copayments: | R122: =R120 -> 0 | S122: =S120+R122 -> 0 | T122: =T120+S122 -> 0 | U122: =U120+T122 -> 0 | V122: =V120+U122 -> 0 | W122: =W120+V122 -> 0 | Y122: Family Rx Copayments: | Z122: =Z120 -> 0 | AA122: =AA120+Z122 -> 0 | AB122: =AB120+AA122 -> 0 | AC122: =AC120+AB122 -> 0 | AD122: =AD120+AC122 -> 0 | AE122: =AE120+AD122 -> 0 | AG122: Family Rx Copayments: | AH122: =AH120 -> 0 | AI122: =AI120+AH122 -> 0 | AJ122: =AJ120+AI122 -> 0 | AK122: =AK120+AJ122 -> 0 | AL122: =AL120+AK122 -> 0 | AM122: =AM120+AL122 -> 0 | AO122: Family Rx Copayments: | AP122: =AP120 -> 0 | AQ122: =AQ120+AP122 -> 0 | AR122: =AR120+AQ122 -> 0 | AS122: =AS120+AR122 -> 0 | AT122: =AT120+AS122 -> 0 | AU122: =AU120+AT122 -> 0
A124: Individual Applicable Total: | B124: =SUM(B95:B111,B114) -> 0 | C124: =SUM(C95:C111,C114) -> 0 | D124: 0 | E124: 0 | F124: 0 | G124: 0 | I124: Individual Applicable Total: | J124: =SUM(J95:J111,J114) -> 0 | K124: =SUM(K95:K111,K114) -> 0 | L124: 0 | M124: 0 | N124: 0 | O124: 0 | Q124: Individual Applicable Total: | R124: =SUM(R95:R111,R114) -> 0 | S124: =SUM(S95:S111,S114) -> 0 | T124: 0 | U124: 0 | V124: 0 | W124: 0 | Y124: Individual Applicable Total: | Z124: =SUM(Z95:Z111,Z114) -> 0 | AA124: =SUM(AA95:AA111,AA114) -> 0 | AB124: 0 | AC124: 0 | AD124: 0 | AE124: 0 | AG124: Individual Applicable Total: | AH124: =SUM(AH95:AH111,AH114) -> 0 | AI124: =SUM(AI95:AI111,AI114) -> 0 | AJ124: 0 | AK124: 0 | AL124: 0 | AM124: 0 | AO124: Individual Applicable Total: | AP124: =SUM(AP95:AP111,AP114) -> 0 | AQ124: =SUM(AQ95:AQ111,AQ114) -> 0 | AR124: 0 | AS124: 0 | AT124: 0 | AU124: 0
A126: Family Applicable Total: | B126: =B124 -> 0 | C126: =B126+C124 -> 0 | D126: =D124+C126 -> 0 | E126: =E124+D126 -> 0 | F126: =F124+E126 -> 0 | G126: =G124+F126 -> 0 | I126: Family Applicable Total: | J126: =J124 -> 0 | K126: =J126+K124 -> 0 | L126: =L124+K126 -> 0 | M126: =M124+L126 -> 0 | N126: =N124+M126 -> 0 | O126: =O124+N126 -> 0 | Q126: Family Applicable Total: | R126: =R124 -> 0 | S126: =R126+S124 -> 0 | T126: =T124+S126 -> 0 | U126: =U124+T126 -> 0 | V126: =V124+U126 -> 0 | W126: =W124+V126 -> 0 | Y126: Family Applicable Total: | Z126: =Z124 -> 0 | AA126: =Z126+AA124 -> 0 | AB126: =AB124+AA126 -> 0 | AC126: =AC124+AB126 -> 0 | AD126: =AD124+AC126 -> 0 | AE126: =AE124+AD126 -> 0 | AG126: Family Applicable Total: | AH126: =AH124 -> 0 | AI126: =AH126+AI124 -> 0 | AJ126: =AJ124+AI126 -> 0 | AK126: =AK124+AJ126 -> 0 | AL126: =AL124+AK126 -> 0 | AM126: =AM124+AL126 -> 0 | AO126: Family Applicable Total: | AP126: =AP124 -> 0 | AQ126: =AP126+AQ124 -> 0 | AR126: =AR124+AQ126 -> 0 | AS126: =AS124+AR126 -> 0 | AT126: =AT124+AS126 -> 0 | AU126: =AU124+AT126 -> 0
A128: Embedded Calculation: | I128: Embedded Calculation: | Q128: Embedded Calculation: | Y128: Embedded Calculation: | AG128: Embedded Calculation: | AO128: Embedded Calculation:
B129: Applicable | C129: Deductible | D129: Apply to Coins | E129: Apply to OOP | F129: OOP Max | J129: Applicable | K129: Deductible | L129: Apply to Coins | M129: Apply to OOP | N129: OOP Max | R129: Applicable | S129: Deductible | T129: Apply to Coins | U129: Apply to OOP | V129: OOP Max | Z129: Applicable | AA129: Deductible | AB129: Apply to Coins | AC129: Apply to OOP | AD129: OOP Max | AH129: Applicable | AI129: Deductible | AJ129: Apply to Coins | AK129: Apply to OOP | AL129: OOP Max | AP129: Applicable | AQ129: Deductible | AR129: Apply to Coins | AS129: Apply to OOP | AT129: OOP Max
A130: Member1 | B130: =B124 -> 0 | C130: =MIN(B130,B12) -> 0 | D130: =B130-C130 -> 0 | E130: =IFERROR(IF('1. Plan Inputs'!G50="No",D130*B14+IF('1. Plan Inputs'!$G$46="Yes",Worksheet!B116,0)+IF('1. Plan Inputs'!$G$48="Yes",Worksheet!B120,0),Worksheet!D130*((Worksheet!B14*SUM(Worksheet!B95:B103,Worksheet!B114)+IF('1. Plan Inputs'!$G$48="Yes",SUMPRODUCT(Worksheet!B104:B111,Worksheet!B151:B158),0))/SUM(Worksheet!B95:B114))+IF('1. Plan Inputs'!$G$46="Yes",Worksheet!B116,0)+IF('1. Plan Inputs'!$G$48="Yes",Worksheet!B120,0)),0) -> 0 | F130: =MIN(E130+C130,B15) -> 0 | I130: Member1 | J130: =J124 -> 0 | K130: =MIN(J130,J12) -> 0 | L130: =J130-K130 -> 0 | M130: =IFERROR(IF('1. Plan Inputs'!J50="No",L130*J14+IF('1. Plan Inputs'!$J$46="Yes",Worksheet!J116,0)+IF('1. Plan Inputs'!$J$48="Yes",Worksheet!J120,0),Worksheet!L130*((Worksheet!J14*SUM(Worksheet!J95:J103,Worksheet!J114)+IF('1. Plan Inputs'!$J$48="Yes",SUMPRODUCT(Worksheet!J104:J111,Worksheet!J151:J158),0))/SUM(Worksheet!J95:J114))+IF('1. Plan Inputs'!$J$46="Yes",Worksheet!J116,0)+IF('1. Plan Inputs'!$J$48="Yes",Worksheet!J120,0)),0) -> 0 | N130: =MIN(M130+K130,J15) -> 0 | Q130: Member1 | R130: =R124 -> 0 | S130: =MIN(R130,R12) -> 0 | T130: =R130-S130 -> 0 | U130: =IFERROR(IF('1. Plan Inputs'!M50="No",T130*R14+IF('1. Plan Inputs'!$M$46="Yes",Worksheet!R116,0)+IF('1. Plan Inputs'!$M$48="Yes",Worksheet!R120,0),Worksheet!T130*((Worksheet!R14*SUM(Worksheet!R95:R103,Worksheet!R114)+IF('1. Plan Inputs'!$M$48="Yes",SUMPRODUCT(Worksheet!R104:R111,Worksheet!R151:R158),0))/SUM(Worksheet!R95:R114))+IF('1. Plan Inputs'!$M$46="Yes",Worksheet!R116,0)+IF('1. Plan Inputs'!$M$48="Yes",Worksheet!R120,0)),0) -> 0 | V130: =MIN(U130+S130,R15) -> 0 | Y130: Member1 | Z130: =Z124 -> 0 | AA130: =MIN(Z130,Z12) -> 0 | AB130: =Z130-AA130 -> 0 | AC130: =IFERROR(IF('1. Plan Inputs'!P50="No",AB130*Z14+IF('1. Plan Inputs'!$P$46="Yes",Worksheet!Z116,0)+IF('1. Plan Inputs'!$P$48="Yes",Worksheet!Z120,0),Worksheet!AB130*((Worksheet!Z14*SUM(Worksheet!Z95:Z103,Worksheet!Z114)+IF('1. Plan Inputs'!$P$48="Yes",SUMPRODUCT(Worksheet!Z104:Z111,Worksheet!Z151:Z158),0))/SUM(Worksheet!Z95:Z114))+IF('1. Plan Inputs'!$P$46="Yes",Worksheet!Z116,0)+IF('1. Plan Inputs'!$P$48="Yes",Worksheet!Z120,0)),0) -> 0 | AD130: =MIN(AC130+AA130,Z15) -> 0 | AG130: Member1 | AH130: =AH124 -> 0 | AI130: =MIN(AH130,AH12) -> 0 | AJ130: =AH130-AI130 -> 0 | AK130: =IFERROR(IF('1. Plan Inputs'!S50="No",AJ130*AH14+IF('1. Plan Inputs'!$S$46="Yes",Worksheet!AH116,0)+IF('1. Plan Inputs'!$S$48="Yes",Worksheet!AH120,0),Worksheet!AJ130*((Worksheet!AH14*SUM(Worksheet!AH95:AH103,Worksheet!AH114)+IF('1. Plan Inputs'!$S$48="Yes",SUMPRODUCT(Worksheet!AH104:AH111,Worksheet!AH151:AH158),0))/SUM(Worksheet!AH95:AH114))+IF('1. Plan Inputs'!$S$46="Yes",Worksheet!AH116,0)+IF('1. Plan Inputs'!$S$48="Yes",Worksheet!AH120,0)),0) -> 0 | AL130: =MIN(AK130+AI130,AH15) -> 0 | AO130: Member1 | AP130: =AP124 -> 0 | AQ130: =MIN(AP130,AP12) -> 0 | AR130: =AP130-AQ130 -> 0 | AS130: =IFERROR(IF('1. Plan Inputs'!V50="No",AR130*AP14+IF('1. Plan Inputs'!$V$46="Yes",Worksheet!AP116,0)+IF('1. Plan Inputs'!$V$48="Yes",Worksheet!AP120,0),Worksheet!AR130*((Worksheet!AP14*SUM(Worksheet!AP95:AP103,Worksheet!AP114)+IF('1. Plan Inputs'!$V$48="Yes",SUMPRODUCT(Worksheet!AP104:AP111,Worksheet!AP151:AP158),0))/SUM(Worksheet!AP95:AP114))+IF('1. Plan Inputs'!$V$46="Yes",Worksheet!AP116,0)+IF('1. Plan Inputs'!$V$48="Yes",Worksheet!AP120,0)),0) -> 0 | AT130: =MIN(AS130+AQ130,AP15) -> 0
A131: Member2 | B131: =C124 -> 0 | C131: =IF(MIN(B131,C12)+SUM(C130)<C13,MIN(B131,C12),C13-SUM(C130)) -> 0 | D131: =B131-C131 -> 0 | E131: =IFERROR(IF('1. Plan Inputs'!G50="No",D131*C14+IF('1. Plan Inputs'!$G$46="Yes",Worksheet!C116,0)+IF('1. Plan Inputs'!$G$48="Yes",Worksheet!C120,0),Worksheet!D131*((Worksheet!C14*SUM(Worksheet!C95:C103,Worksheet!C114)+IF('1. Plan Inputs'!$G$48="Yes",SUMPRODUCT(Worksheet!C104:C111,Worksheet!B151:B158),0))/SUM(Worksheet!C95:C114))+IF('1. Plan Inputs'!$G$46="Yes",Worksheet!C116,0)+IF('1. Plan Inputs'!$G$48="Yes",Worksheet!C120,0)),0) -> 0 | F131: =IF(MIN(C131+E131,C15)+SUM(F130)<C16,MIN(C131+E131,C15),C16-SUM(F130)) -> 0 | I131: Member2 | J131: =K124 -> 0 | K131: =IF(MIN(J131,K12)+SUM(K130)<K13,MIN(J131,K12),K13-SUM(K130)) -> 0 | L131: =J131-K131 -> 0 | M131: =IFERROR(IF('1. Plan Inputs'!J50="No",L131*K14+IF('1. Plan Inputs'!$J$46="Yes",Worksheet!K116,0)+IF('1. Plan Inputs'!$J$48="Yes",Worksheet!K120,0),Worksheet!L131*((Worksheet!K14*SUM(Worksheet!K95:K103,Worksheet!K114)+IF('1. Plan Inputs'!$J$48="Yes",SUMPRODUCT(Worksheet!K104:K111,Worksheet!J151:J158),0))/SUM(Worksheet!K95:K114))+IF('1. Plan Inputs'!$J$46="Yes",Worksheet!K116,0)+IF('1. Plan Inputs'!$J$48="Yes",Worksheet!K120,0)),0) -> 0 | N131: =IF(MIN(K131+M131,K15)+SUM(N130)<K16,MIN(K131+M131,K15),K16-SUM(N130)) -> 0 | Q131: Member2 | R131: =S124 -> 0 | S131: =IF(MIN(R131,S12)+SUM(S130)<S13,MIN(R131,S12),S13-SUM(S130)) -> 0 | T131: =R131-S131 -> 0 | U131: =IFERROR(IF('1. Plan Inputs'!M50="No",T131*S14+IF('1. Plan Inputs'!$M$46="Yes",Worksheet!S116,0)+IF('1. Plan Inputs'!$M$48="Yes",Worksheet!S120,0),Worksheet!T131*((Worksheet!S14*SUM(Worksheet!S95:S103,Worksheet!S114)+IF('1. Plan Inputs'!$M$48="Yes",SUMPRODUCT(Worksheet!S104:S111,Worksheet!R151:R158),0))/SUM(Worksheet!S95:S114))+IF('1. Plan Inputs'!$M$46="Yes",Worksheet!S116,0)+IF('1. Plan Inputs'!$M$48="Yes",Worksheet!S120,0)),0) -> 0 | V131: =IF(MIN(S131+U131,S15)+SUM(V130)<S16,MIN(S131+U131,S15),S16-SUM(V130)) -> 0 | Y131: Member2 | Z131: =AA124 -> 0 | AA131: =IF(MIN(Z131,AA12)+SUM(AA130)<AA13,MIN(Z131,AA12),AA13-SUM(AA130)) -> 0 | AB131: =Z131-AA131 -> 0 | AC131: =IFERROR(IF('1. Plan Inputs'!P50="No",AB131*AA14+IF('1. Plan Inputs'!$P$46="Yes",Worksheet!AA116,0)+IF('1. Plan Inputs'!$P$48="Yes",Worksheet!AA120,0),Worksheet!AB131*((Worksheet!AA14*SUM(Worksheet!AA95:AA103,Worksheet!AA114)+IF('1. Plan Inputs'!$P$48="Yes",SUMPRODUCT(Worksheet!AA104:AA111,Worksheet!Z151:Z158),0))/SUM(Worksheet!AA95:AA114))+IF('1. Plan Inputs'!$P$46="Yes",Worksheet!AA116,0)+IF('1. Plan Inputs'!$P$48="Yes",Worksheet!AA120,0)),0) -> 0 | AD131: =IF(MIN(AA131+AC131,AA15)+SUM(AD130)<AA16,MIN(AA131+AC131,AA15),AA16-SUM(AD130)) -> 0 | AG131: Member2 | AH131: =AI124 -> 0 | AI131: =IF(MIN(AH131,AI12)+SUM(AI130)<AI13,MIN(AH131,AI12),AI13-SUM(AI130)) -> 0 | AJ131: =AH131-AI131 -> 0 | AK131: =IFERROR(IF('1. Plan Inputs'!S50="No",AJ131*AI14+IF('1. Plan Inputs'!$S$46="Yes",Worksheet!AI116,0)+IF('1. Plan Inputs'!$S$48="Yes",Worksheet!AI120,0),Worksheet!AJ131*((Worksheet!AI14*SUM(Worksheet!AI95:AI103,Worksheet!AI114)+IF('1. Plan Inputs'!$S$48="Yes",SUMPRODUCT(Worksheet!AI104:AI111,Worksheet!AH151:AH158),0))/SUM(Worksheet!AI95:AI114))+IF('1. Plan Inputs'!$S$46="Yes",Worksheet!AI116,0)+IF('1. Plan Inputs'!$S$48="Yes",Worksheet!AI120,0)),0) -> 0 | AL131: =IF(MIN(AI131+AK131,AI15)+SUM(AL130)<AI16,MIN(AI131+AK131,AI15),AI16-SUM(AL130)) -> 0 | AO131: Member2 | AP131: =AQ124 -> 0 | AQ131: =IF(MIN(AP131,AQ12)+SUM(AQ130)<AQ13,MIN(AP131,AQ12),AQ13-SUM(AQ130)) -> 0 | AR131: =AP131-AQ131 -> 0 | AS131: =IFERROR(IF('1. Plan Inputs'!V50="No",AR131*AQ14+IF('1. Plan Inputs'!$V$46="Yes",Worksheet!AQ116,0)+IF('1. Plan Inputs'!$V$48="Yes",Worksheet!AQ120,0),Worksheet!AR131*((Worksheet!AQ14*SUM(Worksheet!AQ95:AQ103,Worksheet!AQ114)+IF('1. Plan Inputs'!$V$48="Yes",SUMPRODUCT(Worksheet!AQ104:AQ111,Worksheet!AP151:AP158),0))/SUM(Worksheet!AQ95:AQ114))+IF('1. Plan Inputs'!$V$46="Yes",Worksheet!AQ116,0)+IF('1. Plan Inputs'!$V$48="Yes",Worksheet!AQ120,0)),0) -> 0 | AT131: =IF(MIN(AQ131+AS131,AQ15)+SUM(AT130)<AQ16,MIN(AQ131+AS131,AQ15),AQ16-SUM(AT130)) -> 0
A132: Member3 | B132: =D124 -> 0 | C132: =IF(MIN(B132,D12)+SUM(C130:C131)<D13,MIN(B132,D12),D13-SUM(C130:C131)) -> 0 | D132: 0 | E132: =IFERROR(IF('1. Plan Inputs'!G50="No",D132*D14+IF('1. Plan Inputs'!$G$46="Yes",Worksheet!D116,0)+IF('1. Plan Inputs'!$G$48="Yes",Worksheet!D120,0),Worksheet!D132*((Worksheet!D14*SUM(Worksheet!D95:D103,Worksheet!D114)+IF('1. Plan Inputs'!$G$48="Yes",SUMPRODUCT(Worksheet!D104:D111,Worksheet!B151:B158),0))/SUM(Worksheet!D95:D114))+IF('1. Plan Inputs'!$G$46="Yes",Worksheet!D116,0)+IF('1. Plan Inputs'!$G$48="Yes",Worksheet!D120,0)),0) -> 0 | F132: =IF(MIN(C132+E132,D15)+SUM(F130:F131)<D16,MIN(C132+E132,D15),D16-SUM(F130:F131)) -> 0 | I132: Member3 | J132: =L124 -> 0 | K132: =IF(MIN(J132,L12)+SUM(K130:K131)<L13,MIN(J132,L12),L13-SUM(K130:K131)) -> 0 | L132: 0 | M132: =IFERROR(IF('1. Plan Inputs'!J50="No",L132*L14+IF('1. Plan Inputs'!$J$46="Yes",Worksheet!L116,0)+IF('1. Plan Inputs'!$J$48="Yes",Worksheet!L120,0),Worksheet!L132*((Worksheet!L14*SUM(Worksheet!L95:L103,Worksheet!L114)+IF('1. Plan Inputs'!$J$48="Yes",SUMPRODUCT(Worksheet!L104:L111,Worksheet!J151:J158),0))/SUM(Worksheet!L95:L114))+IF('1. Plan Inputs'!$J$46="Yes",Worksheet!L116,0)+IF('1. Plan Inputs'!$J$48="Yes",Worksheet!L120,0)),0) -> 0 | N132: =IF(MIN(K132+M132,L15)+SUM(N130:N131)<L16,MIN(K132+M132,L15),L16-SUM(N130:N131)) -> 0 | Q132: Member3 | R132: =T124 -> 0 | S132: =IF(MIN(R132,T12)+SUM(S130:S131)<T13,MIN(R132,T12),T13-SUM(S130:S131)) -> 0 | T132: 0 | U132: =IFERROR(IF('1. Plan Inputs'!M50="No",T132*T14+IF('1. Plan Inputs'!$M$46="Yes",Worksheet!T116,0)+IF('1. Plan Inputs'!$M$48="Yes",Worksheet!T120,0),Worksheet!T132*((Worksheet!T14*SUM(Worksheet!T95:T103,Worksheet!T114)+IF('1. Plan Inputs'!$M$48="Yes",SUMPRODUCT(Worksheet!T104:T111,Worksheet!R151:R158),0))/SUM(Worksheet!T95:T114))+IF('1. Plan Inputs'!$M$46="Yes",Worksheet!T116,0)+IF('1. Plan Inputs'!$M$48="Yes",Worksheet!T120,0)),0) -> 0 | V132: =IF(MIN(S132+U132,T15)+SUM(V130:V131)<T16,MIN(S132+U132,T15),T16-SUM(V130:V131)) -> 0 | Y132: Member3 | Z132: =AB124 -> 0 | AA132: =IF(MIN(Z132,AB12)+SUM(AA130:AA131)<AB13,MIN(Z132,AB12),AB13-SUM(AA130:AA131)) -> 0 | AB132: 0 | AC132: =IFERROR(IF('1. Plan Inputs'!P50="No",AB132*AB14+IF('1. Plan Inputs'!$P$46="Yes",Worksheet!AB116,0)+IF('1. Plan Inputs'!$P$48="Yes",Worksheet!AB120,0),Worksheet!AB132*((Worksheet!AB14*SUM(Worksheet!AB95:AB103,Worksheet!AB114)+IF('1. Plan Inputs'!$P$48="Yes",SUMPRODUCT(Worksheet!AB104:AB111,Worksheet!Z151:Z158),0))/SUM(Worksheet!AB95:AB114))+IF('1. Plan Inputs'!$P$46="Yes",Worksheet!AB116,0)+IF('1. Plan Inputs'!$P$48="Yes",Worksheet!AB120,0)),0) -> 0 | AD132: =IF(MIN(AA132+AC132,AB15)+SUM(AD130:AD131)<AB16,MIN(AA132+AC132,AB15),AB16-SUM(AD130:AD131)) -> 0 | AG132: Member3 | AH132: =AJ124 -> 0 | AI132: =IF(MIN(AH132,AJ12)+SUM(AI130:AI131)<AJ13,MIN(AH132,AJ12),AJ13-SUM(AI130:AI131)) -> 0 | AJ132: 0 | AK132: =IFERROR(IF('1. Plan Inputs'!S50="No",AJ132*AJ14+IF('1. Plan Inputs'!$S$46="Yes",Worksheet!AJ116,0)+IF('1. Plan Inputs'!$S$48="Yes",Worksheet!AJ120,0),Worksheet!AJ132*((Worksheet!AJ14*SUM(Worksheet!AJ95:AJ103,Worksheet!AJ114)+IF('1. Plan Inputs'!$S$48="Yes",SUMPRODUCT(Worksheet!AJ104:AJ111,Worksheet!AH151:AH158),0))/SUM(Worksheet!AJ95:AJ114))+IF('1. Plan Inputs'!$S$46="Yes",Worksheet!AJ116,0)+IF('1. Plan Inputs'!$S$48="Yes",Worksheet!AJ120,0)),0) -> 0 | AL132: =IF(MIN(AI132+AK132,AJ15)+SUM(AL130:AL131)<AJ16,MIN(AI132+AK132,AJ15),AJ16-SUM(AL130:AL131)) -> 0 | AO132: Member3 | AP132: =AR124 -> 0 | AQ132: =IF(MIN(AP132,AR12)+SUM(AQ130:AQ131)<AR13,MIN(AP132,AR12),AR13-SUM(AQ130:AQ131)) -> 0 | AR132: 0 | AS132: =IFERROR(IF('1. Plan Inputs'!V50="No",AR132*AR14+IF('1. Plan Inputs'!$V$46="Yes",Worksheet!AR116,0)+IF('1. Plan Inputs'!$V$48="Yes",Worksheet!AR120,0),Worksheet!AR132*((Worksheet!AR14*SUM(Worksheet!AR95:AR103,Worksheet!AR114)+IF('1. Plan Inputs'!$V$48="Yes",SUMPRODUCT(Worksheet!AR104:AR111,Worksheet!AP151:AP158),0))/SUM(Worksheet!AR95:AR114))+IF('1. Plan Inputs'!$V$46="Yes",Worksheet!AR116,0)+IF('1. Plan Inputs'!$V$48="Yes",Worksheet!AR120,0)),0) -> 0 | AT132: =IF(MIN(AQ132+AS132,AR15)+SUM(AT130:AT131)<AR16,MIN(AQ132+AS132,AR15),AR16-SUM(AT130:AT131)) -> 0
A133: Member4 | B133: =E124 -> 0 | C133: =IF(MIN(B133,E12)+SUM(C130:C132)<E13,MIN(B133,E12),E13-SUM(C130:C132)) -> 0 | D133: 0 | E133: =IFERROR(IF('1. Plan Inputs'!G50="No",D133*E14+IF('1. Plan Inputs'!$G$46="Yes",Worksheet!E116,0)+IF('1. Plan Inputs'!$G$48="Yes",Worksheet!E120,0),Worksheet!D133*((Worksheet!E14*SUM(Worksheet!E95:E103,Worksheet!E114)+IF('1. Plan Inputs'!$G$48="Yes",SUMPRODUCT(Worksheet!E104:E111,Worksheet!B151:B158),0))/SUM(Worksheet!E95:E114))+IF('1. Plan Inputs'!$G$46="Yes",Worksheet!E116,0)+IF('1. Plan Inputs'!$G$48="Yes",Worksheet!E120,0)),0) -> 0 | F133: =IF(MIN(C133+E133,E15)+SUM(F130:F132)<E16,MIN(C133+E133,E15),E16-SUM(F130:F132)) -> 0 | I133: Member4 | J133: =M124 -> 0 | K133: =IF(MIN(J133,M12)+SUM(K130:K132)<M13,MIN(J133,M12),M13-SUM(K130:K132)) -> 0 | L133: 0 | M133: =IFERROR(IF('1. Plan Inputs'!J50="No",L133*M14+IF('1. Plan Inputs'!$J$46="Yes",Worksheet!M116,0)+IF('1. Plan Inputs'!$J$48="Yes",Worksheet!M120,0),Worksheet!L133*((Worksheet!M14*SUM(Worksheet!M95:M103,Worksheet!M114)+IF('1. Plan Inputs'!$J$48="Yes",SUMPRODUCT(Worksheet!M104:M111,Worksheet!J151:J158),0))/SUM(Worksheet!M95:M114))+IF('1. Plan Inputs'!$J$46="Yes",Worksheet!M116,0)+IF('1. Plan Inputs'!$J$48="Yes",Worksheet!M120,0)),0) -> 0 | N133: =IF(MIN(K133+M133,M15)+SUM(N130:N132)<M16,MIN(K133+M133,M15),M16-SUM(N130:N132)) -> 0 | Q133: Member4 | R133: =U124 -> 0 | S133: =IF(MIN(R133,U12)+SUM(S130:S132)<U13,MIN(R133,U12),U13-SUM(S130:S132)) -> 0 | T133: 0 | U133: =IFERROR(IF('1. Plan Inputs'!M50="No",T133*U14+IF('1. Plan Inputs'!$M$46="Yes",Worksheet!U116,0)+IF('1. Plan Inputs'!$M$48="Yes",Worksheet!U120,0),Worksheet!T133*((Worksheet!U14*SUM(Worksheet!U95:U103,Worksheet!U114)+IF('1. Plan Inputs'!$M$48="Yes",SUMPRODUCT(Worksheet!U104:U111,Worksheet!R151:R158),0))/SUM(Worksheet!U95:U114))+IF('1. Plan Inputs'!$M$46="Yes",Worksheet!U116,0)+IF('1. Plan Inputs'!$M$48="Yes",Worksheet!U120,0)),0) -> 0 | V133: =IF(MIN(S133+U133,U15)+SUM(V130:V132)<U16,MIN(S133+U133,U15),U16-SUM(V130:V132)) -> 0 | Y133: Member4 | Z133: =AC124 -> 0 | AA133: =IF(MIN(Z133,AC12)+SUM(AA130:AA132)<AC13,MIN(Z133,AC12),AC13-SUM(AA130:AA132)) -> 0 | AB133: 0 | AC133: =IFERROR(IF('1. Plan Inputs'!P50="No",AB133*AC14+IF('1. Plan Inputs'!$P$46="Yes",Worksheet!AC116,0)+IF('1. Plan Inputs'!$P$48="Yes",Worksheet!AC120,0),Worksheet!AB133*((Worksheet!AC14*SUM(Worksheet!AC95:AC103,Worksheet!AC114)+IF('1. Plan Inputs'!$P$48="Yes",SUMPRODUCT(Worksheet!AC104:AC111,Worksheet!Z151:Z158),0))/SUM(Worksheet!AC95:AC114))+IF('1. Plan Inputs'!$P$46="Yes",Worksheet!AC116,0)+IF('1. Plan Inputs'!$P$48="Yes",Worksheet!AC120,0)),0) -> 0 | AD133: =IF(MIN(AA133+AC133,AC15)+SUM(AD130:AD132)<AC16,MIN(AA133+AC133,AC15),AC16-SUM(AD130:AD132)) -> 0 | AG133: Member4 | AH133: =AK124 -> 0 | AI133: =IF(MIN(AH133,AK12)+SUM(AI130:AI132)<AK13,MIN(AH133,AK12),AK13-SUM(AI130:AI132)) -> 0 | AJ133: 0 | AK133: =IFERROR(IF('1. Plan Inputs'!S50="No",AJ133*AK14+IF('1. Plan Inputs'!$S$46="Yes",Worksheet!AK116,0)+IF('1. Plan Inputs'!$S$48="Yes",Worksheet!AK120,0),Worksheet!AJ133*((Worksheet!AK14*SUM(Worksheet!AK95:AK103,Worksheet!AK114)+IF('1. Plan Inputs'!$S$48="Yes",SUMPRODUCT(Worksheet!AK104:AK111,Worksheet!AH151:AH158),0))/SUM(Worksheet!AK95:AK114))+IF('1. Plan Inputs'!$S$46="Yes",Worksheet!AK116,0)+IF('1. Plan Inputs'!$S$48="Yes",Worksheet!AK120,0)),0) -> 0 | AL133: =IF(MIN(AI133+AK133,AK15)+SUM(AL130:AL132)<AK16,MIN(AI133+AK133,AK15),AK16-SUM(AL130:AL132)) -> 0 | AO133: Member4 | AP133: =AS124 -> 0 | AQ133: =IF(MIN(AP133,AS12)+SUM(AQ130:AQ132)<AS13,MIN(AP133,AS12),AS13-SUM(AQ130:AQ132)) -> 0 | AR133: 0 | AS133: =IFERROR(IF('1. Plan Inputs'!V50="No",AR133*AS14+IF('1. Plan Inputs'!$V$46="Yes",Worksheet!AS116,0)+IF('1. Plan Inputs'!$V$48="Yes",Worksheet!AS120,0),Worksheet!AR133*((Worksheet!AS14*SUM(Worksheet!AS95:AS103,Worksheet!AS114)+IF('1. Plan Inputs'!$V$48="Yes",SUMPRODUCT(Worksheet!AS104:AS111,Worksheet!AP151:AP158),0))/SUM(Worksheet!AS95:AS114))+IF('1. Plan Inputs'!$V$46="Yes",Worksheet!AS116,0)+IF('1. Plan Inputs'!$V$48="Yes",Worksheet!AS120,0)),0) -> 0 | AT133: =IF(MIN(AQ133+AS133,AS15)+SUM(AT130:AT132)<AS16,MIN(AQ133+AS133,AS15),AS16-SUM(AT130:AT132)) -> 0
A134: Member5 | B134: =F124 -> 0 | C134: =IF(MIN(B134,F12)+SUM(C130:C133)<F13,MIN(B134,F12),F13-SUM(C130:C133)) -> 0 | D134: 0 | E134: =IFERROR(IF('1. Plan Inputs'!G50="No",D134*F14+IF('1. Plan Inputs'!$G$46="Yes",Worksheet!F116,0)+IF('1. Plan Inputs'!$G$48="Yes",Worksheet!F120,0),Worksheet!D134*((Worksheet!F14*SUM(Worksheet!F95:F103,Worksheet!F114)+IF('1. Plan Inputs'!$G$48="Yes",SUMPRODUCT(Worksheet!F104:F111,Worksheet!B151:B158),0))/SUM(Worksheet!F95:F114))+IF('1. Plan Inputs'!$G$46="Yes",Worksheet!F116,0)+IF('1. Plan Inputs'!$G$48="Yes",Worksheet!F120,0)),0) -> 0 | F134: =IF(MIN(C134+E134,F15)+SUM(F130:F133)<F16,MIN(C134+E134,F15),F16-SUM(F130:F133)) -> 0 | I134: Member5 | J134: =N124 -> 0 | K134: =IF(MIN(J134,N12)+SUM(K130:K133)<N13,MIN(J134,N12),N13-SUM(K130:K133)) -> 0 | L134: 0 | M134: =IFERROR(IF('1. Plan Inputs'!J50="No",L134*N14+IF('1. Plan Inputs'!$J$46="Yes",Worksheet!N116,0)+IF('1. Plan Inputs'!$J$48="Yes",Worksheet!N120,0),Worksheet!L134*((Worksheet!N14*SUM(Worksheet!N95:N103,Worksheet!N114)+IF('1. Plan Inputs'!$J$48="Yes",SUMPRODUCT(Worksheet!N104:N111,Worksheet!J151:J158),0))/SUM(Worksheet!N95:N114))+IF('1. Plan Inputs'!$J$46="Yes",Worksheet!N116,0)+IF('1. Plan Inputs'!$J$48="Yes",Worksheet!N120,0)),0) -> 0 | N134: =IF(MIN(K134+M134,N15)+SUM(N130:N133)<N16,MIN(K134+M134,N15),N16-SUM(N130:N133)) -> 0 | Q134: Member5 | R134: =V124 -> 0 | S134: =IF(MIN(R134,V12)+SUM(S130:S133)<V13,MIN(R134,V12),V13-SUM(S130:S133)) -> 0 | T134: 0 | U134: =IFERROR(IF('1. Plan Inputs'!M50="No",T134*V14+IF('1. Plan Inputs'!$M$46="Yes",Worksheet!V116,0)+IF('1. Plan Inputs'!$M$48="Yes",Worksheet!V120,0),Worksheet!T134*((Worksheet!V14*SUM(Worksheet!V95:V103,Worksheet!V114)+IF('1. Plan Inputs'!$M$48="Yes",SUMPRODUCT(Worksheet!V104:V111,Worksheet!R151:R158),0))/SUM(Worksheet!V95:V114))+IF('1. Plan Inputs'!$M$46="Yes",Worksheet!V116,0)+IF('1. Plan Inputs'!$M$48="Yes",Worksheet!V120,0)),0) -> 0 | V134: =IF(MIN(S134+U134,V15)+SUM(V130:V133)<V16,MIN(S134+U134,V15),V16-SUM(V130:V133)) -> 0 | Y134: Member5 | Z134: =AD124 -> 0 | AA134: =IF(MIN(Z134,AD12)+SUM(AA130:AA133)<AD13,MIN(Z134,AD12),AD13-SUM(AA130:AA133)) -> 0 | AB134: 0 | AC134: =IFERROR(IF('1. Plan Inputs'!P50="No",AB134*AD14+IF('1. Plan Inputs'!$P$46="Yes",Worksheet!AD116,0)+IF('1. Plan Inputs'!$P$48="Yes",Worksheet!AD120,0),Worksheet!AB134*((Worksheet!AD14*SUM(Worksheet!AD95:AD103,Worksheet!AD114)+IF('1. Plan Inputs'!$P$48="Yes",SUMPRODUCT(Worksheet!AD104:AD111,Worksheet!Z151:Z158),0))/SUM(Worksheet!AD95:AD114))+IF('1. Plan Inputs'!$P$46="Yes",Worksheet!AD116,0)+IF('1. Plan Inputs'!$P$48="Yes",Worksheet!AD120,0)),0) -> 0 | AD134: =IF(MIN(AA134+AC134,AD15)+SUM(AD130:AD133)<AD16,MIN(AA134+AC134,AD15),AD16-SUM(AD130:AD133)) -> 0 | AG134: Member5 | AH134: =AL124 -> 0 | AI134: =IF(MIN(AH134,AL12)+SUM(AI130:AI133)<AL13,MIN(AH134,AL12),AL13-SUM(AI130:AI133)) -> 0 | AJ134: 0 | AK134: =IFERROR(IF('1. Plan Inputs'!S50="No",AJ134*AL14+IF('1. Plan Inputs'!$S$46="Yes",Worksheet!AL116,0)+IF('1. Plan Inputs'!$S$48="Yes",Worksheet!AL120,0),Worksheet!AJ134*((Worksheet!AL14*SUM(Worksheet!AL95:AL103,Worksheet!AL114)+IF('1. Plan Inputs'!$S$48="Yes",SUMPRODUCT(Worksheet!AL104:AL111,Worksheet!AH151:AH158),0))/SUM(Worksheet!AL95:AL114))+IF('1. Plan Inputs'!$S$46="Yes",Worksheet!AL116,0)+IF('1. Plan Inputs'!$S$48="Yes",Worksheet!AL120,0)),0) -> 0 | AL134: =IF(MIN(AI134+AK134,AL15)+SUM(AL130:AL133)<AL16,MIN(AI134+AK134,AL15),AL16-SUM(AL130:AL133)) -> 0 | AO134: Member5 | AP134: =AT124 -> 0 | AQ134: =IF(MIN(AP134,AT12)+SUM(AQ130:AQ133)<AT13,MIN(AP134,AT12),AT13-SUM(AQ130:AQ133)) -> 0 | AR134: 0 | AS134: =IFERROR(IF('1. Plan Inputs'!V50="No",AR134*AT14+IF('1. Plan Inputs'!$V$46="Yes",Worksheet!AT116,0)+IF('1. Plan Inputs'!$V$48="Yes",Worksheet!AT120,0),Worksheet!AR134*((Worksheet!AT14*SUM(Worksheet!AT95:AT103,Worksheet!AT114)+IF('1. Plan Inputs'!$V$48="Yes",SUMPRODUCT(Worksheet!AT104:AT111,Worksheet!AP151:AP158),0))/SUM(Worksheet!AT95:AT114))+IF('1. Plan Inputs'!$V$46="Yes",Worksheet!AT116,0)+IF('1. Plan Inputs'!$V$48="Yes",Worksheet!AT120,0)),0) -> 0 | AT134: =IF(MIN(AQ134+AS134,AT15)+SUM(AT130:AT133)<AT16,MIN(AQ134+AS134,AT15),AT16-SUM(AT130:AT133)) -> 0
A135: Member6 | B135: =G124 -> 0 | C135: =IF(MIN(B135,G12)+SUM(C130:C134)<G13,MIN(B135,G12),G13-SUM(C130:C134)) -> 0 | D135: 0 | E135: =IFERROR(IF('1. Plan Inputs'!G50="No",D135*G14+IF('1. Plan Inputs'!$G$46="Yes",Worksheet!G116,0)+IF('1. Plan Inputs'!$G$48="Yes",Worksheet!G120,0),Worksheet!D135*((Worksheet!G14*SUM(Worksheet!G95:G103,Worksheet!G114)+IF('1. Plan Inputs'!$G$48="Yes",SUMPRODUCT(Worksheet!G104:G111,Worksheet!B151:B158),0))/SUM(Worksheet!G95:G114))+IF('1. Plan Inputs'!$G$46="Yes",Worksheet!G116,0)+IF('1. Plan Inputs'!$G$48="Yes",Worksheet!G120,0)),0) -> 0 | F135: =IF(MIN(C135+E135,G15)+SUM(F130:F134)<G16,MIN(C135+E135,G15),G16-SUM(F130:F134)) -> 0 | I135: Member6 | J135: =O124 -> 0 | K135: =IF(MIN(J135,O12)+SUM(K130:K134)<O13,MIN(J135,O12),O13-SUM(K130:K134)) -> 0 | L135: 0 | M135: =IFERROR(IF('1. Plan Inputs'!J50="No",L135*O14+IF('1. Plan Inputs'!$J$46="Yes",Worksheet!O116,0)+IF('1. Plan Inputs'!$J$48="Yes",Worksheet!O120,0),Worksheet!L135*((Worksheet!O14*SUM(Worksheet!O95:O103,Worksheet!O114)+IF('1. Plan Inputs'!$J$48="Yes",SUMPRODUCT(Worksheet!O104:O111,Worksheet!J151:J158),0))/SUM(Worksheet!O95:O114))+IF('1. Plan Inputs'!$J$46="Yes",Worksheet!O116,0)+IF('1. Plan Inputs'!$J$48="Yes",Worksheet!O120,0)),0) -> 0 | N135: =IF(MIN(K135+M135,O15)+SUM(N130:N134)<O16,MIN(K135+M135,O15),O16-SUM(N130:N134)) -> 0 | Q135: Member6 | R135: =W124 -> 0 | S135: =IF(MIN(R135,W12)+SUM(S130:S134)<W13,MIN(R135,W12),W13-SUM(S130:S134)) -> 0 | T135: 0 | U135: =IFERROR(IF('1. Plan Inputs'!M50="No",T135*W14+IF('1. Plan Inputs'!$M$46="Yes",Worksheet!W116,0)+IF('1. Plan Inputs'!$M$48="Yes",Worksheet!W120,0),Worksheet!T135*((Worksheet!W14*SUM(Worksheet!W95:W103,Worksheet!W114)+IF('1. Plan Inputs'!$M$48="Yes",SUMPRODUCT(Worksheet!W104:W111,Worksheet!R151:R158),0))/SUM(Worksheet!W95:W114))+IF('1. Plan Inputs'!$M$46="Yes",Worksheet!W116,0)+IF('1. Plan Inputs'!$M$48="Yes",Worksheet!W120,0)),0) -> 0 | V135: =IF(MIN(S135+U135,W15)+SUM(V130:V134)<W16,MIN(S135+U135,W15),W16-SUM(V130:V134)) -> 0 | Y135: Member6 | Z135: =AE124 -> 0 | AA135: =IF(MIN(Z135,AE12)+SUM(AA130:AA134)<AE13,MIN(Z135,AE12),AE13-SUM(AA130:AA134)) -> 0 | AB135: 0 | AC135: =IFERROR(IF('1. Plan Inputs'!P50="No",AB135*AE14+IF('1. Plan Inputs'!$P$46="Yes",Worksheet!AE116,0)+IF('1. Plan Inputs'!$P$48="Yes",Worksheet!AE120,0),Worksheet!AB135*((Worksheet!AE14*SUM(Worksheet!AE95:AE103,Worksheet!AE114)+IF('1. Plan Inputs'!$P$48="Yes",SUMPRODUCT(Worksheet!AE104:AE111,Worksheet!Z151:Z158),0))/SUM(Worksheet!AE95:AE114))+IF('1. Plan Inputs'!$P$46="Yes",Worksheet!AE116,0)+IF('1. Plan Inputs'!$P$48="Yes",Worksheet!AE120,0)),0) -> 0 | AD135: =IF(MIN(AA135+AC135,AE15)+SUM(AD130:AD134)<AE16,MIN(AA135+AC135,AE15),AE16-SUM(AD130:AD134)) -> 0 | AG135: Member6 | AH135: =AM124 -> 0 | AI135: =IF(MIN(AH135,AM12)+SUM(AI130:AI134)<AM13,MIN(AH135,AM12),AM13-SUM(AI130:AI134)) -> 0 | AJ135: 0 | AK135: =IFERROR(IF('1. Plan Inputs'!S50="No",AJ135*AM14+IF('1. Plan Inputs'!$S$46="Yes",Worksheet!AM116,0)+IF('1. Plan Inputs'!$S$48="Yes",Worksheet!AM120,0),Worksheet!AJ135*((Worksheet!AM14*SUM(Worksheet!AM95:AM103,Worksheet!AM114)+IF('1. Plan Inputs'!$S$48="Yes",SUMPRODUCT(Worksheet!AM104:AM111,Worksheet!AH151:AH158),0))/SUM(Worksheet!AM95:AM114))+IF('1. Plan Inputs'!$S$46="Yes",Worksheet!AM116,0)+IF('1. Plan Inputs'!$S$48="Yes",Worksheet!AM120,0)),0) -> 0 | AL135: =IF(MIN(AI135+AK135,AM15)+SUM(AL130:AL134)<AM16,MIN(AI135+AK135,AM15),AM16-SUM(AL130:AL134)) -> 0 | AO135: Member6 | AP135: =AU124 -> 0 | AQ135: =IF(MIN(AP135,AU12)+SUM(AQ130:AQ134)<AU13,MIN(AP135,AU12),AU13-SUM(AQ130:AQ134)) -> 0 | AR135: 0 | AS135: =IFERROR(IF('1. Plan Inputs'!V50="No",AR135*AU14+IF('1. Plan Inputs'!$V$46="Yes",Worksheet!AU116,0)+IF('1. Plan Inputs'!$V$48="Yes",Worksheet!AU120,0),Worksheet!AR135*((Worksheet!AU14*SUM(Worksheet!AU95:AU103,Worksheet!AU114)+IF('1. Plan Inputs'!$V$48="Yes",SUMPRODUCT(Worksheet!AU104:AU111,Worksheet!AP151:AP158),0))/SUM(Worksheet!AU95:AU114))+IF('1. Plan Inputs'!$V$46="Yes",Worksheet!AU116,0)+IF('1. Plan Inputs'!$V$48="Yes",Worksheet!AU120,0)),0) -> 0 | AT135: =IF(MIN(AQ135+AS135,AU15)+SUM(AT130:AT134)<AU16,MIN(AQ135+AS135,AU15),AU16-SUM(AT130:AT134)) -> 0
A136: Total | B136: =SUM(B130:B135) -> 0 | C136: =SUM(C130:C135) -> 0 | D136: =SUM(D130:D135) -> 0 | E136: =SUM(E130:E135) -> 0 | F136: =SUM(F130:F135)+IF('1. Plan Inputs'!G46="Yes",0,SUM(Worksheet!B116:G116))+IF('1. Plan Inputs'!G48="Yes",0,SUM(Worksheet!B120:G120))+IFERROR(IF('1. Plan Inputs'!G48="Yes",0,D130*SUMPRODUCT(B104:B111,B151:B158/SUM(B95:B114))),0)+IFERROR(IF('1. Plan Inputs'!G48="Yes",0,D131*SUMPRODUCT(C104:C111,B151:B158/SUM(C95:C114))),0)+IFERROR(IF('1. Plan Inputs'!G48="Yes",0,D132*SUMPRODUCT(D104:D111,B151:B158/SUM(D95:D114))),0)+IFERROR(IF('1. Plan Inputs'!G48="Yes",0,D133*SUMPRODUCT(E104:E111,B151:B158/SUM(E95:E114))),0)+IFERROR(IF('1. Plan Inputs'!G48="Yes",0,D134*SUMPRODUCT(F104:F111,B151:B158/SUM(F95:F114))),0)+IFERROR(IF('1. Plan Inputs'!G48="Yes",0,D135*SUMPRODUCT(G104:G111,B151:B158/SUM(G95:G114))),0) -> 0 | I136: Total | J136: =SUM(J130:J135) -> 0 | K136: =SUM(K130:K135) -> 0 | L136: =SUM(L130:L135) -> 0 | M136: =SUM(M130:M135) -> 0 | N136: =SUM(N130:N135)+IF('1. Plan Inputs'!J46="Yes",0,SUM(Worksheet!J116:O116))+IF('1. Plan Inputs'!J48="Yes",0,SUM(Worksheet!J120:O120))+IFERROR(IF('1. Plan Inputs'!J48="Yes",0,L130*SUMPRODUCT(J104:J111,J151:J158/SUM(J95:J114))),0)+IFERROR(IF('1. Plan Inputs'!J48="Yes",0,L131*SUMPRODUCT(K104:K111,J151:J158/SUM(K95:K114))),0)+IFERROR(IF('1. Plan Inputs'!J48="Yes",0,L132*SUMPRODUCT(L104:L111,J151:J158/SUM(L95:L114))),0)+IFERROR(IF('1. Plan Inputs'!J48="Yes",0,L133*SUMPRODUCT(M104:M111,J151:J158/SUM(M95:M114))),0)+IFERROR(IF('1. Plan Inputs'!J48="Yes",0,L134*SUMPRODUCT(N104:N111,J151:J158/SUM(N95:N114))),0)+IFERROR(IF('1. Plan Inputs'!J48="Yes",0,L135*SUMPRODUCT(O104:O111,J151:J158/SUM(O95:O114))),0) -> 0 | Q136: Total | R136: =SUM(R130:R135) -> 0 | S136: =SUM(S130:S135) -> 0 | T136: =SUM(T130:T135) -> 0 | U136: =SUM(U130:U135) -> 0 | V136: =SUM(V130:V135)+IF('1. Plan Inputs'!M46="Yes",0,SUM(Worksheet!R116:W116))+IF('1. Plan Inputs'!M48="Yes",0,SUM(Worksheet!R120:W120))+IFERROR(IF('1. Plan Inputs'!M48="Yes",0,T130*SUMPRODUCT(R104:R111,R151:R158/SUM(R95:R114))),0)+IFERROR(IF('1. Plan Inputs'!M48="Yes",0,T131*SUMPRODUCT(S104:S111,R151:R158/SUM(S95:S114))),0)+IFERROR(IF('1. Plan Inputs'!M48="Yes",0,T132*SUMPRODUCT(T104:T111,R151:R158/SUM(T95:T114))),0)+IFERROR(IF('1. Plan Inputs'!M48="Yes",0,T133*SUMPRODUCT(U104:U111,R151:R158/SUM(U95:U114))),0)+IFERROR(IF('1. Plan Inputs'!M48="Yes",0,T134*SUMPRODUCT(V104:V111,R151:R158/SUM(V95:V114))),0)+IFERROR(IF('1. Plan Inputs'!M48="Yes",0,T135*SUMPRODUCT(W104:W111,R151:R158/SUM(W95:W114))),0) -> 0 | Y136: Total | Z136: =SUM(Z130:Z135) -> 0 | AA136: =SUM(AA130:AA135) -> 0 | AB136: =SUM(AB130:AB135) -> 0 | AC136: =SUM(AC130:AC135) -> 0 | AD136: =SUM(AD130:AD135)+IF('1. Plan Inputs'!P46="Yes",0,SUM(Worksheet!Z116:AE116))+IF('1. Plan Inputs'!P48="Yes",0,SUM(Worksheet!Z120:AE120))+IFERROR(IF('1. Plan Inputs'!P48="Yes",0,AB130*SUMPRODUCT(Z104:Z111,Z151:Z158/SUM(Z95:Z114))),0)+IFERROR(IF('1. Plan Inputs'!P48="Yes",0,AB131*SUMPRODUCT(AA104:AA111,Z151:Z158/SUM(AA95:AA114))),0)+IFERROR(IF('1. Plan Inputs'!P48="Yes",0,AB132*SUMPRODUCT(AB104:AB111,Z151:Z158/SUM(AB95:AB114))),0)+IFERROR(IF('1. Plan Inputs'!P48="Yes",0,AB133*SUMPRODUCT(AC104:AC111,Z151:Z158/SUM(AC95:AC114))),0)+IFERROR(IF('1. Plan Inputs'!P48="Yes",0,AB134*SUMPRODUCT(AD104:AD111,Z151:Z158/SUM(AD95:AD114))),0)+IFERROR(IF('1. Plan Inputs'!P48="Yes",0,AB135*SUMPRODUCT(AE104:AE111,Z151:Z158/SUM(AE95:AE114))),0) -> 0 | AG136: Total | AH136: =SUM(AH130:AH135) -> 0 | AI136: =SUM(AI130:AI135) -> 0 | AJ136: =SUM(AJ130:AJ135) -> 0 | AK136: =SUM(AK130:AK135) -> 0 | AL136: =SUM(AL130:AL135)+IF('1. Plan Inputs'!S46="Yes",0,SUM(Worksheet!AH116:AM116))+IF('1. Plan Inputs'!S48="Yes",0,SUM(Worksheet!AH120:AM120))+IFERROR(IF('1. Plan Inputs'!S48="Yes",0,AJ130*SUMPRODUCT(AH104:AH111,AH151:AH158/SUM(AH95:AH114))),0)+IFERROR(IF('1. Plan Inputs'!S48="Yes",0,AJ131*SUMPRODUCT(AI104:AI111,AH151:AH158/SUM(AI95:AI114))),0)+IFERROR(IF('1. Plan Inputs'!S48="Yes",0,AJ132*SUMPRODUCT(AJ104:AJ111,AH151:AH158/SUM(AJ95:AJ114))),0)+IFERROR(IF('1. Plan Inputs'!S48="Yes",0,AJ133*SUMPRODUCT(AK104:AK111,AH151:AH158/SUM(AK95:AK114))),0)+IFERROR(IF('1. Plan Inputs'!S48="Yes",0,AJ134*SUMPRODUCT(AL104:AL111,AH151:AH158/SUM(AL95:AL114))),0)+IFERROR(IF('1. Plan Inputs'!S48="Yes",0,AJ135*SUMPRODUCT(AM104:AM111,AH151:AH158/SUM(AM95:AM114))),0) -> 0 | AO136: Total | AP136: =SUM(AP130:AP135) -> 0 | AQ136: =SUM(AQ130:AQ135) -> 0 | AR136: =SUM(AR130:AR135) -> 0 | AS136: =SUM(AS130:AS135) -> 0 | AT136: =SUM(AT130:AT135)+IF('1. Plan Inputs'!V46="Yes",0,SUM(Worksheet!AP116:AU116))+IF('1. Plan Inputs'!V48="Yes",0,SUM(Worksheet!AP120:AU120))+IFERROR(IF('1. Plan Inputs'!V48="Yes",0,AR130*SUMPRODUCT(AP104:AP111,AP151:AP158/SUM(AP95:AP114))),0)+IFERROR(IF('1. Plan Inputs'!V48="Yes",0,AR131*SUMPRODUCT(AQ104:AQ111,AP151:AP158/SUM(AQ95:AQ114))),0)+IFERROR(IF('1. Plan Inputs'!V48="Yes",0,AR132*SUMPRODUCT(AR104:AR111,AP151:AP158/SUM(AR95:AR114))),0)+IFERROR(IF('1. Plan Inputs'!V48="Yes",0,AR133*SUMPRODUCT(AS104:AS111,AP151:AP158/SUM(AS95:AS114))),0)+IFERROR(IF('1. Plan Inputs'!V48="Yes",0,AR134*SUMPRODUCT(AT104:AT111,AP151:AP158/SUM(AT95:AT114))),0)+IFERROR(IF('1. Plan Inputs'!V48="Yes",0,AR135*SUMPRODUCT(AU104:AU111,AP151:AP158/SUM(AU95:AU114))),0) -> 0
A139: Non-Embedded Calculation: | I139: Non-Embedded Calculation: | Q139: Non-Embedded Calculation: | Y139: Non-Embedded Calculation: | AG139: Non-Embedded Calculation: | AO139: Non-Embedded Calculation:
B140: Applicable | C140: Deductible | D140: Apply to Coins | E140: Apply to OOP | F140: OOP Max | J140: Applicable | K140: Deductible | L140: Apply to Coins | M140: Apply to OOP | N140: OOP Max | R140: Applicable | S140: Deductible | T140: Apply to Coins | U140: Apply to OOP | V140: OOP Max | Z140: Applicable | AA140: Deductible | AB140: Apply to Coins | AC140: Apply to OOP | AD140: OOP Max | AH140: Applicable | AI140: Deductible | AJ140: Apply to Coins | AK140: Apply to OOP | AL140: OOP Max | AP140: Applicable | AQ140: Deductible | AR140: Apply to Coins | AS140: Apply to OOP | AT140: OOP Max
A141: Member1 | B141: =B124 -> 0 | C141: =MIN(B141,B13) -> 0 | D141: =B141-C141 -> 0 | E141: =IFERROR(IF('1. Plan Inputs'!G50="No",D141*B14+IF('1. Plan Inputs'!$G$46="Yes",Worksheet!B116,0)+IF('1. Plan Inputs'!$G$48="Yes",Worksheet!B120,0),Worksheet!D141*((Worksheet!B14*SUM(Worksheet!B95:B103,Worksheet!B114)+IF('1. Plan Inputs'!$G$48="Yes",SUMPRODUCT(Worksheet!B104:B111,Worksheet!B151:B158),0))/SUM(Worksheet!B95:B114))+IF('1. Plan Inputs'!$G$46="Yes",Worksheet!B116,0)+IF('1. Plan Inputs'!$G$48="Yes",Worksheet!B120,0)),0) -> 0 | F141: =MIN(E141+C141,B16) -> 0 | I141: Member1 | J141: =J124 -> 0 | K141: =MIN(J141,J13) -> 0 | L141: =J141-K141 -> 0 | M141: =IFERROR(IF('1. Plan Inputs'!J50="No",L141*J14+IF('1. Plan Inputs'!$J$46="Yes",Worksheet!J116,0)+IF('1. Plan Inputs'!$J$48="Yes",Worksheet!J120,0),Worksheet!L141*((Worksheet!J14*SUM(Worksheet!J95:J103,Worksheet!J114)+IF('1. Plan Inputs'!$J$48="Yes",SUMPRODUCT(Worksheet!J104:J111,Worksheet!J151:J158),0))/SUM(Worksheet!J95:J114))+IF('1. Plan Inputs'!$J$46="Yes",Worksheet!J116,0)+IF('1. Plan Inputs'!$J$48="Yes",Worksheet!J120,0)),0) -> 0 | N141: =MIN(M141+K141,J16) -> 0 | Q141: Member1 | R141: =R124 -> 0 | S141: =MIN(R141,R13) -> 0 | T141: =R141-S141 -> 0 | U141: =IFERROR(IF('1. Plan Inputs'!M50="No",T141*R14+IF('1. Plan Inputs'!$M$46="Yes",Worksheet!R116,0)+IF('1. Plan Inputs'!$M$48="Yes",Worksheet!R120,0),Worksheet!T141*((Worksheet!R14*SUM(Worksheet!R95:R103,Worksheet!R114)+IF('1. Plan Inputs'!$M$48="Yes",SUMPRODUCT(Worksheet!R104:R111,Worksheet!R151:R158),0))/SUM(Worksheet!R95:R114))+IF('1. Plan Inputs'!$M$46="Yes",Worksheet!R116,0)+IF('1. Plan Inputs'!$M$48="Yes",Worksheet!R120,0)),0) -> 0 | V141: =MIN(U141+S141,R16) -> 0 | Y141: Member1 | Z141: =Z124 -> 0 | AA141: =MIN(Z141,Z13) -> 0 | AB141: =Z141-AA141 -> 0 | AC141: =IFERROR(IF('1. Plan Inputs'!P50="No",AB141*Z14+IF('1. Plan Inputs'!$P$46="Yes",Worksheet!Z116,0)+IF('1. Plan Inputs'!$P$48="Yes",Worksheet!Z120,0),Worksheet!AB141*((Worksheet!Z14*SUM(Worksheet!Z95:Z103,Worksheet!Z114)+IF('1. Plan Inputs'!$P$48="Yes",SUMPRODUCT(Worksheet!Z104:Z111,Worksheet!Z151:Z158),0))/SUM(Worksheet!Z95:Z114))+IF('1. Plan Inputs'!$P$46="Yes",Worksheet!Z116,0)+IF('1. Plan Inputs'!$P$48="Yes",Worksheet!Z120,0)),0) -> 0 | AD141: =MIN(AC141+AA141,Z16) -> 0 | AG141: Member1 | AH141: =AH124 -> 0 | AI141: =MIN(AH141,AH13) -> 0 | AJ141: =AH141-AI141 -> 0 | AK141: =IFERROR(IF('1. Plan Inputs'!S50="No",AJ141*AH14+IF('1. Plan Inputs'!$S$46="Yes",Worksheet!AH116,0)+IF('1. Plan Inputs'!$S$48="Yes",Worksheet!AH120,0),Worksheet!AJ141*((Worksheet!AH14*SUM(Worksheet!AH95:AH103,Worksheet!AH114)+IF('1. Plan Inputs'!$S$48="Yes",SUMPRODUCT(Worksheet!AH104:AH111,Worksheet!AH151:AH158),0))/SUM(Worksheet!AH95:AH114))+IF('1. Plan Inputs'!$S$46="Yes",Worksheet!AH116,0)+IF('1. Plan Inputs'!$S$48="Yes",Worksheet!AH120,0)),0) -> 0 | AL141: =MIN(AK141+AI141,AH16) -> 0 | AO141: Member1 | AP141: =AP124 -> 0 | AQ141: =MIN(AP141,AP13) -> 0 | AR141: =AP141-AQ141 -> 0 | AS141: =IFERROR(IF('1. Plan Inputs'!V50="No",AR141*AP14+IF('1. Plan Inputs'!$V$46="Yes",Worksheet!AP116,0)+IF('1. Plan Inputs'!$V$48="Yes",Worksheet!AP120,0),Worksheet!AR141*((Worksheet!AP14*SUM(Worksheet!AP95:AP103,Worksheet!AP114)+IF('1. Plan Inputs'!$V$48="Yes",SUMPRODUCT(Worksheet!AP104:AP111,Worksheet!AP151:AP158),0))/SUM(Worksheet!AP95:AP114))+IF('1. Plan Inputs'!$V$46="Yes",Worksheet!AP116,0)+IF('1. Plan Inputs'!$V$48="Yes",Worksheet!AP120,0)),0) -> 0 | AT141: =MIN(AS141+AQ141,AP16) -> 0
A142: Member2 | B142: =C124 -> 0 | C142: =IF(B142+SUM(C141)<C13,B142,C13-SUM(C141)) -> 0 | D142: =B142-C142 -> 0 | E142: =IFERROR(IF('1. Plan Inputs'!G50="No",D142*C14+IF('1. Plan Inputs'!$G$46="Yes",Worksheet!C116,0)+IF('1. Plan Inputs'!$G$48="Yes",Worksheet!C120,0),Worksheet!D142*((Worksheet!C14*SUM(Worksheet!C95:C103,Worksheet!C114)+IF('1. Plan Inputs'!$G$48="Yes",SUMPRODUCT(Worksheet!C104:C111,Worksheet!B151:B158),0))/SUM(Worksheet!C95:C114))+IF('1. Plan Inputs'!$G$46="Yes",Worksheet!C116,0)+IF('1. Plan Inputs'!$G$48="Yes",Worksheet!C120,0)),0) -> 0 | F142: =IF(C142+E142+SUM(F141)<C16,C142+E142,C16-SUM(F141)) -> 0 | I142: Member2 | J142: =K124 -> 0 | K142: =IF(J142+SUM(K141)<K13,J142,K13-SUM(K141)) -> 0 | L142: =J142-K142 -> 0 | M142: =IFERROR(IF('1. Plan Inputs'!J50="No",L142*K14+IF('1. Plan Inputs'!$J$46="Yes",Worksheet!K116,0)+IF('1. Plan Inputs'!$J$48="Yes",Worksheet!K120,0),Worksheet!L142*((Worksheet!K14*SUM(Worksheet!K95:K103,Worksheet!K114)+IF('1. Plan Inputs'!$J$48="Yes",SUMPRODUCT(Worksheet!K104:K111,Worksheet!J151:J158),0))/SUM(Worksheet!K95:K114))+IF('1. Plan Inputs'!$J$46="Yes",Worksheet!K116,0)+IF('1. Plan Inputs'!$J$48="Yes",Worksheet!K120,0)),0) -> 0 | N142: =IF(K142+M142+SUM(N141)<K16,K142+M142,K16-SUM(N141)) -> 0 | Q142: Member2 | R142: =S124 -> 0 | S142: =IF(R142+SUM(S141)<S13,R142,S13-SUM(S141)) -> 0 | T142: =R142-S142 -> 0 | U142: =IFERROR(IF('1. Plan Inputs'!M50="No",T142*S14+IF('1. Plan Inputs'!$M$46="Yes",Worksheet!S116,0)+IF('1. Plan Inputs'!$M$48="Yes",Worksheet!S120,0),Worksheet!T142*((Worksheet!S14*SUM(Worksheet!S95:S103,Worksheet!S114)+IF('1. Plan Inputs'!$M$48="Yes",SUMPRODUCT(Worksheet!S104:S111,Worksheet!R151:R158),0))/SUM(Worksheet!S95:S114))+IF('1. Plan Inputs'!$M$46="Yes",Worksheet!S116,0)+IF('1. Plan Inputs'!$M$48="Yes",Worksheet!S120,0)),0) -> 0 | V142: =IF(S142+U142+SUM(V141)<S16,S142+U142,S16-SUM(V141)) -> 0 | Y142: Member2 | Z142: =AA124 -> 0 | AA142: =IF(Z142+SUM(AA141)<AA13,Z142,AA13-SUM(AA141)) -> 0 | AB142: =Z142-AA142 -> 0 | AC142: =IFERROR(IF('1. Plan Inputs'!P50="No",AB142*AA14+IF('1. Plan Inputs'!$P$46="Yes",Worksheet!AA116,0)+IF('1. Plan Inputs'!$P$48="Yes",Worksheet!AA120,0),Worksheet!AB142*((Worksheet!AA14*SUM(Worksheet!AA95:AA103,Worksheet!AA114)+IF('1. Plan Inputs'!$P$48="Yes",SUMPRODUCT(Worksheet!AA104:AA111,Worksheet!Z151:Z158),0))/SUM(Worksheet!AA95:AA114))+IF('1. Plan Inputs'!$P$46="Yes",Worksheet!AA116,0)+IF('1. Plan Inputs'!$P$48="Yes",Worksheet!AA120,0)),0) -> 0 | AD142: =IF(AA142+AC142+SUM(AD141)<AA16,AA142+AC142,AA16-SUM(AD141)) -> 0 | AG142: Member2 | AH142: =AI124 -> 0 | AI142: =IF(AH142+SUM(AI141)<AI13,AH142,AI13-SUM(AI141)) -> 0 | AJ142: =AH142-AI142 -> 0 | AK142: =IFERROR(IF('1. Plan Inputs'!S50="No",AJ142*AI14+IF('1. Plan Inputs'!$S$46="Yes",Worksheet!AI116,0)+IF('1. Plan Inputs'!$S$48="Yes",Worksheet!AI120,0),Worksheet!AJ142*((Worksheet!AI14*SUM(Worksheet!AI95:AI103,Worksheet!AI114)+IF('1. Plan Inputs'!$S$48="Yes",SUMPRODUCT(Worksheet!AI104:AI111,Worksheet!AH151:AH158),0))/SUM(Worksheet!AI95:AI114))+IF('1. Plan Inputs'!$S$46="Yes",Worksheet!AI116,0)+IF('1. Plan Inputs'!$S$48="Yes",Worksheet!AI120,0)),0) -> 0 | AL142: =IF(AI142+AK142+SUM(AL141)<AI16,AI142+AK142,AI16-SUM(AL141)) -> 0 | AO142: Member2 | AP142: =AQ124 -> 0 | AQ142: =IF(AP142+SUM(AQ141)<AQ13,AP142,AQ13-SUM(AQ141)) -> 0 | AR142: =AP142-AQ142 -> 0 | AS142: =IFERROR(IF('1. Plan Inputs'!V50="No",AR142*AQ14+IF('1. Plan Inputs'!$V$46="Yes",Worksheet!AQ116,0)+IF('1. Plan Inputs'!$V$48="Yes",Worksheet!AQ120,0),Worksheet!AR142*((Worksheet!AQ14*SUM(Worksheet!AQ95:AQ103,Worksheet!AQ114)+IF('1. Plan Inputs'!$V$48="Yes",SUMPRODUCT(Worksheet!AQ104:AQ111,Worksheet!AP151:AP158),0))/SUM(Worksheet!AQ95:AQ114))+IF('1. Plan Inputs'!$V$46="Yes",Worksheet!AQ116,0)+IF('1. Plan Inputs'!$V$48="Yes",Worksheet!AQ120,0)),0) -> 0 | AT142: =IF(AQ142+AS142+SUM(AT141)<AQ16,AQ142+AS142,AQ16-SUM(AT141)) -> 0
A143: Member3 | B143: =D124 -> 0 | C143: =IF(B143+SUM(C141:C142)<D13,B143,D13-SUM(C141:C142)) -> 0 | D143: 0 | E143: =IFERROR(IF('1. Plan Inputs'!G50="No",D143*D14+IF('1. Plan Inputs'!$G$46="Yes",Worksheet!D116,0)+IF('1. Plan Inputs'!$G$48="Yes",Worksheet!D120,0),Worksheet!D143*((Worksheet!D14*SUM(Worksheet!D95:D103,Worksheet!D114)+IF('1. Plan Inputs'!$G$48="Yes",SUMPRODUCT(Worksheet!D104:D111,Worksheet!B151:B158),0))/SUM(Worksheet!D95:D114))+IF('1. Plan Inputs'!$G$46="Yes",Worksheet!D116,0)+IF('1. Plan Inputs'!$G$48="Yes",Worksheet!D120,0)),0) -> 0 | F143: =IF(C143+E143+SUM(F141:F142)<D16,C143+E143,D16-SUM(F141:F142)) -> 0 | I143: Member3 | J143: =L124 -> 0 | K143: =IF(J143+SUM(K141:K142)<L13,J143,L13-SUM(K141:K142)) -> 0 | L143: 0 | M143: =IFERROR(IF('1. Plan Inputs'!J50="No",L143*L14+IF('1. Plan Inputs'!$J$46="Yes",Worksheet!L116,0)+IF('1. Plan Inputs'!$J$48="Yes",Worksheet!L120,0),Worksheet!L143*((Worksheet!L14*SUM(Worksheet!L95:L103,Worksheet!L114)+IF('1. Plan Inputs'!$J$48="Yes",SUMPRODUCT(Worksheet!L104:L111,Worksheet!J151:J158),0))/SUM(Worksheet!L95:L114))+IF('1. Plan Inputs'!$J$46="Yes",Worksheet!L116,0)+IF('1. Plan Inputs'!$J$48="Yes",Worksheet!L120,0)),0) -> 0 | N143: =IF(K143+M143+SUM(N141:N142)<L16,K143+M143,L16-SUM(N141:N142)) -> 0 | Q143: Member3 | R143: =T124 -> 0 | S143: =IF(R143+SUM(S141:S142)<T13,R143,T13-SUM(S141:S142)) -> 0 | T143: 0 | U143: =IFERROR(IF('1. Plan Inputs'!M50="No",T143*T14+IF('1. Plan Inputs'!$M$46="Yes",Worksheet!T116,0)+IF('1. Plan Inputs'!$M$48="Yes",Worksheet!T120,0),Worksheet!T143*((Worksheet!T14*SUM(Worksheet!T95:T103,Worksheet!T114)+IF('1. Plan Inputs'!$M$48="Yes",SUMPRODUCT(Worksheet!T104:T111,Worksheet!R151:R158),0))/SUM(Worksheet!T95:T114))+IF('1. Plan Inputs'!$M$46="Yes",Worksheet!T116,0)+IF('1. Plan Inputs'!$M$48="Yes",Worksheet!T120,0)),0) -> 0 | V143: =IF(S143+U143+SUM(V141:V142)<T16,S143+U143,T16-SUM(V141:V142)) -> 0 | Y143: Member3 | Z143: =AB124 -> 0 | AA143: =IF(Z143+SUM(AA141:AA142)<AB13,Z143,AB13-SUM(AA141:AA142)) -> 0 | AB143: 0 | AC143: =IFERROR(IF('1. Plan Inputs'!P50="No",AB143*AB14+IF('1. Plan Inputs'!$P$46="Yes",Worksheet!AB116,0)+IF('1. Plan Inputs'!$P$48="Yes",Worksheet!AB120,0),Worksheet!AB143*((Worksheet!AB14*SUM(Worksheet!AB95:AB103,Worksheet!AB114)+IF('1. Plan Inputs'!$P$48="Yes",SUMPRODUCT(Worksheet!AB104:AB111,Worksheet!Z151:Z158),0))/SUM(Worksheet!AB95:AB114))+IF('1. Plan Inputs'!$P$46="Yes",Worksheet!AB116,0)+IF('1. Plan Inputs'!$P$48="Yes",Worksheet!AB120,0)),0) -> 0 | AD143: =IF(AA143+AC143+SUM(AD141:AD142)<AB16,AA143+AC143,AB16-SUM(AD141:AD142)) -> 0 | AG143: Member3 | AH143: =AJ124 -> 0 | AI143: =IF(AH143+SUM(AI141:AI142)<AJ13,AH143,AJ13-SUM(AI141:AI142)) -> 0 | AJ143: 0 | AK143: =IFERROR(IF('1. Plan Inputs'!S50="No",AJ143*AJ14+IF('1. Plan Inputs'!$S$46="Yes",Worksheet!AJ116,0)+IF('1. Plan Inputs'!$S$48="Yes",Worksheet!AJ120,0),Worksheet!AJ143*((Worksheet!AJ14*SUM(Worksheet!AJ95:AJ103,Worksheet!AJ114)+IF('1. Plan Inputs'!$S$48="Yes",SUMPRODUCT(Worksheet!AJ104:AJ111,Worksheet!AH151:AH158),0))/SUM(Worksheet!AJ95:AJ114))+IF('1. Plan Inputs'!$S$46="Yes",Worksheet!AJ116,0)+IF('1. Plan Inputs'!$S$48="Yes",Worksheet!AJ120,0)),0) -> 0 | AL143: =IF(AI143+AK143+SUM(AL141:AL142)<AJ16,AI143+AK143,AJ16-SUM(AL141:AL142)) -> 0 | AO143: Member3 | AP143: =AR124 -> 0 | AQ143: =IF(AP143+SUM(AQ141:AQ142)<AR13,AP143,AR13-SUM(AQ141:AQ142)) -> 0 | AR143: 0 | AS143: =IFERROR(IF('1. Plan Inputs'!V50="No",AR143*AR14+IF('1. Plan Inputs'!$V$46="Yes",Worksheet!AR116,0)+IF('1. Plan Inputs'!$V$48="Yes",Worksheet!AR120,0),Worksheet!AR143*((Worksheet!AR14*SUM(Worksheet!AR95:AR103,Worksheet!AR114)+IF('1. Plan Inputs'!$V$48="Yes",SUMPRODUCT(Worksheet!AR104:AR111,Worksheet!AP151:AP158),0))/SUM(Worksheet!AR95:AR114))+IF('1. Plan Inputs'!$V$46="Yes",Worksheet!AR116,0)+IF('1. Plan Inputs'!$V$48="Yes",Worksheet!AR120,0)),0) -> 0 | AT143: =IF(AQ143+AS143+SUM(AT141:AT142)<AR16,AQ143+AS143,AR16-SUM(AT141:AT142)) -> 0
A144: Member4 | B144: =E124 -> 0 | C144: =IF(B144+SUM(C141:C143)<E13,B144,E13-SUM(C141:C143)) -> 0 | D144: 0 | E144: =IFERROR(IF('1. Plan Inputs'!G50="No",D144*E14+IF('1. Plan Inputs'!$G$46="Yes",Worksheet!E116,0)+IF('1. Plan Inputs'!$G$48="Yes",Worksheet!E120,0),Worksheet!D144*((Worksheet!E14*SUM(Worksheet!E95:E103,Worksheet!E114)+IF('1. Plan Inputs'!$G$48="Yes",SUMPRODUCT(Worksheet!E104:E111,Worksheet!B151:B158),0))/SUM(Worksheet!E95:E114))+IF('1. Plan Inputs'!$G$46="Yes",Worksheet!E116,0)+IF('1. Plan Inputs'!$G$48="Yes",Worksheet!E120,0)),0) -> 0 | F144: =IF(C144+E144+SUM(F141:F143)<E16,C144+E144,E16-SUM(F141:F143)) -> 0 | I144: Member4 | J144: =M124 -> 0 | K144: =IF(J144+SUM(K141:K143)<M13,J144,M13-SUM(K141:K143)) -> 0 | L144: 0 | M144: =IFERROR(IF('1. Plan Inputs'!J50="No",L144*M14+IF('1. Plan Inputs'!$J$46="Yes",Worksheet!M116,0)+IF('1. Plan Inputs'!$J$48="Yes",Worksheet!M120,0),Worksheet!L144*((Worksheet!M14*SUM(Worksheet!M95:M103,Worksheet!M114)+IF('1. Plan Inputs'!$J$48="Yes",SUMPRODUCT(Worksheet!M104:M111,Worksheet!J151:J158),0))/SUM(Worksheet!M95:M114))+IF('1. Plan Inputs'!$J$46="Yes",Worksheet!M116,0)+IF('1. Plan Inputs'!$J$48="Yes",Worksheet!M120,0)),0) -> 0 | N144: =IF(K144+M144+SUM(N141:N143)<M16,K144+M144,M16-SUM(N141:N143)) -> 0 | Q144: Member4 | R144: =U124 -> 0 | S144: =IF(R144+SUM(S141:S143)<U13,R144,U13-SUM(S141:S143)) -> 0 | T144: 0 | U144: =IFERROR(IF('1. Plan Inputs'!M50="No",T144*U14+IF('1. Plan Inputs'!$M$46="Yes",Worksheet!U116,0)+IF('1. Plan Inputs'!$M$48="Yes",Worksheet!U120,0),Worksheet!T144*((Worksheet!U14*SUM(Worksheet!U95:U103,Worksheet!U114)+IF('1. Plan Inputs'!$M$48="Yes",SUMPRODUCT(Worksheet!U104:U111,Worksheet!R151:R158),0))/SUM(Worksheet!U95:U114))+IF('1. Plan Inputs'!$M$46="Yes",Worksheet!U116,0)+IF('1. Plan Inputs'!$M$48="Yes",Worksheet!U120,0)),0) -> 0 | V144: =IF(S144+U144+SUM(V141:V143)<U16,S144+U144,U16-SUM(V141:V143)) -> 0 | Y144: Member4 | Z144: =AC124 -> 0 | AA144: =IF(Z144+SUM(AA141:AA143)<AC13,Z144,AC13-SUM(AA141:AA143)) -> 0 | AB144: 0 | AC144: =IFERROR(IF('1. Plan Inputs'!P50="No",AB144*AC14+IF('1. Plan Inputs'!$P$46="Yes",Worksheet!AC116,0)+IF('1. Plan Inputs'!$P$48="Yes",Worksheet!AC120,0),Worksheet!AB144*((Worksheet!AC14*SUM(Worksheet!AC95:AC103,Worksheet!AC114)+IF('1. Plan Inputs'!$P$48="Yes",SUMPRODUCT(Worksheet!AC104:AC111,Worksheet!Z151:Z158),0))/SUM(Worksheet!AC95:AC114))+IF('1. Plan Inputs'!$P$46="Yes",Worksheet!AC116,0)+IF('1. Plan Inputs'!$P$48="Yes",Worksheet!AC120,0)),0) -> 0 | AD144: =IF(AA144+AC144+SUM(AD141:AD143)<AC16,AA144+AC144,AC16-SUM(AD141:AD143)) -> 0 | AG144: Member4 | AH144: =AK124 -> 0 | AI144: =IF(AH144+SUM(AI141:AI143)<AK13,AH144,AK13-SUM(AI141:AI143)) -> 0 | AJ144: 0 | AK144: =IFERROR(IF('1. Plan Inputs'!S50="No",AJ144*AK14+IF('1. Plan Inputs'!$S$46="Yes",Worksheet!AK116,0)+IF('1. Plan Inputs'!$S$48="Yes",Worksheet!AK120,0),Worksheet!AJ144*((Worksheet!AK14*SUM(Worksheet!AK95:AK103,Worksheet!AK114)+IF('1. Plan Inputs'!$S$48="Yes",SUMPRODUCT(Worksheet!AK104:AK111,Worksheet!AH151:AH158),0))/SUM(Worksheet!AK95:AK114))+IF('1. Plan Inputs'!$S$46="Yes",Worksheet!AK116,0)+IF('1. Plan Inputs'!$S$48="Yes",Worksheet!AK120,0)),0) -> 0 | AL144: =IF(AI144+AK144+SUM(AL141:AL143)<AK16,AI144+AK144,AK16-SUM(AL141:AL143)) -> 0 | AO144: Member4 | AP144: =AS124 -> 0 | AQ144: =IF(AP144+SUM(AQ141:AQ143)<AS13,AP144,AS13-SUM(AQ141:AQ143)) -> 0 | AR144: 0 | AS144: =IFERROR(IF('1. Plan Inputs'!V50="No",AR144*AS14+IF('1. Plan Inputs'!$V$46="Yes",Worksheet!AS116,0)+IF('1. Plan Inputs'!$V$48="Yes",Worksheet!AS120,0),Worksheet!AR144*((Worksheet!AS14*SUM(Worksheet!AS95:AS103,Worksheet!AS114)+IF('1. Plan Inputs'!$V$48="Yes",SUMPRODUCT(Worksheet!AS104:AS111,Worksheet!AP151:AP158),0))/SUM(Worksheet!AS95:AS114))+IF('1. Plan Inputs'!$V$46="Yes",Worksheet!AS116,0)+IF('1. Plan Inputs'!$V$48="Yes",Worksheet!AS120,0)),0) -> 0 | AT144: =IF(AQ144+AS144+SUM(AT141:AT143)<AS16,AQ144+AS144,AS16-SUM(AT141:AT143)) -> 0
A145: Member5 | B145: =F124 -> 0 | C145: =IF(B145+SUM(C141:C144)<F13,B145,F13-SUM(C141:C144)) -> 0 | D145: 0 | E145: =IFERROR(IF('1. Plan Inputs'!G50="No",D145*F14+IF('1. Plan Inputs'!$G$46="Yes",Worksheet!F116,0)+IF('1. Plan Inputs'!$G$48="Yes",Worksheet!F120,0),Worksheet!D145*((Worksheet!F14*SUM(Worksheet!F95:F103,Worksheet!F114)+IF('1. Plan Inputs'!$G$48="Yes",SUMPRODUCT(Worksheet!F104:F111,Worksheet!B151:B158),0))/SUM(Worksheet!F95:F114))+IF('1. Plan Inputs'!$G$46="Yes",Worksheet!F116,0)+IF('1. Plan Inputs'!$G$48="Yes",Worksheet!F120,0)),0) -> 0 | F145: =IF(C145+E145+SUM(F141:F144)<F16,C145+E145,F16-SUM(F141:F144)) -> 0 | I145: Member5 | J145: =N124 -> 0 | K145: =IF(J145+SUM(K141:K144)<N13,J145,N13-SUM(K141:K144)) -> 0 | L145: 0 | M145: =IFERROR(IF('1. Plan Inputs'!J50="No",L145*N14+IF('1. Plan Inputs'!$J$46="Yes",Worksheet!N116,0)+IF('1. Plan Inputs'!$J$48="Yes",Worksheet!N120,0),Worksheet!L145*((Worksheet!N14*SUM(Worksheet!N95:N103,Worksheet!N114)+IF('1. Plan Inputs'!$J$48="Yes",SUMPRODUCT(Worksheet!N104:N111,Worksheet!J151:J158),0))/SUM(Worksheet!N95:N114))+IF('1. Plan Inputs'!$J$46="Yes",Worksheet!N116,0)+IF('1. Plan Inputs'!$J$48="Yes",Worksheet!N120,0)),0) -> 0 | N145: =IF(K145+M145+SUM(N141:N144)<N16,K145+M145,N16-SUM(N141:N144)) -> 0 | Q145: Member5 | R145: =V124 -> 0 | S145: =IF(R145+SUM(S141:S144)<V13,R145,V13-SUM(S141:S144)) -> 0 | T145: 0 | U145: =IFERROR(IF('1. Plan Inputs'!M50="No",T145*V14+IF('1. Plan Inputs'!$M$46="Yes",Worksheet!V116,0)+IF('1. Plan Inputs'!$M$48="Yes",Worksheet!V120,0),Worksheet!T145*((Worksheet!V14*SUM(Worksheet!V95:V103,Worksheet!V114)+IF('1. Plan Inputs'!$M$48="Yes",SUMPRODUCT(Worksheet!V104:V111,Worksheet!R151:R158),0))/SUM(Worksheet!V95:V114))+IF('1. Plan Inputs'!$M$46="Yes",Worksheet!V116,0)+IF('1. Plan Inputs'!$M$48="Yes",Worksheet!V120,0)),0) -> 0 | V145: =IF(S145+U145+SUM(V141:V144)<V16,S145+U145,V16-SUM(V141:V144)) -> 0 | Y145: Member5 | Z145: =AD124 -> 0 | AA145: =IF(Z145+SUM(AA141:AA144)<AD13,Z145,AD13-SUM(AA141:AA144)) -> 0 | AB145: 0 | AC145: =IFERROR(IF('1. Plan Inputs'!P50="No",AB145*AD14+IF('1. Plan Inputs'!$P$46="Yes",Worksheet!AD116,0)+IF('1. Plan Inputs'!$P$48="Yes",Worksheet!AD120,0),Worksheet!AB145*((Worksheet!AD14*SUM(Worksheet!AD95:AD103,Worksheet!AD114)+IF('1. Plan Inputs'!$P$48="Yes",SUMPRODUCT(Worksheet!AD104:AD111,Worksheet!Z151:Z158),0))/SUM(Worksheet!AD95:AD114))+IF('1. Plan Inputs'!$P$46="Yes",Worksheet!AD116,0)+IF('1. Plan Inputs'!$P$48="Yes",Worksheet!AD120,0)),0) -> 0 | AD145: =IF(AA145+AC145+SUM(AD141:AD144)<AD16,AA145+AC145,AD16-SUM(AD141:AD144)) -> 0 | AG145: Member5 | AH145: =AL124 -> 0 | AI145: =IF(AH145+SUM(AI141:AI144)<AL13,AH145,AL13-SUM(AI141:AI144)) -> 0 | AJ145: 0 | AK145: =IFERROR(IF('1. Plan Inputs'!S50="No",AJ145*AL14+IF('1. Plan Inputs'!$S$46="Yes",Worksheet!AL116,0)+IF('1. Plan Inputs'!$S$48="Yes",Worksheet!AL120,0),Worksheet!AJ145*((Worksheet!AL14*SUM(Worksheet!AL95:AL103,Worksheet!AL114)+IF('1. Plan Inputs'!$S$48="Yes",SUMPRODUCT(Worksheet!AL104:AL111,Worksheet!AH151:AH158),0))/SUM(Worksheet!AL95:AL114))+IF('1. Plan Inputs'!$S$46="Yes",Worksheet!AL116,0)+IF('1. Plan Inputs'!$S$48="Yes",Worksheet!AL120,0)),0) -> 0 | AL145: =IF(AI145+AK145+SUM(AL141:AL144)<AL16,AI145+AK145,AL16-SUM(AL141:AL144)) -> 0 | AO145: Member5 | AP145: =AT124 -> 0 | AQ145: =IF(AP145+SUM(AQ141:AQ144)<AT13,AP145,AT13-SUM(AQ141:AQ144)) -> 0 | AR145: 0 | AS145: =IFERROR(IF('1. Plan Inputs'!V50="No",AR145*AT14+IF('1. Plan Inputs'!$V$46="Yes",Worksheet!AT116,0)+IF('1. Plan Inputs'!$V$48="Yes",Worksheet!AT120,0),Worksheet!AR145*((Worksheet!AT14*SUM(Worksheet!AT95:AT103,Worksheet!AT114)+IF('1. Plan Inputs'!$V$48="Yes",SUMPRODUCT(Worksheet!AT104:AT111,Worksheet!AP151:AP158),0))/SUM(Worksheet!AT95:AT114))+IF('1. Plan Inputs'!$V$46="Yes",Worksheet!AT116,0)+IF('1. Plan Inputs'!$V$48="Yes",Worksheet!AT120,0)),0) -> 0 | AT145: =IF(AQ145+AS145+SUM(AT141:AT144)<AT16,AQ145+AS145,AT16-SUM(AT141:AT144)) -> 0
A146: Member6 | B146: =G124 -> 0 | C146: =IF(B146+SUM(C141:C145)<G13,B146,G13-SUM(C141:C145)) -> 0 | D146: 0 | E146: =IFERROR(IF('1. Plan Inputs'!G50="No",D146*G14+IF('1. Plan Inputs'!$G$46="Yes",Worksheet!G116,0)+IF('1. Plan Inputs'!$G$48="Yes",Worksheet!G120,0),Worksheet!D146*((Worksheet!G14*SUM(Worksheet!G95:G103,Worksheet!G114)+IF('1. Plan Inputs'!$G$48="Yes",SUMPRODUCT(Worksheet!G104:G111,Worksheet!B151:B158),0))/SUM(Worksheet!G95:G114))+IF('1. Plan Inputs'!$G$46="Yes",Worksheet!G116,0)+IF('1. Plan Inputs'!$G$48="Yes",Worksheet!G120,0)),0) -> 0 | F146: =IF(C146+E146+SUM(F141:F145)<G16,C146+E146,G16-SUM(F141:F145)) -> 0 | I146: Member6 | J146: =O124 -> 0 | K146: =IF(J146+SUM(K141:K145)<O13,J146,O13-SUM(K141:K145)) -> 0 | L146: 0 | M146: =IFERROR(IF('1. Plan Inputs'!J50="No",L146*O14+IF('1. Plan Inputs'!$J$46="Yes",Worksheet!O116,0)+IF('1. Plan Inputs'!$J$48="Yes",Worksheet!O120,0),Worksheet!L146*((Worksheet!O14*SUM(Worksheet!O95:O103,Worksheet!O114)+IF('1. Plan Inputs'!$J$48="Yes",SUMPRODUCT(Worksheet!O104:O111,Worksheet!J151:J158),0))/SUM(Worksheet!O95:O114))+IF('1. Plan Inputs'!$J$46="Yes",Worksheet!O116,0)+IF('1. Plan Inputs'!$J$48="Yes",Worksheet!O120,0)),0) -> 0 | N146: =IF(K146+M146+SUM(N141:N145)<O16,K146+M146,O16-SUM(N141:N145)) -> 0 | Q146: Member6 | R146: =W124 -> 0 | S146: =IF(R146+SUM(S141:S145)<W13,R146,W13-SUM(S141:S145)) -> 0 | T146: 0 | U146: =IFERROR(IF('1. Plan Inputs'!M50="No",T146*W14+IF('1. Plan Inputs'!$M$46="Yes",Worksheet!W116,0)+IF('1. Plan Inputs'!$M$48="Yes",Worksheet!W120,0),Worksheet!T146*((Worksheet!W14*SUM(Worksheet!W95:W103,Worksheet!W114)+IF('1. Plan Inputs'!$M$48="Yes",SUMPRODUCT(Worksheet!W104:W111,Worksheet!R151:R158),0))/SUM(Worksheet!W95:W114))+IF('1. Plan Inputs'!$M$46="Yes",Worksheet!W116,0)+IF('1. Plan Inputs'!$M$48="Yes",Worksheet!W120,0)),0) -> 0 | V146: =IF(S146+U146+SUM(V141:V145)<W16,S146+U146,W16-SUM(V141:V145)) -> 0 | Y146: Member6 | Z146: =AE124 -> 0 | AA146: =IF(Z146+SUM(AA141:AA145)<AE13,Z146,AE13-SUM(AA141:AA145)) -> 0 | AB146: 0 | AC146: =IFERROR(IF('1. Plan Inputs'!P50="No",AB146*AE14+IF('1. Plan Inputs'!$P$46="Yes",Worksheet!AE116,0)+IF('1. Plan Inputs'!$P$48="Yes",Worksheet!AE120,0),Worksheet!AB146*((Worksheet!AE14*SUM(Worksheet!AE95:AE103,Worksheet!AE114)+IF('1. Plan Inputs'!$P$48="Yes",SUMPRODUCT(Worksheet!AE104:AE111,Worksheet!Z151:Z158),0))/SUM(Worksheet!AE95:AE114))+IF('1. Plan Inputs'!$P$46="Yes",Worksheet!AE116,0)+IF('1. Plan Inputs'!$P$48="Yes",Worksheet!AE120,0)),0) -> 0 | AD146: =IF(AA146+AC146+SUM(AD141:AD145)<AE16,AA146+AC146,AE16-SUM(AD141:AD145)) -> 0 | AG146: Member6 | AH146: =AM124 -> 0 | AI146: =IF(AH146+SUM(AI141:AI145)<AM13,AH146,AM13-SUM(AI141:AI145)) -> 0 | AJ146: 0 | AK146: =IFERROR(IF('1. Plan Inputs'!S50="No",AJ146*AM14+IF('1. Plan Inputs'!$S$46="Yes",Worksheet!AM116,0)+IF('1. Plan Inputs'!$S$48="Yes",Worksheet!AM120,0),Worksheet!AJ146*((Worksheet!AM14*SUM(Worksheet!AM95:AM103,Worksheet!AM114)+IF('1. Plan Inputs'!$S$48="Yes",SUMPRODUCT(Worksheet!AM104:AM111,Worksheet!AH151:AH158),0))/SUM(Worksheet!AM95:AM114))+IF('1. Plan Inputs'!$S$46="Yes",Worksheet!AM116,0)+IF('1. Plan Inputs'!$S$48="Yes",Worksheet!AM120,0)),0) -> 0 | AL146: =IF(AI146+AK146+SUM(AL141:AL145)<AM16,AI146+AK146,AM16-SUM(AL141:AL145)) -> 0 | AO146: Member6 | AP146: =AU124 -> 0 | AQ146: =IF(AP146+SUM(AQ141:AQ145)<AU13,AP146,AU13-SUM(AQ141:AQ145)) -> 0 | AR146: 0 | AS146: =IFERROR(IF('1. Plan Inputs'!V50="No",AR146*AU14+IF('1. Plan Inputs'!$V$46="Yes",Worksheet!AU116,0)+IF('1. Plan Inputs'!$V$48="Yes",Worksheet!AU120,0),Worksheet!AR146*((Worksheet!AU14*SUM(Worksheet!AU95:AU103,Worksheet!AU114)+IF('1. Plan Inputs'!$V$48="Yes",SUMPRODUCT(Worksheet!AU104:AU111,Worksheet!AP151:AP158),0))/SUM(Worksheet!AU95:AU114))+IF('1. Plan Inputs'!$V$46="Yes",Worksheet!AU116,0)+IF('1. Plan Inputs'!$V$48="Yes",Worksheet!AU120,0)),0) -> 0 | AT146: =IF(AQ146+AS146+SUM(AT141:AT145)<AU16,AQ146+AS146,AU16-SUM(AT141:AT145)) -> 0
A147: Total | B147: =SUM(B141:B146) -> 0 | C147: =SUM(C141:C146) -> 0 | D147: =SUM(D141:D146) -> 0 | E147: =SUM(E141:E146) -> 0 | F147: =SUM(F141:F146)+IF('1. Plan Inputs'!G46="Yes",0,SUM(Worksheet!B116:G116))+IF('1. Plan Inputs'!G48="Yes",0,SUM(Worksheet!B120:G120))+IFERROR(IF('1. Plan Inputs'!G48="Yes",0,D141*SUMPRODUCT(B104:B111,B151:B158/SUM(B95:B114))),0)+IFERROR(IF('1. Plan Inputs'!G48="Yes",0,D142*SUMPRODUCT(C104:C111,B151:B158/SUM(C95:C114))),0)+IFERROR(IF('1. Plan Inputs'!G48="Yes",0,D143*SUMPRODUCT(D104:D111,B151:B158/SUM(D95:D114))),0)+IFERROR(IF('1. Plan Inputs'!G48="Yes",0,D144*SUMPRODUCT(E104:E111,B151:B158/SUM(E95:E114))),0)+IFERROR(IF('1. Plan Inputs'!G48="Yes",0,D145*SUMPRODUCT(F104:F111,B151:B158/SUM(F95:F114))),0)+IFERROR(IF('1. Plan Inputs'!G48="Yes",0,D146*SUMPRODUCT(G104:G111,B151:B158/SUM(G95:G114))),0) -> 0 | I147: Total | J147: =SUM(J141:J146) -> 0 | K147: =SUM(K141:K146) -> 0 | L147: =SUM(L141:L146) -> 0 | M147: =SUM(M141:M146) -> 0 | N147: =SUM(N141:N146)+IF('1. Plan Inputs'!J46="Yes",0,SUM(Worksheet!J116:O116))+IF('1. Plan Inputs'!J48="Yes",0,SUM(Worksheet!J120:O120))+IFERROR(IF('1. Plan Inputs'!J48="Yes",0,L141*SUMPRODUCT(J104:J111,J151:J158/SUM(J95:J114))),0)+IFERROR(IF('1. Plan Inputs'!J48="Yes",0,L142*SUMPRODUCT(K104:K111,J151:J158/SUM(K95:K114))),0)+IFERROR(IF('1. Plan Inputs'!J48="Yes",0,L143*SUMPRODUCT(L104:L111,J151:J158/SUM(L95:L114))),0)+IFERROR(IF('1. Plan Inputs'!J48="Yes",0,L144*SUMPRODUCT(M104:M111,J151:J158/SUM(M95:M114))),0)+IFERROR(IF('1. Plan Inputs'!J48="Yes",0,L145*SUMPRODUCT(N104:N111,J151:J158/SUM(N95:N114))),0)+IFERROR(IF('1. Plan Inputs'!J48="Yes",0,L146*SUMPRODUCT(O104:O111,J151:J158/SUM(O95:O114))),0) -> 0 | Q147: Total | R147: =SUM(R141:R146) -> 0 | S147: =SUM(S141:S146) -> 0 | T147: =SUM(T141:T146) -> 0 | U147: =SUM(U141:U146) -> 0 | V147: =SUM(V141:V146)+IF('1. Plan Inputs'!M46="Yes",0,SUM(Worksheet!R116:W116))+IF('1. Plan Inputs'!M48="Yes",0,SUM(Worksheet!R120:W120))+IFERROR(IF('1. Plan Inputs'!M48="Yes",0,T141*SUMPRODUCT(R104:R111,R151:R158/SUM(R95:R114))),0)+IFERROR(IF('1. Plan Inputs'!M48="Yes",0,T142*SUMPRODUCT(S104:S111,R151:R158/SUM(S95:S114))),0)+IFERROR(IF('1. Plan Inputs'!M48="Yes",0,T143*SUMPRODUCT(T104:T111,R151:R158/SUM(T95:T114))),0)+IFERROR(IF('1. Plan Inputs'!M48="Yes",0,T144*SUMPRODUCT(U104:U111,R151:R158/SUM(U95:U114))),0)+IFERROR(IF('1. Plan Inputs'!M48="Yes",0,T145*SUMPRODUCT(V104:V111,R151:R158/SUM(V95:V114))),0)+IFERROR(IF('1. Plan Inputs'!M48="Yes",0,T146*SUMPRODUCT(W104:W111,R151:R158/SUM(W95:W114))),0) -> 0 | Y147: Total | Z147: =SUM(Z141:Z146) -> 0 | AA147: =SUM(AA141:AA146) -> 0 | AB147: =SUM(AB141:AB146) -> 0 | AC147: =SUM(AC141:AC146) -> 0 | AD147: =SUM(AD141:AD146)+IF('1. Plan Inputs'!P46="Yes",0,SUM(Worksheet!Z116:AE116))+IF('1. Plan Inputs'!P48="Yes",0,SUM(Worksheet!Z120:AE120))+IFERROR(IF('1. Plan Inputs'!P48="Yes",0,AB141*SUMPRODUCT(Z104:Z111,Z151:Z158/SUM(Z95:Z114))),0)+IFERROR(IF('1. Plan Inputs'!P48="Yes",0,AB142*SUMPRODUCT(AA104:AA111,Z151:Z158/SUM(AA95:AA114))),0)+IFERROR(IF('1. Plan Inputs'!P48="Yes",0,AB143*SUMPRODUCT(AB104:AB111,Z151:Z158/SUM(AB95:AB114))),0)+IFERROR(IF('1. Plan Inputs'!P48="Yes",0,AB144*SUMPRODUCT(AC104:AC111,Z151:Z158/SUM(AC95:AC114))),0)+IFERROR(IF('1. Plan Inputs'!P48="Yes",0,AB145*SUMPRODUCT(AD104:AD111,Z151:Z158/SUM(AD95:AD114))),0)+IFERROR(IF('1. Plan Inputs'!P48="Yes",0,AB146*SUMPRODUCT(AE104:AE111,Z151:Z158/SUM(AE95:AE114))),0) -> 0 | AG147: Total | AH147: =SUM(AH141:AH146) -> 0 | AI147: =SUM(AI141:AI146) -> 0 | AJ147: =SUM(AJ141:AJ146) -> 0 | AK147: =SUM(AK141:AK146) -> 0 | AL147: =SUM(AL141:AL146)+IF('1. Plan Inputs'!S46="Yes",0,SUM(Worksheet!AH116:AM116))+IF('1. Plan Inputs'!S48="Yes",0,SUM(Worksheet!AH120:AM120))+IFERROR(IF('1. Plan Inputs'!S48="Yes",0,AJ141*SUMPRODUCT(AH104:AH111,AH151:AH158/SUM(AH95:AH114))),0)+IFERROR(IF('1. Plan Inputs'!S48="Yes",0,AJ142*SUMPRODUCT(AI104:AI111,AH151:AH158/SUM(AI95:AI114))),0)+IFERROR(IF('1. Plan Inputs'!S48="Yes",0,AJ143*SUMPRODUCT(AJ104:AJ111,AH151:AH158/SUM(AJ95:AJ114))),0)+IFERROR(IF('1. Plan Inputs'!S48="Yes",0,AJ144*SUMPRODUCT(AK104:AK111,AH151:AH158/SUM(AK95:AK114))),0)+IFERROR(IF('1. Plan Inputs'!S48="Yes",0,AJ145*SUMPRODUCT(AL104:AL111,AH151:AH158/SUM(AL95:AL114))),0)+IFERROR(IF('1. Plan Inputs'!S48="Yes",0,AJ146*SUMPRODUCT(AM104:AM111,AH151:AH158/SUM(AM95:AM114))),0) -> 0 | AO147: Total | AP147: =SUM(AP141:AP146) -> 0 | AQ147: =SUM(AQ141:AQ146) -> 0 | AR147: =SUM(AR141:AR146) -> 0 | AS147: =SUM(AS141:AS146) -> 0 | AT147: =SUM(AT141:AT146)+IF('1. Plan Inputs'!V46="Yes",0,SUM(Worksheet!AP116:AU116))+IF('1. Plan Inputs'!V48="Yes",0,SUM(Worksheet!AP120:AU120))+IFERROR(IF('1. Plan Inputs'!V48="Yes",0,AR141*SUMPRODUCT(AP104:AP111,AP151:AP158/SUM(AP95:AP114))),0)+IFERROR(IF('1. Plan Inputs'!V48="Yes",0,AR142*SUMPRODUCT(AQ104:AQ111,AP151:AP158/SUM(AQ95:AQ114))),0)+IFERROR(IF('1. Plan Inputs'!V48="Yes",0,AR143*SUMPRODUCT(AR104:AR111,AP151:AP158/SUM(AR95:AR114))),0)+IFERROR(IF('1. Plan Inputs'!V48="Yes",0,AR144*SUMPRODUCT(AS104:AS111,AP151:AP158/SUM(AS95:AS114))),0)+IFERROR(IF('1. Plan Inputs'!V48="Yes",0,AR145*SUMPRODUCT(AT104:AT111,AP151:AP158/SUM(AT95:AT114))),0)+IFERROR(IF('1. Plan Inputs'!V48="Yes",0,AR146*SUMPRODUCT(AU104:AU111,AP151:AP158/SUM(AU95:AU114))),0) -> 0
A150: Rx Coinsurance / Coinsurance Equivalent: | I150: Rx Coinsurance / Coinsurance Equivalent: | Q150: Rx Coinsurance / Coinsurance Equivalent: | Y150: Rx Coinsurance / Coinsurance Equivalent: | AG150: Rx Coinsurance / Coinsurance Equivalent: | AO150: Rx Coinsurance / Coinsurance Equivalent:
A151: Rx Generic (Retail): | B151: =IF(OR('1. Plan Inputs'!F53=0,'1. Plan Inputs'!F53=""),'1. Plan Inputs'!G53,B28/B66) -> 1.454898157 | I151: Rx Generic (Retail): | J151: =IF(OR('1. Plan Inputs'!I53=0,'1. Plan Inputs'!I53=""),'1. Plan Inputs'!J53,J28/J66) -> 0 | Q151: Rx Generic (Retail): | R151: =IF(OR('1. Plan Inputs'!L53=0,'1. Plan Inputs'!L53=""),'1. Plan Inputs'!M53,R28/R66) -> 1.454898157 | Y151: Rx Generic (Retail): | Z151: =IF(OR('1. Plan Inputs'!O53=0,'1. Plan Inputs'!O53=""),'1. Plan Inputs'!P53,Z28/Z66) -> 1.454898157 | AG151: Rx Generic (Retail): | AH151: =IF(OR('1. Plan Inputs'!R53=0,'1. Plan Inputs'!R53=""),'1. Plan Inputs'!S53,AH28/AH66) -> 1.454898157 | AO151: Rx Generic (Retail): | AP151: =IF(OR('1. Plan Inputs'!U53=0,'1. Plan Inputs'!U53=""),'1. Plan Inputs'!V53,AP28/AP66) -> 0
A152: Rx Brand Formulary (Retail): | B152: =IF(OR('1. Plan Inputs'!F54=0,'1. Plan Inputs'!F54=""),'1. Plan Inputs'!G54,B29/B67) -> 0.1913143294 | I152: Rx Brand Formulary (Retail): | J152: =IF(OR('1. Plan Inputs'!I54=0,'1. Plan Inputs'!I54=""),'1. Plan Inputs'!J54,J29/J67) -> 0 | Q152: Rx Brand Formulary (Retail): | R152: =IF(OR('1. Plan Inputs'!L54=0,'1. Plan Inputs'!L54=""),'1. Plan Inputs'!M54,R29/R67) -> 0.1913143294 | Y152: Rx Brand Formulary (Retail): | Z152: =IF(OR('1. Plan Inputs'!O54=0,'1. Plan Inputs'!O54=""),'1. Plan Inputs'!P54,Z29/Z67) -> 0.1530514636 | AG152: Rx Brand Formulary (Retail): | AH152: =IF(OR('1. Plan Inputs'!R54=0,'1. Plan Inputs'!R54=""),'1. Plan Inputs'!S54,AH29/AH67) -> 0.1147885977 | AO152: Rx Brand Formulary (Retail): | AP152: =IF(OR('1. Plan Inputs'!U54=0,'1. Plan Inputs'!U54=""),'1. Plan Inputs'!V54,AP29/AP67) -> 0
A153: Rx Brand Non-Formulary (Retail): | B153: =IF(OR('1. Plan Inputs'!F55=0,'1. Plan Inputs'!F55=""),'1. Plan Inputs'!G55,B30/B68) -> 0.3061029271 | I153: Rx Brand Non-Formulary (Retail): | J153: =IF(OR('1. Plan Inputs'!I55=0,'1. Plan Inputs'!I55=""),'1. Plan Inputs'!J55,J30/J68) -> 0 | Q153: Rx Brand Non-Formulary (Retail): | R153: =IF(OR('1. Plan Inputs'!L55=0,'1. Plan Inputs'!L55=""),'1. Plan Inputs'!M55,R30/R68) -> 0.3061029271 | Y153: Rx Brand Non-Formulary (Retail): | Z153: =IF(OR('1. Plan Inputs'!O55=0,'1. Plan Inputs'!O55=""),'1. Plan Inputs'!P55,Z30/Z68) -> 0.2295771953 | AG153: Rx Brand Non-Formulary (Retail): | AH153: =IF(OR('1. Plan Inputs'!R55=0,'1. Plan Inputs'!R55=""),'1. Plan Inputs'!S55,AH30/AH68) -> 0.1147885977 | AO153: Rx Brand Non-Formulary (Retail): | AP153: =IF(OR('1. Plan Inputs'!U55=0,'1. Plan Inputs'!U55=""),'1. Plan Inputs'!V55,AP30/AP68) -> 0
A154: Rx Specialty (Retail): | B154: =IF(OR('1. Plan Inputs'!F56=0,'1. Plan Inputs'!F56=""),'1. Plan Inputs'!G56,B31/B69) -> 0.06075334143 | I154: Rx Specialty (Retail): | J154: =IF(OR('1. Plan Inputs'!I56=0,'1. Plan Inputs'!I56=""),'1. Plan Inputs'!J56,J31/J69) -> 0 | Q154: Rx Specialty (Retail): | R154: =IF(OR('1. Plan Inputs'!L56=0,'1. Plan Inputs'!L56=""),'1. Plan Inputs'!M56,R31/R69) -> 0.06075334143 | Y154: Rx Specialty (Retail): | Z154: =IF(OR('1. Plan Inputs'!O56=0,'1. Plan Inputs'!O56=""),'1. Plan Inputs'!P56,Z31/Z69) -> 0.1518833536 | AG154: Rx Specialty (Retail): | AH154: =IF(OR('1. Plan Inputs'!R56=0,'1. Plan Inputs'!R56=""),'1. Plan Inputs'!S56,AH31/AH69) -> 0.06075334143 | AO154: Rx Specialty (Retail): | AP154: =IF(OR('1. Plan Inputs'!U56=0,'1. Plan Inputs'!U56=""),'1. Plan Inputs'!V56,AP31/AP69) -> 0
A155: Rx Generic (Mail): | B155: =IF(OR('1. Plan Inputs'!F57=0,'1. Plan Inputs'!F57=""),'1. Plan Inputs'!G57,B32/B70) -> 0.4849660524 | I155: Rx Generic (Mail): | J155: =IF(OR('1. Plan Inputs'!I57=0,'1. Plan Inputs'!I57=""),'1. Plan Inputs'!J57,J32/J70) -> 0 | Q155: Rx Generic (Mail): | R155: =IF(OR('1. Plan Inputs'!L57=0,'1. Plan Inputs'!L57=""),'1. Plan Inputs'!M57,R32/R70) -> 0.4849660524 | Y155: Rx Generic (Mail): | Z155: =IF(OR('1. Plan Inputs'!O57=0,'1. Plan Inputs'!O57=""),'1. Plan Inputs'!P57,Z32/Z70) -> 0.4849660524 | AG155: Rx Generic (Mail): | AH155: =IF(OR('1. Plan Inputs'!R57=0,'1. Plan Inputs'!R57=""),'1. Plan Inputs'!S57,AH32/AH70) -> 0.9699321048 | AO155: Rx Generic (Mail): | AP155: =IF(OR('1. Plan Inputs'!U57=0,'1. Plan Inputs'!U57=""),'1. Plan Inputs'!V57,AP32/AP70) -> 0
A156: Rx Brand Formulary (Mail): | B156: =IF(OR('1. Plan Inputs'!F58=0,'1. Plan Inputs'!F58=""),'1. Plan Inputs'!G58,B33/B71) -> 0.1275428863 | I156: Rx Brand Formulary (Mail): | J156: =IF(OR('1. Plan Inputs'!I58=0,'1. Plan Inputs'!I58=""),'1. Plan Inputs'!J58,J33/J71) -> 0 | Q156: Rx Brand Formulary (Mail): | R156: =IF(OR('1. Plan Inputs'!L58=0,'1. Plan Inputs'!L58=""),'1. Plan Inputs'!M58,R33/R71) -> 0.1275428863 | Y156: Rx Brand Formulary (Mail): | Z156: =IF(OR('1. Plan Inputs'!O58=0,'1. Plan Inputs'!O58=""),'1. Plan Inputs'!P58,Z33/Z71) -> 0.102034309 | AG156: Rx Brand Formulary (Mail): | AH156: =IF(OR('1. Plan Inputs'!R58=0,'1. Plan Inputs'!R58=""),'1. Plan Inputs'!S58,AH33/AH71) -> 0.07652573178 | AO156: Rx Brand Formulary (Mail): | AP156: =IF(OR('1. Plan Inputs'!U58=0,'1. Plan Inputs'!U58=""),'1. Plan Inputs'!V58,AP33/AP71) -> 0
A157: Rx Brand Non-Formulary (Mail): | B157: =IF(OR('1. Plan Inputs'!F59=0,'1. Plan Inputs'!F59=""),'1. Plan Inputs'!G59,B34/B72) -> 0.2040686181 | I157: Rx Brand Non-Formulary (Mail): | J157: =IF(OR('1. Plan Inputs'!I59=0,'1. Plan Inputs'!I59=""),'1. Plan Inputs'!J59,J34/J72) -> 0 | Q157: Rx Brand Non-Formulary (Mail): | R157: =IF(OR('1. Plan Inputs'!L59=0,'1. Plan Inputs'!L59=""),'1. Plan Inputs'!M59,R34/R72) -> 0.2040686181 | Y157: Rx Brand Non-Formulary (Mail): | Z157: =IF(OR('1. Plan Inputs'!O59=0,'1. Plan Inputs'!O59=""),'1. Plan Inputs'!P59,Z34/Z72) -> 0.1530514636 | AG157: Rx Brand Non-Formulary (Mail): | AH157: =IF(OR('1. Plan Inputs'!R59=0,'1. Plan Inputs'!R59=""),'1. Plan Inputs'!S59,AH34/AH72) -> 0.07652573178 | AO157: Rx Brand Non-Formulary (Mail): | AP157: =IF(OR('1. Plan Inputs'!U59=0,'1. Plan Inputs'!U59=""),'1. Plan Inputs'!V59,AP34/AP72) -> 0
A158: Rx Specialty (Mail): | B158: =IF(OR('1. Plan Inputs'!F60=0,'1. Plan Inputs'!F60=""),'1. Plan Inputs'!G60,B35/B73) -> 0.04050222762 | I158: Rx Specialty (Mail): | J158: =IF(OR('1. Plan Inputs'!I60=0,'1. Plan Inputs'!I60=""),'1. Plan Inputs'!J60,J35/J73) -> 0 | Q158: Rx Specialty (Mail): | R158: =IF(OR('1. Plan Inputs'!L60=0,'1. Plan Inputs'!L60=""),'1. Plan Inputs'!M60,R35/R73) -> 0.04050222762 | Y158: Rx Specialty (Mail): | Z158: =IF(OR('1. Plan Inputs'!O60=0,'1. Plan Inputs'!O60=""),'1. Plan Inputs'!P60,Z35/Z73) -> 0.1012555691 | AG158: Rx Specialty (Mail): | AH158: =IF(OR('1. Plan Inputs'!R60=0,'1. Plan Inputs'!R60=""),'1. Plan Inputs'!S60,AH35/AH73) -> 0.02025111381 | AO158: Rx Specialty (Mail): | AP158: =IF(OR('1. Plan Inputs'!U60=0,'1. Plan Inputs'!U60=""),'1. Plan Inputs'!V60,AP35/AP73) -> 0
E160: Low Adult | F160: Med Adult | G160: High Adult | H160: Low Child | I160: Med Child | J160: High Child
A161: Preventive Services | B161: Annual number of Covered Preventive Visits | E161: 1 | F161: 1 | G161: 1 | H161: 1 | I161: 1 | J161: 1
A162: Hospitalizations | B162: Annual number of Days in Hospitals | E162: 0 | F162: 0 | G162: =1*ROUND(A192,0) -> 5 | H162: 0 | I162: 0 | J162: =1*ROUND(A192,0) -> 5
A163: Outpatient Surgery | B163: Annual number of Outpatient Surgeries | E163: 0 | F163: 2 | G163: 5 | H163: 0 | I163: 1 | J163: 2
A164: Lab/X-ray/other Radiology Performed in Hospital/Outpatient Facility | B164: Annual number of Lab/Radiology Procedures | E164: 0 | F164: 1 | G164: 3 | H164: 0 | I164: 1 | J164: 2
A165: Emergency Room Visits | B165: Annual number of Emergency Room Visits | E165: 0 | F165: 0 | G165: 1 | H165: 0 | I165: 0 | J165: 1
A166: Urgent Care Visits | B166: Annual number of Urgent Care Vistits | E166: 0 | F166: 0 | G166: 0 | H166: 0 | I166: 0 | J166: 0
A167: Office Visits | B167: Annual number of Primary Care Office Visits | E167: 1 | F167: 4 | G167: 8 | H167: 1 | I167: 4 | J167: 7
B168: Annual number of Specialists Office Visits | E168: 1 | F168: 4 | G168: 8 | H168: 1 | I168: 4 | J168: 7
B169: Annual number of Chiropractor Visits | E169: 0 | F169: 0 | G169: 0 | H169: 0 | I169: 0 | J169: 0
A170: Prescription Drugs | B170: Total number of Generic Prescriptions (Retail)—Annual | E170: 3 | F170: 12 | G170: 23 | H170: 1 | I170: 4 | J170: 10
B171: Total number of Formulary Brand-name Prescriptions (Retail)—Annual | E171: 0 | F171: 3 | G171: 8 | H171: 0 | I171: 2 | J171: 4
B172: Total number of Non-Formulary Brand-name Prescriptions (Retail)—Annual | E172: 0 | F172: 0 | G172: 0 | H172: 0 | I172: 0 | J172: 0
B173: Total number of Specialty Prescriptions (Retail)—Annual | E173: 0 | F173: 0 | G173: 0 | H173: 0 | I173: 0 | J173: 0
B174: Total number of Generic Prescriptions (Mail)—Annual | E174: 0 | F174: 0 | G174: 0 | H174: 0 | I174: 0 | J174: 0
B175: Total number of Formulary Brand-name Prescriptions (Mail)—Annual | E175: 0 | F175: 0 | G175: 0 | H175: 0 | I175: 0 | J175: 0
B176: Total number of Non-Formulary Brand-name Prescriptions (Mail)—Annual | E176: 0 | F176: 0 | G176: 0 | H176: 0 | I176: 0 | J176: 0
B177: Total number of Specialty Prescriptions (Mail)—Annual | E177: 0 | F177: 0 | G177: 0 | H177: 0 | I177: 0 | J177: 0
B179: Contribution | C179: Out of Pocket
A180: Kaiser HMO | B180: =Calculator!E61 -> 1128 | C180: =MAX(Calculator!C61-Calculator!F61,0) -> 0
A181: Anthem Blue Priority | B181: =Calculator!E62 -> 1392 | C181: =MAX(Calculator!C62-Calculator!F62,0) -> 0
A182: Anthem HMO | B182: =Calculator!E63 -> 2712 | C182: =MAX(Calculator!C63-Calculator!F63,0) -> 0
A183: Anthem HDHP | B183: =Calculator!E64 -> 696 | C183: =MAX(Calculator!C64-Calculator!F64,0) -> 0
A184: BluePreferred PPO | B184: =Calculator!E65 -> 1956 | C184: =MAX(Calculator!C65-Calculator!F65,0) -> 0
A185: =+'1. Plan Inputs'!U17 -> 0 | B185: =Calculator!E66 ->  | C185: =MAX(Calculator!C66-Calculator!F66,0) ->  | D185: =Calculator!C66-Worksheet!C185 -> 
F188: Utilization | G188: $/Unit
B190: Hospitilization Per Admit | I190: Cost of Covered Preventive Services | K190: =D224/C224 -> 130.4027275
B191: Admits | C191: Total IP Days | D191: Allowed | E191: Paid | I191: Cost for Hospitalizations (per day) | K191: =D192/C192 -> 3835.830311
A192: =C192/B192 -> 4.649471431 | B192: 77095 | C192: 358451 | D192: 1374957211 | E192: 1272685010 | I192: Cost for Outpatient Surgeries | K192: =D217/C217 -> 2268.398959
I193: Cost of Lab/Radiology Procedures | K193: =D210/C210 -> 323.4025494
B194: ER VISITS | F194: Includes Urgent Care | I194: Cost of Emergency Room | K194: =P195 -> 2465.75411 | L194: Of the 255,858 visits, 76,376 are UC and 179,482 are ER. Since RAComp Utilization is ER=2.35*UC
B195: Tier | C195: Visits | D195: Allowed | E195: Paid | I195: Cost of Urgent Care | K195: =P196 -> 86.17810615 | L195: UC cost is 3.36% of ER in RAComp | O195: =0.0336*76376+179482 -> 182048.2336 | P195: =D196/O195 -> 2465.75411
B196: In Network | C196: 255858 | D196: 448886180.2 | E196: 348906678.3 | I196: Cost of Primary Care Office Visits, including lab and x-ray | K196: =J214 -> 179.1409277 | P196: =P195*0.03495 -> 86.17810615
B197: Out of Network | C197: 53795 | D197: 50217530.05 | E197: 39771278.15 | F197: 191.8115272 | G197: 1680.900021 | I197: Cost of Specialists Office Visits, including lab and x-ray | K197: =(J214*I214*G214/(G214+G215)+J214*I215*G215/(G214+G215)) -> 202.8761553
F198: 81.63886372 | G198: 56.51426036 | H198: =G198/G197 -> 0.0336214288 | I198: Cost of Chiropractor Visit | K198: =J214*I216 -> 77.17224271
B199: Total | C199: 309653 | D199: 499103710.3 | E199: 388677956.4 | F199: =F197/F198 -> 2.349512456 | I199: Cost per Generic Prescription | K199: =C231/B231 -> 34.60343382
I200: Cost per Formulary Brand-Name Prescription | K200: =I236 -> 182.3022315
B201: OFFICE VISITS | I201: Cost per Non-Formulary Brand-Name Prescription | K201: =I236*H236 -> 211.1518487
A202: includes PCP and Spec | B202: Tier | C202: Visits | D202: Allowed | E202: Paid | I202: Cost per Specialty Prescription | K202: =I236*H237 -> 2900.719056
A203: =D203/C203 -> 168.8667798 | B203: In Network | C203: 5868196 | D203: 990943361.9 | E203: 761106440.9 | F203: 1551.138411 | G203: 75.18710077 | H203: PCP
B204: Out of Network | C204: 474978 | D204: 74337695.89 | E204: 41494281.78 | F204: 1256.071022 | G204: 79.96363125 | H204: Spec
F205: 492.8633053 | G205: 98.36398749 | H205: MH/SA
B206: Total | C206: 6343174 | D206: 1065281058 | E206: 802600722.7 | F206: 822.4785479 | G206: 32.38990253 | H206: Chiro
B208: LAB/RAD VISITS
B209: Tier | C209: Visits | D209: Allowed | E209: Paid
B210: In Network | C210: 604997 | D210: 195657572.2 | E210: 154217104.8
B211: Out of Network | C211: 38966 | D211: 10266217.38 | E211: 7822970.76
G212: =SUM(F203:F206) -> 4122.551286
B213: Total | C213: 643963 | D213: 205923789.6 | E213: 162040075.6 | G213: =F203/G$212 -> 0.3762569107 | H213: =G213*C203 -> 2207949.298 | J213: =H213+H214*I214+H215*I215+H216*I216 -> 5531641.341
G214: =F204/G$212 -> 0.3046829341 | H214: =G214*C203 -> 1787939.175 | I214: =G204/G$203 -> 1.06352859 | J214: =D203/J213 -> 179.1409277
B215: OUTPATIENT SURGERY VISITS | G215: 0.1195529834 | H215: =G215*C203 -> 701560.3389 | I215: =G205/G$203 -> 1.308256157
B216: Tier | C216: Visits | D216: Allowed | E216: Paid | G216: 0.1995071719 | H216: =G216*C203 -> 1170747.188 | I216: =G206/G$203 -> 0.4307906835
B217: In Network | C217: 24069 | D217: 54598094.54 | E217: 48273826.51
B218: Out of Network | C218: 3104 | D218: 5271654.31 | E218: 4494356
B220: Total | C220: 27173 | D220: 59869748.85 | E220: 52768182.51
B222: PREVENTIVE VISITS
B223: Tier | C223: Visits | D223: Allowed | E223: Paid
B224: In Network | C224: 519206 | D224: 67705878.55 | E224: 66913236.83
B225: Out of Network | C225: 16551 | D225: 2134157.65 | E225: 1816821.57
B227: Total | C227: 535757 | D227: 69840036.2 | E227: 68730058.4
B229: Generic Scripts | F229: Brand rx
B230: Scripts | C230: Allowed | D230: Paid | F230: 1151.334364 | G230: 156.8027266
... 7 more rows
